Workbook

Sheet Links
A1: Event: | B1: What's New In Excel 2011
A3: Video Title: | B3: Excel 2010 20 New Features -- Northwest Accounting Educators Conference 2011
A4: Video link: | B4: http://www.youtube.com/watch?v=YZ4mGGTv8M4
A6: Download Excel file name: | B6: NAE-Excel2010.xlsm
A7: Download Link: | B7: http://people.highline.edu/mgirvin/ExcelIsFun.htm
A9: Speaker: | B9: Michael excelisfun Girvin, Highline Community College
A11: Related book & DVD: | B11: Slaying Excel Dragon
A12: Link: | B12: http://www.mrexcel.com/slayingdragonsbundle.html

Sheet New2010
A1: Main New item in Excel 2007: User Interface
A2: Main New item in Excel 2010: Statistical and Math function overhaul
A3: Main New item in Excel 2012: Making Excel Easier for Users who know nothing about Excel at all
B5: Some New features in Excel 2010:
A6: 1 | B6: Sparklines
A7: 2 | B7: Ctrl Keyboard Shortcuts
A8: 3 | B8: PivotTable Slicers
A9: 4 | B9: New Print Preview and Print Options combined
A10: 5 | B10: Conditional Formatting Negative Data Bars
A11: 6 | B11: New PivotTable Calculations
A12: 7 | B12: NETWORKDAYS Old 'Compatibility' Function
A13: 8 | B13: NETWORKDAYS.INTL New 2010 Function
A14: 9 | B14: WORKDAY Old 'Compatibility' Function
A15: 10 | B15: WORKDAY.INTL New 2010 Function
B16: About 50 new Statistic Functions:
A17: 11 | B17: STDEV Old 'Compatibility' Function
A18: 12 | B18: STDEV.S New 2010 Function
A19: 13 | B19: NORMSDIST Old 'Compatibility' Function
A20: 14 | B20: NORM.S.DIST New 2010 Function
A21: 15 | B21: RANK Old 'Compatibility' Function
A22: 16 | B22: RANK.AVE New 2010 Function
A23: 17 | B23: RANK.EQ New 2010 Function
A24: 18 | B24: AGGREGATE New 2010 Function
A25: 19 | B25: Customize Ribbon and QAT
A26: 20 | B26: SUMIFS, COUNTIFS, AVERAGEIFS (New in 2007)

Sheet Sparklines (1)
A2: Score Category | B2: Test 1 | C2: Test 2 | D2: Test 3
A3: =P3&" up to "&Q3 -> 0 up to 20 | B3: 1 | C3: 5 | D3: 0 | P3: 0 | Q3: 20
A4: =P4&" up to "&Q4 -> 20 up to 40 | B4: 5 | C4: 10 | D4: 18 | P4: =Q3 -> 20 | Q4: =Q3+20 -> 40
A5: =P5&" up to "&Q5 -> 40 up to 60 | B5: 19 | C5: 25 | D5: 17 | P5: =Q4 -> 40 | Q5: =Q4+20 -> 60
A6: =P6&" up to "&Q6 -> 60 up to 80 | B6: 30 | C6: 18 | D6: 10 | P6: 60 | Q6: 80
A7: =P7&" up to "&Q7 -> 80 up to 100 | B7: 10 | C7: 5 | D7: 10 | P7: 80 | Q7: 100
A8: Total | B8: =SUM(B3:B7) -> 65 | C8: 63 | D8: 55
A12: Day | B12: Sales | D12: Sparklines: Insert Ribbon Tab
A13: Day 1 | B13: 50000 | D13: Sparkline Tools Design Ribbon Tab: High Point, Low Point, Marker Color, Axis Options - Vertical Max - Same for All
A14: Day 2 | B14: 45000 | D14: Other videos on this topic:
A15: Day 3 | B15: 25000 | D15: Mr Excel & excelisfun Trick 21: Excel 2010 Sparklines (Amazing Cell Charts!!)
A16: Day 4 | B16: 75000 | D16: Excel 2010 Statistics #18: Frequency Distribution Shape & Histogram Skew & Sparklines
A17: Day 5 | B17: 13000
A18: Day 6 | B18: 45000
A19: Day 7 | B19: 125000

Sheet Sparklines (1an)
A2: Score Category | B2: Test 1 | C2: Test 2 | D2: Test 3
A3: =P3&" up to "&Q3 -> 0 up to 20 | B3: 1 | C3: 5 | D3: 0 | P3: 0 | Q3: 20
A4: =P4&" up to "&Q4 -> 20 up to 40 | B4: 5 | C4: 10 | D4: 18 | P4: =Q3 -> 20 | Q4: =Q3+20 -> 40
A5: =P5&" up to "&Q5 -> 40 up to 60 | B5: 19 | C5: 25 | D5: 17 | P5: =Q4 -> 40 | Q5: =Q4+20 -> 60
A6: =P6&" up to "&Q6 -> 60 up to 80 | B6: 30 | C6: 18 | D6: 10 | P6: 60 | Q6: 80
A7: =P7&" up to "&Q7 -> 80 up to 100 | B7: 10 | C7: 5 | D7: 10 | P7: 80 | Q7: 100
A8: Total | B8: =SUM(B3:B7) -> 65 | C8: 63 | D8: 55
A12: Day | B12: Sales | D12: Sparklines: Insert Ribbon Tab
A13: Day 1 | B13: 50000 | D13: Sparkline Tools Design Ribbon Tab: High Point, Low Point, Marker Color, Axis Options - Vertical Max - Same for All
A14: Day 2 | B14: 45000 | D14: Other videos on this topic:
A15: Day 3 | B15: 25000 | D15: Mr Excel & excelisfun Trick 21: Excel 2010 Sparklines (Amazing Cell Charts!!)
A16: Day 4 | B16: 75000 | D16: Excel 2010 Statistics #18: Frequency Distribution Shape & Histogram Skew & Sparklines
A17: Day 5 | B17: 13000
A18: Day 6 | B18: 45000
A19: Day 7 | B19: 125000

Sheet Sparklines (2)
A1: When you look at a lot of samples for the same population, you may notice that distributions tend to be shaped in a certain way.
A2: The distribution may be skewed in a certain way.
A3: If the shaped of the distribution is consistent across samples, you can use that fact to help with doing statistics.
A4: For example, if the shape of the data is bell shaped, you can use "Normal Distribution" statistical methods, which makes the calculations less difficult.
A5: In later chapters we will see how to use the normal distribution and Excel functions like NORM.DIST and NORM.INV to make our life easy.
J9: =MAX(K11:R20)&CHAR(10)&CHAR(10)&0 -> 29 0
A10: Stats Test Sample 1 | B10: Stats Test Sample 2 | C10: Stats Test Sample 3 | D10: Stats Test Sample 4 | E10: Stats Test Sample 5 | F10: Stats Test Sample 6 | G10: Stats Test Sample 7 | H10: Stats Test Sample 8 | J10: Bins | K10: Frequency Sample 1 | L10: Frequency Sample 2 | M10: Frequency Sample 3 | N10: Frequency Sample 4 | O10: Frequency Sample 5 | P10: Frequency Sample 6 | Q10: Frequency Sample 7 | R10: Frequency Sample 8
A11: =CHOOSE(RANDBETWEEN(1,10),RANDBETWEEN(0,100),RANDBETWEEN(10,100),RANDBETWEEN(20,100),RANDBETWEEN(30,95),RANDBETWEEN(30,90),RANDBETWEEN(35,85),RANDBETWEEN(40,80),RANDBETWEEN(50,75),RANDBETWEEN(50,75),RANDBETWEEN(60,85)) -> 16 | B11: 84 | C11: 38 | D11: 27 | E11: 64 | F11: 35 | G11: 83 | H11: 50 | J11: 10 | K11: =FREQUENCY(A11:A103,$J$11:$J$20) -> 1 | L11: =FREQUENCY(B11:B103,$J$11:$J$20) -> 3 | M11: =FREQUENCY(C11:C103,$J$11:$J$20) -> 2 | N11: =FREQUENCY(D11:D103,$J$11:$J$20) -> 0 | O11: =FREQUENCY(E11:E103,$J$11:$J$20) -> 0 | P11: =FREQUENCY(F11:F103,$J$11:$J$20) -> 0 | Q11: =FREQUENCY(G11:G103,$J$11:$J$20) -> 1 | R11: =FREQUENCY(H11:H103,$J$11:$J$20) -> 1
A12: 67 | B12: 51 | C12: 72 | D12: 69 | E12: 73 | F12: 91 | G12: 65 | H12: 52 | J12: 20 | K12: 3 | L12: 1 | M12: 5 | N12: 1 | O12: 3 | P12: 0 | Q12: 0 | R12: 4
A13: 53 | B13: 56 | C13: 73 | D13: 15 | E13: 68 | F13: 65 | G13: 69 | H13: 98 | J13: 30 | K13: 4 | L13: 3 | M13: 2 | N13: 4 | O13: 3 | P13: 5 | Q13: 5 | R13: 5
A14: 65 | B14: 86 | C14: 50 | D14: 65 | E14: 92 | F14: 84 | G14: 79 | H14: 58 | J14: 40 | K14: 8 | L14: 5 | M14: 9 | N14: 5 | O14: 3 | P14: 11 | Q14: 6 | R14: 9
A15: 91 | B15: 50 | C15: 37 | D15: 22 | E15: 82 | F15: 64 | G15: 75 | H15: 71 | J15: 50 | K15: 10 | L15: 11 | M15: 10 | N15: 12 | O15: 8 | P15: 9 | Q15: 13 | R15: 10
A16: 51 | B16: 74 | C16: 46 | D16: 73 | E16: 54 | F16: 46 | G16: 37 | H16: 69 | J16: 60 | K16: 19 | L16: 14 | M16: 5 | N16: 19 | O16: 19 | P16: 13 | Q16: 15 | R16: 19
A17: 57 | B17: 73 | C17: 70 | D17: 55 | E17: 89 | F17: 37 | G17: 65 | H17: 30 | J17: 70 | K17: 21 | L17: 18 | M17: 25 | N17: 23 | O17: 23 | P17: 29 | Q17: 23 | R17: 24
A18: 19 | B18: 60 | C18: 18 | D18: 81 | E18: 25 | F18: 81 | G18: 70 | H18: 63 | J18: 80 | K18: 15 | L18: 16 | M18: 19 | N18: 16 | O18: 16 | P18: 12 | Q18: 16 | R18: 13
A19: 50 | B19: 99 | C19: 62 | D19: 77 | E19: 39 | F19: 65 | G19: 54 | H19: 52 | J19: 90 | K19: 8 | L19: 17 | M19: 10 | N19: 10 | O19: 13 | P19: 9 | Q19: 10 | R19: 6
A20: 74 | B20: 78 | C20: 97 | D20: 72 | E20: 66 | F20: 62 | G20: 49 | H20: 51 | J20: 100 | K20: 4 | L20: 5 | M20: 6 | N20: 3 | O20: 5 | P20: 5 | Q20: 4 | R20: 2
A21: 26 | B21: 74 | C21: 71 | D21: 74 | E21: 59 | F21: 34 | G21: 70 | H21: 68
A22: 61 | B22: 66 | C22: 86 | D22: 81 | E22: 60 | F22: 76 | G22: 72 | H22: 52
A23: 81 | B23: 78 | C23: 73 | D23: 36 | E23: 54 | F23: 53 | G23: 73 | H23: 65 | K23: Label Formula: =MAX(K11:R20)&CHAR(10)&CHAR(10)&0
A24: 25 | B24: 97 | C24: 49 | D24: 62 | E24: 70 | F24: 67 | G24: 49 | H24: 56 | K24: 1 | L24: & is join symbol
A25: 59 | B25: 68 | C25: 61 | D25: 69 | E25: 51 | F25: 92 | G25: 94 | H25: 45 | K25: 2 | L25: CHAR(10) formula element adds a Hard Return to formula
A26: 85 | B26: 98 | C26: 31 | D26: 84 | E26: 54 | F26: 66 | G26: 73 | H26: 55
A27: =CHOOSE(RANDBETWEEN(1,10),RANDBETWEEN(0,100),RANDBETWEEN(10,100),RANDBETWEEN(20,100),RANDBETWEEN(30,95),RANDBETWEEN(30,90),RANDBETWEEN(35,85),RANDBETWEEN(40,80),RANDBETWEEN(50,75),RANDBETWEEN(50,75),RANDBETWEEN(60,85)) -> 69 | B27: 39 | C27: 97 | D27: 58 | E27: 54 | F27: 59 | G27: 45 | H27: 61
A28: 46 | B28: 45 | C28: 72 | D28: 41 | E28: 74 | F28: 29 | G28: 64 | H28: 60
A29: 32 | B29: 69 | C29: 61 | D29: 71 | E29: 96 | F29: 59 | G29: 64 | H29: 61
A30: 81 | B30: 68 | C30: 69 | D30: 69 | E30: 59 | F30: 77 | G30: 51 | H30: 41
A31: 56 | B31: 73 | C31: 30 | D31: 66 | E31: 63 | F31: 98 | G31: 78 | H31: 65
A32: 33 | B32: 30 | C32: 69 | D32: 50 | E32: 43 | F32: 70 | G32: 49 | H32: 69
A33: 67 | B33: 54 | C33: 85 | D33: 66 | E33: 78 | F33: 64 | G33: 87 | H33: 65
A34: 73 | B34: 85 | C34: 75 | D34: 72 | E34: 21 | F34: 63 | G34: 95 | H34: 62
A35: 32 | B35: 64 | C35: 47 | D35: 40 | E35: 53 | F35: 55 | G35: 72 | H35: 56
A36: 69 | B36: 49 | C36: 18 | D36: 48 | E36: 80 | F36: 28 | G36: 68 | H36: 25
A37: 50 | B37: 63 | C37: 37 | D37: 68 | E37: 12 | F37: 50 | G37: 35 | H37: 75
A38: 60 | B38: 1 | C38: 56 | D38: 82 | E38: 99 | F38: 65 | G38: 82 | H38: 63
A39: 60 | B39: 57 | C39: 67 | D39: 67 | E39: 83 | F39: 59 | G39: 64 | H39: 30
A40: 77 | B40: 92 | C40: 44 | D40: 68 | E40: 78 | F40: 49 | G40: 70 | H40: 55
A41: 67 | B41: 48 | C41: 77 | D41: 81 | E41: 60 | F41: 38 | G41: 56 | H41: 54
A42: 59 | B42: 3 | C42: 79 | D42: 49 | E42: 62 | F42: 72 | G42: 67 | H42: 64
A43: =CHOOSE(RANDBETWEEN(1,10),RANDBETWEEN(0,100),RANDBETWEEN(10,100),RANDBETWEEN(20,100),RANDBETWEEN(30,95),RANDBETWEEN(30,90),RANDBETWEEN(35,85),RANDBETWEEN(40,80),RANDBETWEEN(50,75),RANDBETWEEN(50,75),RANDBETWEEN(60,85)) -> 65 | B43: 33 | C43: 69 | D43: 95 | E43: 50 | F43: 34 | G43: 51 | H43: 40
A44: 68 | B44: 62 | C44: 64 | D44: 29 | E44: 58 | F44: 75 | G44: 88 | H44: 90
A45: 70 | B45: 99 | C45: 84 | D45: 52 | E45: 53 | F45: 55 | G45: 52 | H45: 77
A46: 67 | B46: 67 | C46: 60 | D46: 70 | E46: 91 | F46: 69 | G46: 41 | H46: 71
A47: 79 | B47: 71 | C47: 75 | D47: 84 | E47: 66 | F47: 58 | G47: 74 | H47: 39
A48: 6 | B48: 63 | C48: 37 | D48: 42 | E48: 53 | F48: 63 | G48: 65 | H48: 75
A49: 63 | B49: 52 | C49: 99 | D49: 80 | E49: 83 | F49: 44 | G49: 50 | H49: 57
A50: 51 | B50: 61 | C50: 38 | D50: 52 | E50: 60 | F50: 70 | G50: 22 | H50: 24
A51: 58 | B51: 82 | C51: 38 | D51: 51 | E51: 69 | F51: 62 | G51: 67 | H51: 42
A52: 73 | B52: 73 | C52: 96 | D52: 71 | E52: 44 | F52: 42 | G52: 84 | H52: 60
A53: 80 | B53: 74 | C53: 81 | D53: 59 | E53: 61 | F53: 61 | G53: 56 | H53: 78
A54: 34 | B54: 26 | C54: 63 | D54: 49 | E54: 53 | F54: 63 | G54: 83 | H54: 68
A55: 28 | B55: 57 | C55: 38 | D55: 40 | E55: 80 | F55: 65 | G55: 82 | H55: 51
A56: 82 | B56: 74 | C56: 18 | D56: 45 | E56: 42 | F56: 54 | G56: 67 | H56: 20
A57: 38 | B57: 55 | C57: 64 | D57: 86 | E57: 73 | F57: 80 | G57: 73 | H57: 11
A58: 72 | B58: 53 | C58: 67 | D58: 50 | E58: 71 | F58: 78 | G58: 69 | H58: 73
A59: =CHOOSE(RANDBETWEEN(1,10),RANDBETWEEN(0,100),RANDBETWEEN(10,100),RANDBETWEEN(20,100),RANDBETWEEN(30,95),RANDBETWEEN(30,90),RANDBETWEEN(35,85),RANDBETWEEN(40,80),RANDBETWEEN(50,75),RANDBETWEEN(50,75),RANDBETWEEN(60,85)) -> 60 | B59: 85 | C59: 55 | D59: 55 | E59: 47 | F59: 70 | G59: 66 | H59: 82
A60: 16 | B60: 55 | C60: 67 | D60: 73 | E60: 62 | F60: 36 | G60: 52 | H60: 44
A61: 49 | B61: 51 | C61: 80 | D61: 51 | E61: 20 | F61: 86 | G61: 25 | H61: 69
A62: 52 | B62: 86 | C62: 74 | D62: 62 | E62: 84 | F62: 80 | G62: 47 | H62: 47
A63: 75 | B63: 75 | C63: 82 | D63: 61 | E63: 57 | F63: 50 | G63: 48 | H63: 71
A64: 74 | B64: 64 | C64: 65 | D64: 60 | E64: 34 | F64: 81 | G64: 50 | H64: 15
A65: 68 | B65: 66 | C65: 79 | D65: 63 | E65: 74 | F65: 24 | G65: 10 | H65: 72
A66: 95 | B66: 81 | C66: 64 | D66: 70 | E66: 74 | F66: 77 | G66: 50 | H66: 54
A67: 41 | B67: 50 | C67: 13 | D67: 57 | E67: 77 | F67: 60 | G67: 79 | H67: 67
A68: 52 | B68: 83 | C68: 82 | D68: 58 | E68: 69 | F68: 53 | G68: 77 | H68: 31
A69: 68 | B69: 82 | C69: 54 | D69: 71 | E69: 66 | F69: 81 | G69: 53 | H69: 64
A70: 70 | B70: 54 | C70: 92 | D70: 81 | E70: 83 | F70: 35 | G70: 54 | H70: 90
A71: 41 | B71: 10 | C71: 69 | D71: 55 | E71: 100 | F71: 79 | G71: 80 | H71: 60
A72: 64 | B72: 86 | C72: 10 | D72: 67 | E72: 56 | F72: 88 | G72: 75 | H72: 12
A73: 75 | B73: 80 | C73: 62 | D73: 56 | E73: 67 | F73: 84 | G73: 67 | H73: 45
A74: 91 | B74: 68 | C74: 62 | D74: 50 | E74: 84 | F74: 45 | G74: 55 | H74: 54
A75: =CHOOSE(RANDBETWEEN(1,10),RANDBETWEEN(0,100),RANDBETWEEN(10,100),RANDBETWEEN(20,100),RANDBETWEEN(30,95),RANDBETWEEN(30,90),RANDBETWEEN(35,85),RANDBETWEEN(40,80),RANDBETWEEN(50,75),RANDBETWEEN(50,75),RANDBETWEEN(60,85)) -> 45 | B75: 84 | C75: 75 | D75: 78 | E75: 86 | F75: 74 | G75: 71 | H75: 64
A76: 83 | B76: 67 | C76: 68 | D76: 80 | E76: 70 | F76: 34 | G76: 66 | H76: 34
A77: 51 | B77: 35 | C77: 83 | D77: 56 | E77: 68 | F77: 65 | G77: 37 | H77: 67
A78: 68 | B78: 83 | C78: 94 | D78: 64 | E78: 83 | F78: 84 | G78: 30 | H78: 63
A79: 79 | B79: 61 | C79: 65 | D79: 74 | E79: 43 | F79: 54 | G79: 64 | H79: 76
A80: 42 | B80: 46 | C80: 72 | D80: 66 | E80: 53 | F80: 66 | G80: 43 | H80: 51
A81: 56 | B81: 84 | C81: 69 | D81: 39 | E81: 67 | F81: 63 | G81: 84 | H81: 69
A82: 47 | B82: 36 | C82: 36 | D82: 78 | E82: 79 | F82: 75 | G82: 68 | H82: 75
A83: 58 | B83: 55 | C83: 73 | D83: 85 | E83: 62 | F83: 61 | G83: 55 | H83: 61
A84: 66 | B84: 72 | C84: 81 | D84: 56 | E84: 89 | F84: 70 | G84: 66 | H84: 92
A85: 35 | B85: 19 | C85: 53 | D85: 53 | E85: 65 | F85: 90 | G85: 82 | H85: 62
A86: 78 | B86: 49 | C86: 11 | D86: 55 | E86: 68 | F86: 28 | G86: 24 | H86: 40
A87: 89 | B87: 46 | C87: 81 | D87: 65 | E87: 32 | F87: 68 | G87: 55 | H87: 71
A88: 57 | B88: 83 | C88: 43 | D88: 95 | E88: 73 | F88: 64 | G88: 84 | H88: 80
A89: 51 | B89: 79 | C89: 72 | D89: 51 | E89: 68 | F89: 75 | G89: 67 | H89: 82
A90: 62 | B90: 28 | C90: 63 | D90: 50 | E90: 11 | F90: 96 | G90: 78 | H90: 35
A91: =CHOOSE(RANDBETWEEN(1,10),RANDBETWEEN(0,100),RANDBETWEEN(10,100),RANDBETWEEN(20,100),RANDBETWEEN(30,95),RANDBETWEEN(30,90),RANDBETWEEN(35,85),RANDBETWEEN(40,80),RANDBETWEEN(50,75),RANDBETWEEN(50,75),RANDBETWEEN(60,85)) -> 40 | B91: 46 | C91: 49 | D91: 69 | E91: 72 | F91: 62 | G91: 73 | H91: 44
A92: 96 | B92: 62 | C92: 45 | D92: 31 | E92: 45 | F92: 69 | G92: 95 | H92: 85
A93: 75 | B93: 43 | C93: 63 | D93: 64 | E93: 52 | F93: 48 | G93: 67 | H93: 43
A94: 61 | B94: 65 | C94: 81 | D94: 23 | E94: 67 | F94: 61 | G94: 24 | H94: 44
A95: 50 | B95: 48 | C95: 49 | D95: 50 | E95: 69 | F95: 95 | G95: 39 | H95: 62
A96: 62 | B96: 84 | C96: 73 | D96: 69 | E96: 50 | F96: 58 | G96: 57 | H96: 39
A97: 82 | B97: 65 | C97: 68 | D97: 76 | E97: 84 | F97: 36 | G97: 39 | H97: 6
A98: 51 | B98: 82 | C98: 45 | D98: 56 | E98: 73 | F98: 68 | G98: 58 | H98: 26
A99: 71 | B99: 40 | C99: 25 | D99: 50 | E99: 89 | F99: 53 | G99: 35 | H99: 54
A100: 39 | B100: 84 | C100: 62 | D100: 82 | E100: 67 | F100: 46 | G100: 58 | H100: 81
A101: 74 | B101: 60 | C101: 7 | D101: 95 | E101: 22 | F101: 31 | G101: 41 | H101: 67
A102: 21 | B102: 80 | C102: 75 | D102: 63 | E102: 90 | F102: 21 | G102: 45 | H102: 34
A103: 86 | B103: 80 | C103: 72 | D103: 76 | E103: 75 | F103: 37 | G103: 99 | H103: 40

Sheet Ctrl Keyboard
B1: Day1 | C1: Day2 | D1: Day3 | E1: Day4 | F1: Total | H1: Transpose Table
A2: Prod1 | B2: 52 | C2: 28 | D2: 13 | E2: 36 | F2: =SUM(B2:E2) -> 129 | I2: Ctrl + C
A3: Prod2 | B3: 48 | C3: 45 | D3: 81 | E3: 7 | F3: 181 | H3: 1 | I3: Paste Button in Home Ribbon, Transpose icon
A4: Prod3 | B4: 62 | C4: 69 | D4: 50 | E4: 50 | F4: 231 | H4: 2 | I4: Ctrl + V, then use Smart Tag
A5: Prod4 | B5: 57 | C5: 77 | D5: 22 | E5: 13 | F5: 169 | H5: 3 | I5: Ctrl + V, Ctrl, T
A6: Prod5 | B6: 90 | C6: 4 | D6: 78 | E6: 48 | F6: 220 | H6: 4 | I6: Right-Click Key, T, Enter
A7: Total | B7: =SUM(B2:B6) -> 309 | C7: =SUM(C2:C6) -> 223 | D7: =SUM(D2:D6) -> 244 | E7: =SUM(E2:E6) -> 154 | F7: 930 | H7: Paste Special Values
I8: Ctrl + C
H9: 1 | I9: Right-Click Key, V
H10: 2 | I10: Without Copying: Right-click edge of
I11: cell/s, drag to new location, release
I12: right-click, point to drop-down menu
I13: "Copy Her As Values"
H14: Other videos on this topic:
H15: Excel 2010 Preview #2: Copy & Paste Special Magic

Sheet Ctrl Keyboard (an)
B1: Day1 | C1: Day2 | D1: Day3 | E1: Day4 | F1: Total | H1: Transpose Table
A2: Prod1 | B2: 52 | C2: 28 | D2: 13 | E2: 36 | F2: =SUM(B2:E2) -> 129 | I2: Ctrl + C
A3: Prod2 | B3: 48 | C3: 45 | D3: 81 | E3: 7 | F3: 181 | H3: 1 | I3: Paste Button in Home Ribbon, Transpose icon
A4: Prod3 | B4: 62 | C4: 69 | D4: 50 | E4: 50 | F4: 231 | H4: 2 | I4: Ctrl + V, then use Smart Tag
A5: Prod4 | B5: 57 | C5: 77 | D5: 22 | E5: 13 | F5: 169 | H5: 3 | I5: Ctrl + V, Ctrl, T
A6: Prod5 | B6: 90 | C6: 4 | D6: 78 | E6: 48 | F6: 220 | H6: 4 | I6: Right-Click Key, T, Enter
A7: Total | B7: =SUM(B2:B6) -> 309 | C7: =SUM(C2:C6) -> 223 | D7: =SUM(D2:D6) -> 244 | E7: =SUM(E2:E6) -> 154 | F7: 930 | H7: Paste Special Values
I8: Ctrl + C
B9: Prod1 | C9: Prod2 | D9: Prod3 | E9: Prod4 | F9: Prod5 | G9: Total | H9: 1 | I9: Right-Click Key, V
A10: Day1 | B10: 52 | C10: 48 | D10: 62 | E10: 57 | F10: 90 | G10: =SUM(B10:F10) -> 309 | H10: 2 | I10: Without Copying: Right-click edge of
A11: Day2 | B11: 28 | C11: 45 | D11: 69 | E11: 77 | F11: 4 | G11: =SUM(B11:F11) -> 223 | I11: cell/s, drag to new location, release
A12: Day3 | B12: 13 | C12: 81 | D12: 50 | E12: 22 | F12: 78 | G12: =SUM(B12:F12) -> 244 | I12: right-click, point to drop-down menu
A13: Day4 | B13: 36 | C13: 7 | D13: 50 | E13: 13 | F13: 48 | G13: =SUM(B13:F13) -> 154 | I13: "Copy Her As Values"
A14: Total | B14: =SUM(B10:B13) -> 129 | C14: 181 | D14: 231 | E14: 169 | F14: 220 | G14: 930 | H14: Other videos on this topic:
H15: Excel 2010 Preview #2: Copy & Paste Special Magic
B16: 930 | C16: 930 | E16: 129
E17: 181
E18: 231
E19: 169
E20: 220
E21: 930

Sheet PT Slicers
A1: Create PT on New Sheet: Alt, N, V, T, Enter
A2: Drag Date to Row Labels
A3: Group Date by Year and Month: Right-click, Group
A4: Drag Sales to Values area
A5: Old Method: Drag Product, Customer, SalesRep fields to Report Filter
A6: New Method: PivotTable Tools Options Ribbon Tab: Insert Slicer
A7: Move and Size Slicers with Mouse
A8: Slicers Tools Options Ribbon Tab: Change Colors
A9: Use Ctrl Key to Select items not next to each other
A10: Grayed out items mean there were none
A12: Other videos on this topic:
A13: Excel 2010 Preview #4: Pivot Table Slicer (Report/Page Filter Slicer)
A14: Office 2010 Class #36: Excel PivotTables Pivot Tables 15 examples (Data Analysis)
A16: Date | B16: Product | C16: Customer | D16: SalesRep | E16: Units | F16: Sales
A17: 2008-01-02 | B17: Sunshine | C17: Albertsons | D17: Fred | E17: 5 | F17: 68.75
A18: 2008-07-30 | B18: Quad | C18: PCC | D18: Sioux | E18: 18 | F18: 247.5
A19: 2008-11-30 | B19: Carlota | C19: Albertsons | D19: Sue | E19: 22 | F19: 302.5
A20: 2009-04-21 | B20: SunBell | C20: QFC | D20: Jo | E20: 8 | F20: 110
A21: 2009-12-31 | B21: Sunset | C21: QFC | D21: Sioux | E21: 20 | F21: 275
A22: 2008-01-26 | B22: Tri | C22: WholeFoods | D22: Sioux | E22: 11 | F22: 151.25
A23: 2009-03-27 | B23: Sunset | C23: WholeFoods | D23: Jo | E23: 25 | F23: 343.75
A24: 2008-01-28 | B24: Bellen | C24: WholeFoods | D24: Pham | E24: 7 | F24: 96.25
A25: 2009-04-07 | B25: Bellen | C25: Albertsons | D25: Pham | E25: 15 | F25: 206.25
A26: 2009-01-19 | B26: Sunshine | C26: Albertsons | D26: Pham | E26: 17 | F26: 233.75
A27: 2008-02-22 | B27: Carlota | C27: PCC | D27: Chin | E27: 15 | F27: 206.25
A28: 2008-10-05 | B28: Carlota | C28: QFC | D28: Pham | E28: 3 | F28: 41.25
A29: 2009-01-12 | B29: SunBell | C29: TraderJoe's | D29: Joe | E29: 17 | F29: 233.75
A30: 2009-04-17 | B30: Tri | C30: QFC | D30: Pham | E30: 14 | F30: 192.5
A31: 2008-09-26 | B31: Sunshine | C31: Albertsons | D31: Sioux | E31: 14 | F31: 192.5
A32: 2008-01-13 | B32: Sunshine | C32: Coop | D32: Joe | E32: 14 | F32: 192.5
A33: 2008-10-02 | B33: Tri | C33: QFC | D33: Jo | E33: 17 | F33: 233.75
A34: 2008-10-09 | B34: SunBell | C34: Safeway | D34: Joe | E34: 21 | F34: 288.75
A35: 2009-10-28 | B35: SunBell | C35: Safeway | D35: Jo | E35: 14 | F35: 192.5
A36: 2009-11-06 | B36: Sunshine | C36: WholeFoods | D36: Pham | E36: 4 | F36: 55
A37: 2008-01-24 | B37: SunBell | C37: Safeway | D37: Pham | E37: 19 | F37: 261.25
A38: 2008-10-30 | B38: Tri | C38: WholeFoods | D38: Sioux | E38: 25 | F38: 343.75
A39: 2008-10-27 | B39: Sunshine | C39: PCC | D39: Pham | E39: 14 | F39: 192.5
A40: 2008-08-12 | B40: Tri | C40: WholeFoods | D40: Joe | E40: 17 | F40: 233.75
A41: 2008-11-30 | B41: Carlota | C41: Coop | D41: Fred | E41: 7 | F41: 96.25
A42: 2008-01-01 | B42: Carlota | C42: Safeway | D42: Sioux | E42: 13 | F42: 178.75
A43: 2009-12-03 | B43: Quad | C43: QFC | D43: Sue | E43: 7 | F43: 96.25
A44: 2008-05-28 | B44: Tri | C44: Coop | D44: Joe | E44: 21 | F44: 288.75
A45: 2009-08-06 | B45: Tri | C45: PCC | D45: Joe | E45: 19 | F45: 261.25
A46: 2008-07-13 | B46: Quad | C46: PCC | D46: Joe | E46: 16 | F46: 220
A47: 2009-04-21 | B47: Tri | C47: QFC | D47: Pham | E47: 23 | F47: 316.25
A48: 2009-04-26 | B48: Tri | C48: Albertsons | D48: Joe | E48: 2 | F48: 27.5
A49: 2008-08-26 | B49: Tri | C49: QFC | D49: Chin | E49: 2 | F49: 27.5
A50: 2008-12-12 | B50: SunBell | C50: PCC | D50: Joe | E50: 14 | F50: 192.5
A51: 2009-02-05 | B51: Carlota | C51: PCC | D51: Fred | E51: 15 | F51: 206.25
A52: 2008-10-02 | B52: Sunset | C52: WholeFoods | D52: Fred | E52: 1 | F52: 13.75
A53: 2009-04-29 | B53: Sunset | C53: WholeFoods | D53: Fred | E53: 17 | F53: 233.75
A54: 2009-08-13 | B54: Carlota | C54: Coop | D54: Pham | E54: 7 | F54: 96.25
A55: 2008-08-15 | B55: SunBell | C55: Coop | D55: Chin | E55: 4 | F55: 55
A56: 2009-04-30 | B56: Bellen | C56: QFC | D56: Sioux | E56: 24 | F56: 330
A57: 2009-05-24 | B57: Bellen | C57: QFC | D57: Fred | E57: 15 | F57: 206.25
A58: 2009-06-08 | B58: SunBell | C58: QFC | D58: Joe | E58: 19 | F58: 261.25
A59: 2009-12-15 | B59: SunBell | C59: Coop | D59: Fred | E59: 11 | F59: 151.25
A60: 2009-12-21 | B60: Quad | C60: WholeFoods | D60: Fred | E60: 8 | F60: 110
A61: 2009-10-10 | B61: Carlota | C61: Albertsons | D61: Fred | E61: 21 | F61: 288.75
A62: 2008-07-06 | B62: Bellen | C62: Safeway | D62: Pham | E62: 22 | F62: 302.5
A63: 2008-06-21 | B63: Sunshine | C63: PCC | D63: Joe | E63: 8 | F63: 110
A64: 2009-03-02 | B64: Carlota | C64: QFC | D64: Joe | E64: 10 | F64: 137.5
A65: 2009-03-16 | B65: Carlota | C65: Coop | D65: Sue | E65: 16 | F65: 220
A66: 2008-12-09 | B66: Tri | C66: Safeway | D66: Chin | E66: 15 | F66: 206.25
A67: 2009-12-04 | B67: Sunset | C67: PCC | D67: Jo | E67: 23 | F67: 316.25
A68: 2008-07-18 | B68: Bellen | C68: WholeFoods | D68: Jo | E68: 15 | F68: 206.25
A69: 2009-11-24 | B69: Tri | C69: TraderJoe's | D69: Sioux | E69: 14 | F69: 192.5
A70: 2008-04-25 | B70: Sunset | C70: QFC | D70: Joe | E70: 2 | F70: 27.5
A71: 2009-08-17 | B71: Tri | C71: WholeFoods | D71: Sue | E71: 2 | F71: 27.5
A72: 2008-11-03 | B72: Quad | C72: WholeFoods | D72: Chin | E72: 3 | F72: 41.25
A73: 2009-09-06 | B73: SunBell | C73: WholeFoods | D73: Chin | E73: 4 | F73: 55
A74: 2008-12-30 | B74: Carlota | C74: Safeway | D74: Sue | E74: 20 | F74: 275
A75: 2008-02-14 | B75: Sunshine | C75: TraderJoe's | D75: Jo | E75: 1 | F75: 13.75
A76: 2008-11-01 | B76: Tri | C76: QFC | D76: Fred | E76: 13 | F76: 178.75
A77: 2009-01-01 | B77: Quad | C77: WholeFoods | D77: Sioux | E77: 23 | F77: 316.25
A78: 2008-03-07 | B78: SunBell | C78: QFC | D78: Joe | E78: 16 | F78: 220
A79: 2008-06-29 | B79: Carlota | C79: Coop | D79: Chin | E79: 17 | F79: 233.75
A80: 2008-10-12 | B80: Sunshine | C80: Coop | D80: Fred | E80: 18 | F80: 247.5
A81: 2008-06-10 | B81: Carlota | C81: Albertsons | D81: Pham | E81: 25 | F81: 343.75
A82: 2009-07-25 | B82: Sunset | C82: PCC | D82: Chin | E82: 2 | F82: 27.5
A83: 2008-11-29 | B83: SunBell | C83: WholeFoods | D83: Sue | E83: 1 | F83: 13.75
A84: 2008-04-07 | B84: SunBell | C84: Coop | D84: Fred | E84: 18 | F84: 247.5
A85: 2008-01-14 | B85: Carlota | C85: WholeFoods | D85: Sioux | E85: 23 | F85: 316.25
A86: 2009-08-30 | B86: Sunshine | C86: WholeFoods | D86: Pham | E86: 4 | F86: 55
A87: 2008-08-17 | B87: Sunshine | C87: Coop | D87: Jo | E87: 12 | F87: 165
A88: 2008-12-19 | B88: Sunshine | C88: QFC | D88: Sue | E88: 24 | F88: 330
A89: 2008-02-19 | B89: Carlota | C89: Safeway | D89: Pham | E89: 10 | F89: 137.5
A90: 2008-03-03 | B90: Carlota | C90: TraderJoe's | D90: Sioux | E90: 15 | F90: 206.25
A91: 2009-04-07 | B91: Sunshine | C91: Safeway | D91: Sue | E91: 17 | F91: 233.75
A92: 2009-10-04 | B92: Carlota | C92: Albertsons | D92: Sue | E92: 13 | F92: 178.75
A93: 2008-09-01 | B93: Bellen | C93: Safeway | D93: Sue | E93: 10 | F93: 137.5
A94: 2009-07-12 | B94: Sunset | C94: TraderJoe's | D94: Jo | E94: 20 | F94: 275
A95: 2008-10-04 | B95: SunBell | C95: Albertsons | D95: Fred | E95: 20 | F95: 275
A96: 2009-11-20 | B96: Quad | C96: Coop | D96: Joe | E96: 1 | F96: 13.75
A97: 2008-10-27 | B97: SunBell | C97: TraderJoe's | D97: Chin | E97: 4 | F97: 55
A98: 2008-02-11 | B98: SunBell | C98: WholeFoods | D98: Fred | E98: 18 | F98: 247.5
A99: 2009-08-26 | B99: Carlota | C99: PCC | D99: Fred | E99: 10 | F99: 137.5
A100: 2008-03-08 | B100: Sunshine | C100: TraderJoe's | D100: Sue | E100: 6 | F100: 82.5
A101: 2008-12-05 | B101: Quad | C101: TraderJoe's | D101: Fred | E101: 12 | F101: 165
A102: 2008-01-02 | B102: SunBell | C102: Coop | D102: Pham | E102: 19 | F102: 261.25
A103: 2009-10-09 | B103: Sunshine | C103: WholeFoods | D103: Sue | E103: 1 | F103: 13.75
A104: 2009-03-02 | B104: Sunshine | C104: PCC | D104: Jo | E104: 10 | F104: 137.5
A105: 2008-11-11 | B105: SunBell | C105: PCC | D105: Fred | E105: 5 | F105: 68.75
A106: 2008-03-18 | B106: Sunshine | C106: Coop | D106: Jo | E106: 10 | F106: 137.5
A107: 2008-01-05 | B107: Bellen | C107: PCC | D107: Sue | E107: 16 | F107: 220
A108: 2009-01-03 | B108: Bellen | C108: TraderJoe's | D108: Chin | E108: 3 | F108: 41.25
A109: 2009-04-26 | B109: SunBell | C109: TraderJoe's | D109: Pham | E109: 20 | F109: 275
A110: 2008-11-10 | B110: Sunset | C110: TraderJoe's | D110: Pham | E110: 18 | F110: 247.5
A111: 2008-09-27 | B111: SunBell | C111: Safeway | D111: Joe | E111: 9 | F111: 123.75
A112: 2009-01-19 | B112: Quad | C112: TraderJoe's | D112: Fred | E112: 7 | F112: 96.25
A113: 2008-09-06 | B113: Quad | C113: Safeway | D113: Joe | E113: 4 | F113: 55
A114: 2008-02-22 | B114: Sunshine | C114: Albertsons | D114: Pham | E114: 12 | F114: 165
A115: 2008-03-31 | B115: Bellen | C115: QFC | D115: Chin | E115: 25 | F115: 343.75
A116: 2009-08-02 | B116: Quad | C116: PCC | D116: Sioux | E116: 10 | F116: 137.5
A117: 2008-12-03 | B117: Bellen | C117: Albertsons | D117: Pham | E117: 2 | F117: 27.5
A118: 2008-05-20 | B118: Sunshine | C118: Safeway | D118: Jo | E118: 22 | F118: 302.5
A119: 2009-03-26 | B119: Bellen | C119: QFC | D119: Sioux | E119: 21 | F119: 288.75
A120: 2008-12-31 | B120: Sunset | C120: QFC | D120: Sioux | E120: 3 | F120: 41.25
A121: 2009-11-05 | B121: Sunshine | C121: Safeway | D121: Jo | E121: 20 | F121: 275
A122: 2008-12-06 | B122: Sunset | C122: Coop | D122: Jo | E122: 16 | F122: 220
A123: 2008-04-03 | B123: Quad | C123: QFC | D123: Joe | E123: 8 | F123: 110
A124: 2009-09-19 | B124: Sunshine | C124: TraderJoe's | D124: Pham | E124: 24 | F124: 330
A125: 2008-01-07 | B125: Bellen | C125: PCC | D125: Chin | E125: 12 | F125: 165
A126: 2008-11-10 | B126: Quad | C126: TraderJoe's | D126: Chin | E126: 17 | F126: 233.75
A127: 2008-04-30 | B127: Carlota | C127: WholeFoods | D127: Fred | E127: 1 | F127: 13.75
A128: 2009-04-28 | B128: Tri | C128: WholeFoods | D128: Sue | E128: 2 | F128: 27.5
A129: 2009-12-16 | B129: Tri | C129: WholeFoods | D129: Jo | E129: 21 | F129: 288.75
A130: 2009-03-20 | B130: Sunshine | C130: PCC | D130: Joe | E130: 15 | F130: 206.25
A131: 2009-03-01 | B131: Tri | C131: Safeway | D131: Fred | E131: 24 | F131: 330
A132: 2009-01-13 | B132: Tri | C132: Safeway | D132: Chin | E132: 24 | F132: 330
A133: 2008-09-12 | B133: Quad | C133: Albertsons | D133: Sioux | E133: 6 | F133: 82.5
A134: 2008-07-12 | B134: Sunset | C134: WholeFoods | D134: Sioux | E134: 12 | F134: 165
A135: 2008-01-03 | B135: Quad | C135: Safeway | D135: Pham | E135: 1 | F135: 13.75
A136: 2008-11-11 | B136: Quad | C136: Coop | D136: Chin | E136: 21 | F136: 288.75
A137: 2009-07-24 | B137: Carlota | C137: Albertsons | D137: Fred | E137: 23 | F137: 316.25
A138: 2008-10-01 | B138: Quad | C138: Albertsons | D138: Jo | E138: 17 | F138: 233.75
A139: 2008-12-21 | B139: SunBell | C139: QFC | D139: Pham | E139: 12 | F139: 165
A140: 2008-01-14 | B140: Tri | C140: TraderJoe's | D140: Jo | E140: 1 | F140: 13.75
A141: 2008-01-15 | B141: Tri | C141: Coop | D141: Pham | E141: 6 | F141: 82.5
A142: 2009-08-29 | B142: Carlota | C142: PCC | D142: Jo | E142: 18 | F142: 247.5
A143: 2008-08-27 | B143: SunBell | C143: WholeFoods | D143: Jo | E143: 8 | F143: 110
A144: 2008-07-22 | B144: Sunshine | C144: Safeway | D144: Pham | E144: 11 | F144: 151.25
A145: 2009-01-29 | B145: Carlota | C145: PCC | D145: Fred | E145: 6 | F145: 82.5
A146: 2009-03-08 | B146: Sunset | C146: TraderJoe's | D146: Sue | E146: 18 | F146: 247.5
A147: 2009-12-12 | B147: Tri | C147: Safeway | D147: Fred | E147: 8 | F147: 110
A148: 2009-09-22 | B148: Sunset | C148: PCC | D148: Chin | E148: 11 | F148: 151.25
A149: 2009-12-11 | B149: Tri | C149: WholeFoods | D149: Chin | E149: 2 | F149: 27.5
A150: 2008-03-22 | B150: Carlota | C150: Albertsons | D150: Sioux | E150: 22 | F150: 302.5
A151: 2009-08-24 | B151: Quad | C151: TraderJoe's | D151: Sioux | E151: 21 | F151: 288.75
A152: 2009-08-28 | B152: Bellen | C152: TraderJoe's | D152: Chin | E152: 11 | F152: 151.25
A153: 2008-08-15 | B153: Sunshine | C153: Coop | D153: Jo | E153: 6 | F153: 82.5
A154: 2009-06-26 | B154: Sunshine | C154: Coop | D154: Jo | E154: 25 | F154: 343.75
A155: 2008-03-17 | B155: Bellen | C155: Coop | D155: Pham | E155: 2 | F155: 27.5
A156: 2008-03-14 | B156: Bellen | C156: Safeway | D156: Joe | E156: 15 | F156: 206.25
A157: 2009-08-11 | B157: Quad | C157: WholeFoods | D157: Sue | E157: 21 | F157: 288.75
A158: 2008-05-08 | B158: Tri | C158: QFC | D158: Sioux | E158: 5 | F158: 68.75
A159: 2008-07-30 | B159: Carlota | C159: WholeFoods | D159: Sue | E159: 13 | F159: 178.75
A160: 2008-10-24 | B160: Carlota | C160: Safeway | D160: Pham | E160: 13 | F160: 178.75
A161: 2008-12-14 | B161: Tri | C161: Safeway | D161: Joe | E161: 9 | F161: 123.75
A162: 2008-05-15 | B162: Sunshine | C162: Safeway | D162: Sue | E162: 18 | F162: 247.5
A163: 2009-05-15 | B163: Carlota | C163: Albertsons | D163: Chin | E163: 8 | F163: 110
A164: 2009-04-23 | B164: Tri | C164: QFC | D164: Sue | E164: 7 | F164: 96.25
A165: 2009-03-21 | B165: Sunset | C165: PCC | D165: Chin | E165: 6 | F165: 82.5
A166: 2009-07-22 | B166: SunBell | C166: Coop | D166: Sioux | E166: 7 | F166: 96.25
A167: 2009-05-13 | B167: Tri | C167: PCC | D167: Sioux | E167: 14 | F167: 192.5
A168: 2008-12-17 | B168: Quad | C168: PCC | D168: Joe | E168: 24 | F168: 330
A169: 2008-03-12 | B169: Quad | C169: QFC | D169: Joe | E169: 17 | F169: 233.75
A170: 2008-06-10 | B170: Carlota | C170: QFC | D170: Chin | E170: 5 | F170: 68.75
A171: 2008-04-09 | B171: Bellen | C171: TraderJoe's | D171: Sue | E171: 1 | F171: 13.75
A172: 2008-04-08 | B172: Carlota | C172: WholeFoods | D172: Sue | E172: 14 | F172: 192.5
A173: 2008-02-11 | B173: Sunshine | C173: PCC | D173: Jo | E173: 12 | F173: 165
A174: 2009-06-08 | B174: Sunset | C174: PCC | D174: Sioux | E174: 25 | F174: 343.75
A175: 2008-12-03 | B175: Carlota | C175: Albertsons | D175: Jo | E175: 3 | F175: 41.25
A176: 2009-04-26 | B176: Bellen | C176: PCC | D176: Jo | E176: 14 | F176: 192.5
A177: 2008-04-13 | B177: Tri | C177: PCC | D177: Jo | E177: 6 | F177: 82.5
A178: 2009-12-23 | B178: Carlota | C178: Albertsons | D178: Fred | E178: 17 | F178: 233.75
A179: 2008-02-06 | B179: SunBell | C179: Albertsons | D179: Sioux | E179: 23 | F179: 316.25
A180: 2008-03-15 | B180: Bellen | C180: PCC | D180: Fred | E180: 4 | F180: 55
A181: 2009-06-03 | B181: Sunset | C181: WholeFoods | D181: Sue | E181: 20 | F181: 275
A182: 2009-04-04 | B182: Carlota | C182: QFC | D182: Sioux | E182: 16 | F182: 220
A183: 2009-06-14 | B183: Sunset | C183: WholeFoods | D183: Jo | E183: 19 | F183: 261.25
A184: 2009-04-21 | B184: Sunshine | C184: Safeway | D184: Sue | E184: 16 | F184: 220
A185: 2009-06-16 | B185: Sunshine | C185: WholeFoods | D185: Joe | E185: 1 | F185: 13.75
A186: 2009-02-16 | B186: SunBell | C186: PCC | D186: Jo | E186: 11 | F186: 151.25
A187: 2008-05-04 | B187: Tri | C187: Coop | D187: Sioux | E187: 18 | F187: 247.5
A188: 2009-09-26 | B188: Tri | C188: Safeway | D188: Fred | E188: 10 | F188: 137.5
A189: 2008-12-04 | B189: Carlota | C189: Albertsons | D189: Fred | E189: 14 | F189: 192.5
A190: 2009-07-15 | B190: Carlota | C190: WholeFoods | D190: Pham | E190: 11 | F190: 151.25
A191: 2009-11-28 | B191: Carlota | C191: Albertsons | D191: Pham | E191: 20 | F191: 275
A192: 2008-07-25 | B192: Sunset | C192: Coop | D192: Fred | E192: 21 | F192: 288.75
A193: 2008-03-31 | B193: Carlota | C193: TraderJoe's | D193: Sue | E193: 17 | F193: 233.75
A194: 2009-10-25 | B194: Sunshine | C194: WholeFoods | D194: Sue | E194: 16 | F194: 220
A195: 2009-08-11 | B195: Bellen | C195: PCC | D195: Jo | E195: 6 | F195: 82.5
A196: 2009-09-29 | B196: Tri | C196: Albertsons | D196: Pham | E196: 3 | F196: 41.25
A197: 2009-02-18 | B197: Tri | C197: QFC | D197: Pham | E197: 7 | F197: 96.25
A198: 2009-06-21 | B198: Carlota | C198: Coop | D198: Joe | E198: 8 | F198: 110
A199: 2008-02-05 | B199: Sunset | C199: Safeway | D199: Chin | E199: 16 | F199: 220
A200: 2009-03-03 | B200: Bellen | C200: QFC | D200: Joe | E200: 19 | F200: 261.25
A201: 2009-07-14 | B201: Tri | C201: WholeFoods | D201: Joe | E201: 17 | F201: 233.75
A202: 2008-04-21 | B202: Sunset | C202: Safeway | D202: Sioux | E202: 11 | F202: 151.25
... 293 more rows

Sheet PT Slicers (an)
A3: Years | B3: Date | C3: Sum of Sales
A4: 2008 | B4: Mar | C4: 343.75
B5: Jul | C5: 316.25
B6: Dec | C6: 165
A7: 2009 | B7: Feb | C7: 123.75
B8: Mar | C8: 550
B9: Apr | C9: 330
B10: May | C10: 206.25
B11: Jul | C11: 261.25
A12: Grand Total | C12: 2296.25

Sheet New Print
A1: Print Options and Print Preview are combined
A2: WARNING: Red x in upper right corner closed Excel
A3: Ctrl + P and Ctrl F2 (old Print Preview keyboard) open New Print
A5: Years | B5: Rate | C5: Periods per year | D5: Loan | E5: Total Periods | F5: Period Rate | G5: PMT
A6: 30 | B6: 0.0475 | C6: 12 | D6: 250000 | E6: =C6*A6 -> 360 | F6: =B6/C6 -> 0.003958333333 | G6: =-PMT(F6,E6,D6) -> 1304.118341
A8: Period | B8: PMT | C8: Interest | D8: Principal Paid | E8: Balance
A9: 0 | E9: =D6 -> 250000
A10: 1 | B10: =G$6 -> 1304.118341 | C10: =E9*F$6 -> 989.5833333 | D10: =B10-C10 -> 314.5350079 | E10: =E9-D10 -> 249685.465
A11: 2 | B11: =G$6 -> 1304.118341 | C11: =E10*F$6 -> 988.3382989 | D11: =B11-C11 -> 315.7800423 | E11: 249369.6849
A12: 3 | B12: 1304.118341 | C12: 987.0883363 | D12: 317.030005 | E12: 249052.6549
A13: 4 | B13: 1304.118341 | C13: 985.8334258 | D13: 318.2849154 | E13: 248734.37
A14: 5 | B14: 1304.118341 | C14: 984.573548 | D14: 319.5447932 | E14: 248414.8252
A15: 6 | B15: 1304.118341 | C15: 983.3086832 | D15: 320.809658 | E15: 248094.0156
A16: 7 | B16: 1304.118341 | C16: 982.0388117 | D16: 322.0795296 | E16: 247771.936
A17: 8 | B17: 1304.118341 | C17: 980.7639135 | D17: 323.3544277 | E17: 247448.5816
A18: 9 | B18: 1304.118341 | C18: 979.4839689 | D18: 324.6343723 | E18: 247123.9472
A19: 10 | B19: 1304.118341 | C19: 978.1989579 | D19: 325.9193834 | E19: 246798.0279
A20: 11 | B20: 1304.118341 | C20: 976.9088603 | D20: 327.209481 | E20: 246470.8184
A21: 12 | B21: 1304.118341 | C21: 975.6136561 | D21: 328.5046852 | E21: 246142.3137
A22: 13 | B22: 1304.118341 | C22: 974.3133251 | D22: 329.8050162 | E22: 245812.5087
A23: 14 | B23: 1304.118341 | C23: 973.0078469 | D23: 331.1104944 | E23: 245481.3982
A24: 15 | B24: 1304.118341 | C24: 971.6972012 | D24: 332.4211401 | E24: 245148.977
A25: 16 | B25: 1304.118341 | C25: 970.3813675 | D25: 333.7369738 | E25: 244815.2401
A26: 17 | B26: 1304.118341 | C26: 969.0603253 | D26: 335.058016 | E26: 244480.1821
A27: 18 | B27: 1304.118341 | C27: 967.734054 | D27: 336.3842873 | E27: 244143.7978
A28: 19 | B28: 1304.118341 | C28: 966.4025328 | D28: 337.7158084 | E28: 243806.082
A29: 20 | B29: 1304.118341 | C29: 965.0657411 | D29: 339.0526002 | E29: 243467.0294
A30: 21 | B30: 1304.118341 | C30: 963.7236579 | D30: 340.3946834 | E30: 243126.6347
A31: 22 | B31: 1304.118341 | C31: 962.3762623 | D31: 341.742079 | E31: 242784.8926
A32: 23 | B32: 1304.118341 | C32: 961.0235332 | D32: 343.094808 | E32: 242441.7978
A33: 24 | B33: 1304.118341 | C33: 959.6654496 | D33: 344.4528917 | E33: 242097.3449
A34: 25 | B34: 1304.118341 | C34: 958.3019902 | D34: 345.816351 | E34: 241751.5285
A35: 26 | B35: 1304.118341 | C35: 956.9331338 | D35: 347.1852074 | E35: 241404.3433
A36: 27 | B36: 1304.118341 | C36: 955.5588591 | D36: 348.5594822 | E36: 241055.7839
A37: 28 | B37: 1304.118341 | C37: 954.1791444 | D37: 349.9391968 | E37: 240705.8447
A38: 29 | B38: 1304.118341 | C38: 952.7939685 | D38: 351.3243728 | E38: 240354.5203
A39: 30 | B39: 1304.118341 | C39: 951.4033095 | D39: 352.7150318 | E39: 240001.8053
A40: 31 | B40: 1304.118341 | C40: 950.0071458 | D40: 354.1111954 | E40: 239647.6941
A41: 32 | B41: 1304.118341 | C41: 948.6054557 | D41: 355.5128856 | E41: 239292.1812
A42: 33 | B42: 1304.118341 | C42: 947.1982172 | D42: 356.9201241 | E42: 238935.2611
A43: 34 | B43: 1304.118341 | C43: 945.7854083 | D43: 358.3329329 | E43: 238576.9281
A44: 35 | B44: 1304.118341 | C44: 944.3670071 | D44: 359.7513341 | E44: 238217.1768
A45: 36 | B45: 1304.118341 | C45: 942.9429914 | D45: 361.1753498 | E45: 237856.0014
A46: 37 | B46: 1304.118341 | C46: 941.513339 | D46: 362.6050022 | E46: 237493.3964
A47: 38 | B47: 1304.118341 | C47: 940.0780276 | D47: 364.0403137 | E47: 237129.3561
A48: 39 | B48: 1304.118341 | C48: 938.6370346 | D48: 365.4813066 | E48: 236763.8748
A49: 40 | B49: 1304.118341 | C49: 937.1903378 | D49: 366.9280035 | E49: 236396.9468
A50: 41 | B50: 1304.118341 | C50: 935.7379145 | D50: 368.3804268 | E50: 236028.5664
A51: 42 | B51: 1304.118341 | C51: 934.2797419 | D51: 369.8385993 | E51: 235658.7278
A52: 43 | B52: 1304.118341 | C52: 932.8157975 | D52: 371.3025438 | E52: 235287.4252
A53: 44 | B53: 1304.118341 | C53: 931.3460582 | D53: 372.772283 | E53: 234914.653
A54: 45 | B54: 1304.118341 | C54: 929.8705013 | D54: 374.24784 | E54: 234540.4051
A55: 46 | B55: 1304.118341 | C55: 928.3891036 | D55: 375.7292377 | E55: 234164.6759
A56: 47 | B56: 1304.118341 | C56: 926.901842 | D56: 377.2164992 | E56: 233787.4594
A57: 48 | B57: 1304.118341 | C57: 925.4086934 | D57: 378.7096479 | E57: 233408.7497
A58: 49 | B58: 1304.118341 | C58: 923.9096344 | D58: 380.2087069 | E58: 233028.541
A59: 50 | B59: 1304.118341 | C59: 922.4046416 | D59: 381.7136997 | E59: 232646.8273
A60: 51 | B60: 1304.118341 | C60: 920.8936915 | D60: 383.2246498 | E60: 232263.6027
A61: 52 | B61: 1304.118341 | C61: 919.3767606 | D61: 384.7415807 | E61: 231878.8611
A62: 53 | B62: 1304.118341 | C62: 917.8538252 | D62: 386.2645161 | E62: 231492.5966
A63: 54 | B63: 1304.118341 | C63: 916.3248615 | D63: 387.7934798 | E63: 231104.8031
A64: 55 | B64: 1304.118341 | C64: 914.7898456 | D64: 389.3284957 | E64: 230715.4746
A65: 56 | B65: 1304.118341 | C65: 913.2487536 | D65: 390.8695876 | E65: 230324.605
A66: 57 | B66: 1304.118341 | C66: 911.7015615 | D66: 392.4167797 | E66: 229932.1882
A67: 58 | B67: 1304.118341 | C67: 910.1482451 | D67: 393.9700962 | E67: 229538.2181
A68: 59 | B68: 1304.118341 | C68: 908.5887801 | D68: 395.5295611 | E68: 229142.6886
A69: 60 | B69: 1304.118341 | C69: 907.0231423 | D69: 397.095199 | E69: 228745.5934
A70: 61 | B70: 1304.118341 | C70: 905.4513071 | D70: 398.6670341 | E70: 228346.9263
A71: 62 | B71: 1304.118341 | C71: 903.8732501 | D71: 400.2450911 | E71: 227946.6813
A72: 63 | B72: 1304.118341 | C72: 902.2889466 | D72: 401.8293946 | E72: 227544.8519
A73: 64 | B73: 1304.118341 | C73: 900.6983719 | D73: 403.4199693 | E73: 227141.4319
A74: 65 | B74: 1304.118341 | C74: 899.1015012 | D74: 405.01684 | E74: =E73-D74 -> 226736.4151
A75: 66 | B75: =G$6 -> 1304.118341 | C75: =E74*F$6 -> 897.4983096 | D75: =B75-C75 -> 406.6200317 | E75: 226329.795
A76: 67 | B76: 1304.118341 | C76: 895.888772 | D76: 408.2295693 | E76: 225921.5655
A77: 68 | B77: 1304.118341 | C77: 894.2728632 | D77: 409.845478 | E77: 225511.72
A78: 69 | B78: 1304.118341 | C78: 892.6505582 | D78: 411.467783 | E78: 225100.2522
A79: 70 | B79: 1304.118341 | C79: 891.0218316 | D79: 413.0965097 | E79: 224687.1557
A80: 71 | B80: 1304.118341 | C80: 889.3866579 | D80: 414.7316834 | E80: =E79-D80 -> 224272.424
A81: 72 | B81: 1304.118341 | C81: 887.7450117 | D81: 416.3733296 | E81: =E80-D81 -> 223856.0507
A82: 73 | B82: 1304.118341 | C82: 886.0968672 | D82: 418.021474 | E82: 223438.0292
A83: 74 | B83: 1304.118341 | C83: 884.4421989 | D83: 419.6761424 | E83: 223018.3531
A84: 75 | B84: 1304.118341 | C84: 882.7809808 | D84: 421.3373604 | E84: 222597.0157
A85: 76 | B85: 1304.118341 | C85: 881.1131871 | D85: 423.0051542 | E85: 222174.0105
A86: 77 | B86: 1304.118341 | C86: 879.4387917 | D86: 424.6795496 | E86: 221749.331
A87: 78 | B87: 1304.118341 | C87: 877.7577685 | D87: 426.3605728 | E87: 221322.9704
A88: 79 | B88: 1304.118341 | C88: 876.0700912 | D88: 428.04825 | E88: 220894.9222
A89: 80 | B89: 1304.118341 | C89: 874.3757336 | D89: 429.7426077 | E89: 220465.1796
A90: 81 | B90: 1304.118341 | C90: 872.6746691 | D90: 431.4436722 | E90: 220033.7359
A91: 82 | B91: 1304.118341 | C91: 870.9668712 | D91: 433.1514701 | E91: 219600.5844
A92: 83 | B92: 1304.118341 | C92: 869.2523133 | D92: 434.866028 | E92: 219165.7184
A93: 84 | B93: 1304.118341 | C93: 867.5309686 | D93: 436.5873726 | E93: 218729.131
A94: 85 | B94: 1304.118341 | C94: 865.8028103 | D94: 438.315531 | E94: 218290.8155
A95: 86 | B95: 1304.118341 | C95: 864.0678113 | D95: 440.05053 | E95: 217850.765
A96: 87 | B96: 1304.118341 | C96: 862.3259446 | D96: 441.7923967 | E96: 217408.9726
A97: 88 | B97: 1304.118341 | C97: 860.577183 | D97: 443.5411582 | E97: 216965.4314
A98: 89 | B98: 1304.118341 | C98: 858.8214993 | D98: 445.296842 | E98: 216520.1346
A99: 90 | B99: 1304.118341 | C99: 857.0588659 | D99: 447.0594753 | E99: 216073.0751
A100: 91 | B100: 1304.118341 | C100: 855.2892555 | D100: 448.8290857 | E100: 215624.246
A101: 92 | B101: 1304.118341 | C101: 853.5126404 | D101: 450.6057009 | E101: 215173.6403
A102: 93 | B102: 1304.118341 | C102: 851.7289928 | D102: 452.3893484 | E102: 214721.2509
A103: 94 | B103: 1304.118341 | C103: 849.938285 | D103: 454.1800563 | E103: 214267.0709
A104: 95 | B104: 1304.118341 | C104: 848.1404889 | D104: 455.9778523 | E104: 213811.093
A105: 96 | B105: 1304.118341 | C105: 846.3355766 | D105: 457.7827647 | E105: 213353.3103
A106: 97 | B106: 1304.118341 | C106: 844.5235198 | D106: 459.5948214 | E106: 212893.7155
A107: 98 | B107: 1304.118341 | C107: 842.7042903 | D107: 461.4140509 | E107: 212432.3014
A108: 99 | B108: 1304.118341 | C108: 840.8778597 | D108: 463.2404816 | E108: 211969.0609
A109: 100 | B109: 1304.118341 | C109: 839.0441995 | D109: 465.0741418 | E109: 211503.9868
A110: 101 | B110: 1304.118341 | C110: 837.203281 | D110: 466.9150603 | E110: 211037.0717
A111: 102 | B111: 1304.118341 | C111: 835.3550755 | D111: 468.7632657 | E111: 210568.3084
A112: 103 | B112: 1304.118341 | C112: 833.4995543 | D112: 470.618787 | E112: 210097.6897
A113: 104 | B113: 1304.118341 | C113: 831.6366882 | D113: 472.481653 | E113: 209625.208
A114: 105 | B114: 1304.118341 | C114: 829.7664484 | D114: 474.3518929 | E114: 209150.8561
A115: 106 | B115: 1304.118341 | C115: 827.8888055 | D115: 476.2295358 | E115: 208674.6266
A116: 107 | B116: 1304.118341 | C116: 826.0037302 | D116: 478.114611 | E116: 208196.512
A117: 108 | B117: 1304.118341 | C117: 824.1111932 | D117: 480.007148 | E117: 207716.5048
A118: 109 | B118: 1304.118341 | C118: 822.2111649 | D118: 481.9071763 | E118: 207234.5976
A119: 110 | B119: 1304.118341 | C119: 820.3036157 | D119: 483.8147256 | E119: 206750.7829
A120: 111 | B120: 1304.118341 | C120: 818.3885157 | D120: 485.7298255 | E120: 206265.0531
A121: 112 | B121: 1304.118341 | C121: 816.4658352 | D121: 487.6525061 | E121: 205777.4006
A122: 113 | B122: 1304.118341 | C122: 814.535544 | D122: 489.5827973 | E122: 205287.8178
A123: 114 | B123: 1304.118341 | C123: 812.5976121 | D123: 491.5207292 | E123: 204796.2971
A124: 115 | B124: 1304.118341 | C124: 810.6520092 | D124: 493.4663321 | E124: 204302.8307
A125: 116 | B125: 1304.118341 | C125: 808.698705 | D125: 495.4196363 | E125: 203807.4111
A126: 117 | B126: 1304.118341 | C126: 806.7376689 | D126: 497.3806723 | E126: 203310.0304
A127: 118 | B127: 1304.118341 | C127: 804.7688704 | D127: 499.3494708 | E127: 202810.681
A128: 119 | B128: 1304.118341 | C128: 802.7922788 | D128: 501.3260625 | E128: 202309.3549
A129: 120 | B129: 1304.118341 | C129: 800.8078631 | D129: 503.3104782 | E129: 201806.0444
A130: 121 | B130: 1304.118341 | C130: 798.8155925 | D130: 505.3027488 | E130: 201300.7417
A131: 122 | B131: 1304.118341 | C131: 796.8154357 | D131: 507.3029055 | E131: 200793.4388
A132: 123 | B132: 1304.118341 | C132: 794.8073617 | D132: 509.3109795 | E132: 200284.1278
A133: 124 | B133: 1304.118341 | C133: 792.7913391 | D133: 511.3270021 | E133: 199772.8008
A134: 125 | B134: 1304.118341 | C134: 790.7673364 | D134: 513.3510049 | E134: 199259.4498
A135: 126 | B135: 1304.118341 | C135: 788.735322 | D135: 515.3830193 | E135: 198744.0667
A136: 127 | B136: 1304.118341 | C136: 786.6952642 | D136: 517.423077 | E136: 198226.6437
A137: 128 | B137: 1304.118341 | C137: 784.6471312 | D137: 519.4712101 | E137: 197707.1725
A138: 129 | B138: 1304.118341 | C138: 782.590891 | D138: 521.5274503 | E138: 197185.645
A139: 130 | B139: =G$6 -> 1304.118341 | C139: =E138*F$6 -> 780.5265115 | D139: =B139-C139 -> 523.5918297 | E139: 196662.0532
A140: 131 | B140: 1304.118341 | C140: 778.4539605 | D140: 525.6643807 | E140: 196136.3888
A141: 132 | B141: 1304.118341 | C141: 776.3732057 | D141: 527.7451356 | E141: 195608.6437
A142: 133 | B142: 1304.118341 | C142: 774.2842145 | D142: 529.8341267 | E142: 195078.8095
A143: 134 | B143: 1304.118341 | C143: 772.1869544 | D143: 531.9313868 | E143: 194546.8782
A144: 135 | B144: 1304.118341 | C144: 770.0813927 | D144: 534.0369486 | E144: 194012.8412
A145: 136 | B145: 1304.118341 | C145: 767.9674964 | D145: 536.1508448 | E145: =E144-D145 -> 193476.6904
A146: 137 | B146: 1304.118341 | C146: 765.8452327 | D146: 538.2731086 | E146: 192938.4173
A147: 138 | B147: 1304.118341 | C147: 763.7145683 | D147: 540.403773 | E147: 192398.0135
A148: 139 | B148: 1304.118341 | C148: 761.57547 | D148: 542.5428712 | E148: 191855.4706
A149: 140 | B149: 1304.118341 | C149: 759.4279045 | D149: 544.6904368 | E149: 191310.7802
A150: 141 | B150: 1304.118341 | C150: 757.2718382 | D150: 546.8465031 | E150: 190763.9337
A151: 142 | B151: 1304.118341 | C151: 755.1072374 | D151: 549.0111038 | E151: 190214.9226
A152: 143 | B152: 1304.118341 | C152: 752.9340685 | D152: 551.1842728 | E152: 189663.7383
A153: 144 | B153: 1304.118341 | C153: 750.7522974 | D153: 553.3660439 | E153: 189110.3722
A154: 145 | B154: 1304.118341 | C154: 748.5618901 | D154: 555.5564511 | E154: 188554.8158
A155: 146 | B155: 1304.118341 | C155: 746.3628125 | D155: 557.7555287 | E155: 187997.0603
A156: 147 | B156: 1304.118341 | C156: 744.1550302 | D156: 559.963311 | E156: 187437.097
A157: 148 | B157: 1304.118341 | C157: 741.9385088 | D157: 562.1798325 | E157: 186874.9171
A158: 149 | B158: 1304.118341 | C158: 739.7132136 | D158: 564.4051276 | E158: 186310.512
A159: 150 | B159: 1304.118341 | C159: 737.47911 | D159: 566.6392313 | E159: 185743.8728
A160: 151 | B160: 1304.118341 | C160: 735.236163 | D160: 568.8821782 | E160: 185174.9906
A161: 152 | B161: 1304.118341 | C161: 732.9843377 | D161: 571.1340035 | E161: 184603.8566
A162: 153 | B162: 1304.118341 | C162: 730.723599 | D162: 573.3947423 | E162: 184030.4618
A163: 154 | B163: 1304.118341 | C163: 728.4539115 | D163: 575.6644298 | E163: 183454.7974
A164: 155 | B164: 1304.118341 | C164: 726.1752397 | D164: 577.9431015 | E164: 182876.8543
A165: 156 | B165: 1304.118341 | C165: 723.8875483 | D165: 580.230793 | E165: 182296.6235
A166: 157 | B166: 1304.118341 | C166: 721.5908014 | D166: 582.5275398 | E166: 181714.096
A167: 158 | B167: 1304.118341 | C167: 719.2849632 | D167: 584.833378 | E167: 181129.2626
A168: 159 | B168: 1304.118341 | C168: 716.9699978 | D168: 587.1483435 | E168: 180542.1143
A169: 160 | B169: 1304.118341 | C169: 714.6458689 | D169: 589.4724723 | E169: 179952.6418
A170: 161 | B170: 1304.118341 | C170: 712.3125404 | D170: 591.8058009 | E170: 179360.836
A171: 162 | B171: 1304.118341 | C171: 709.9699758 | D171: 594.1483655 | E171: 178766.6876
A172: 163 | B172: 1304.118341 | C172: 707.6181385 | D172: 596.5002028 | E172: 178170.1874
A173: 164 | B173: 1304.118341 | C173: 705.2569918 | D173: 598.8613494 | E173: 177571.3261
A174: 165 | B174: 1304.118341 | C174: 702.886499 | D174: 601.2318423 | E174: 176970.0942
A175: 166 | B175: 1304.118341 | C175: 700.506623 | D175: 603.6117183 | E175: 176366.4825
A176: 167 | B176: 1304.118341 | C176: 698.1173266 | D176: 606.0010147 | E176: 175760.4815
A177: 168 | B177: 1304.118341 | C177: 695.7185726 | D177: 608.3997687 | E177: 175152.0817
A178: 169 | B178: 1304.118341 | C178: 693.3103235 | D178: 610.8080178 | E178: 174541.2737
A179: 170 | B179: 1304.118341 | C179: 690.8925417 | D179: 613.2257995 | E179: 173928.0479
A180: 171 | B180: 1304.118341 | C180: 688.4651896 | D180: 615.6531516 | E180: 173312.3948
A181: 172 | B181: 1304.118341 | C181: 686.0282292 | D181: 618.090112 | E181: 172694.3046
A182: 173 | B182: 1304.118341 | C182: 683.5816225 | D182: 620.5367187 | E182: 172073.7679
A183: 174 | B183: 1304.118341 | C183: 681.1253313 | D183: 622.9930099 | E183: 171450.7749
A184: 175 | B184: 1304.118341 | C184: 678.6593174 | D184: 625.4590239 | E184: 170825.3159
A185: 176 | B185: 1304.118341 | C185: 676.183542 | D185: 627.9347992 | E185: 170197.3811
A186: 177 | B186: 1304.118341 | C186: 673.6979668 | D186: 630.4203745 | E186: 169566.9607
A187: 178 | B187: 1304.118341 | C187: 671.2025528 | D187: 632.9157884 | E187: 168934.0449
A188: 179 | B188: 1304.118341 | C188: 668.6972612 | D188: 635.4210801 | E188: 168298.6238
A189: 180 | B189: 1304.118341 | C189: 666.1820527 | D189: 637.9362885 | E189: 167660.6876
A190: 181 | B190: 1304.118341 | C190: 663.6568882 | D190: 640.461453 | E190: 167020.2261
A191: 182 | B191: 1304.118341 | C191: 661.1217283 | D191: 642.9966129 | E191: 166377.2295
A192: 183 | B192: 1304.118341 | C192: 658.5765334 | D192: 645.5418079 | E192: 165731.6877
A193: 184 | B193: 1304.118341 | C193: 656.0212637 | D193: 648.0970775 | E193: 165083.5906
A194: 185 | B194: 1304.118341 | C194: 653.4558795 | D194: 650.6624618 | E194: 164432.9281
A195: 186 | B195: 1304.118341 | C195: 650.8803406 | D195: 653.2380007 | E195: 163779.6901
A196: 187 | B196: 1304.118341 | C196: 648.2946068 | D196: 655.8237344 | E196: 163123.8664
A197: 188 | B197: 1304.118341 | C197: 645.6986379 | D197: 658.4197034 | E197: 162465.4467
A198: 189 | B198: 1304.118341 | C198: 643.0923932 | D198: 661.0259481 | E198: 161804.4208
A199: 190 | B199: 1304.118341 | C199: 640.4758322 | D199: 663.6425091 | E199: 161140.7782
A200: 191 | B200: 1304.118341 | C200: 637.8489139 | D200: 666.2694274 | E200: 160474.5088
A201: 192 | B201: 1304.118341 | C201: 635.2115974 | D201: 668.9067438 | E201: 159805.6021
A202: 193 | B202: 1304.118341 | C202: 632.5638415 | D202: 671.5544997 | E202: 159134.0476
... 167 more rows

Sheet New Print (an)
A1: Print Options and Print Preview are combined
A2: WARNING: Red x in upper right corner closed Excel
A3: Ctrl + P and Ctrl F2 (old Print Preview keyboard) open New Print
A5: Years | B5: Rate | C5: Periods per year | D5: Loan | E5: Total Periods | F5: Period Rate | G5: PMT
A6: 30 | B6: 0.0475 | C6: 12 | D6: 250000 | E6: =C6*A6 -> 360 | F6: =B6/C6 -> 0.003958333333 | G6: =-PMT(F6,E6,D6) -> 1304.118341
A8: Period | B8: PMT | C8: Interest | D8: Principal Paid | E8: Balance
A9: 0 | E9: =D6 -> 250000
A10: 1 | B10: =G$6 -> 1304.118341 | C10: =E9*F$6 -> 989.5833333 | D10: =B10-C10 -> 314.5350079 | E10: =E9-D10 -> 249685.465
A11: 2 | B11: =G$6 -> 1304.118341 | C11: =E10*F$6 -> 988.3382989 | D11: =B11-C11 -> 315.7800423 | E11: 249369.6849
A12: 3 | B12: 1304.118341 | C12: 987.0883363 | D12: 317.030005 | E12: 249052.6549
A13: 4 | B13: 1304.118341 | C13: 985.8334258 | D13: 318.2849154 | E13: 248734.37
A14: 5 | B14: 1304.118341 | C14: 984.573548 | D14: 319.5447932 | E14: 248414.8252
A15: 6 | B15: 1304.118341 | C15: 983.3086832 | D15: 320.809658 | E15: 248094.0156
A16: 7 | B16: 1304.118341 | C16: 982.0388117 | D16: 322.0795296 | E16: 247771.936
A17: 8 | B17: 1304.118341 | C17: 980.7639135 | D17: 323.3544277 | E17: 247448.5816
A18: 9 | B18: 1304.118341 | C18: 979.4839689 | D18: 324.6343723 | E18: 247123.9472
A19: 10 | B19: 1304.118341 | C19: 978.1989579 | D19: 325.9193834 | E19: 246798.0279
A20: 11 | B20: 1304.118341 | C20: 976.9088603 | D20: 327.209481 | E20: 246470.8184
A21: 12 | B21: 1304.118341 | C21: 975.6136561 | D21: 328.5046852 | E21: 246142.3137
A22: 13 | B22: 1304.118341 | C22: 974.3133251 | D22: 329.8050162 | E22: 245812.5087
A23: 14 | B23: 1304.118341 | C23: 973.0078469 | D23: 331.1104944 | E23: 245481.3982
A24: 15 | B24: 1304.118341 | C24: 971.6972012 | D24: 332.4211401 | E24: 245148.977
A25: 16 | B25: 1304.118341 | C25: 970.3813675 | D25: 333.7369738 | E25: 244815.2401
A26: 17 | B26: 1304.118341 | C26: 969.0603253 | D26: 335.058016 | E26: 244480.1821
A27: 18 | B27: 1304.118341 | C27: 967.734054 | D27: 336.3842873 | E27: 244143.7978
A28: 19 | B28: 1304.118341 | C28: 966.4025328 | D28: 337.7158084 | E28: 243806.082
A29: 20 | B29: 1304.118341 | C29: 965.0657411 | D29: 339.0526002 | E29: 243467.0294
A30: 21 | B30: 1304.118341 | C30: 963.7236579 | D30: 340.3946834 | E30: 243126.6347
A31: 22 | B31: 1304.118341 | C31: 962.3762623 | D31: 341.742079 | E31: 242784.8926
A32: 23 | B32: 1304.118341 | C32: 961.0235332 | D32: 343.094808 | E32: 242441.7978
A33: 24 | B33: 1304.118341 | C33: 959.6654496 | D33: 344.4528917 | E33: 242097.3449
A34: 25 | B34: 1304.118341 | C34: 958.3019902 | D34: 345.816351 | E34: 241751.5285
A35: 26 | B35: 1304.118341 | C35: 956.9331338 | D35: 347.1852074 | E35: 241404.3433
A36: 27 | B36: 1304.118341 | C36: 955.5588591 | D36: 348.5594822 | E36: 241055.7839
A37: 28 | B37: 1304.118341 | C37: 954.1791444 | D37: 349.9391968 | E37: 240705.8447
A38: 29 | B38: 1304.118341 | C38: 952.7939685 | D38: 351.3243728 | E38: 240354.5203
A39: 30 | B39: 1304.118341 | C39: 951.4033095 | D39: 352.7150318 | E39: 240001.8053
A40: 31 | B40: 1304.118341 | C40: 950.0071458 | D40: 354.1111954 | E40: 239647.6941
A41: 32 | B41: 1304.118341 | C41: 948.6054557 | D41: 355.5128856 | E41: 239292.1812
A42: 33 | B42: 1304.118341 | C42: 947.1982172 | D42: 356.9201241 | E42: 238935.2611
A43: 34 | B43: 1304.118341 | C43: 945.7854083 | D43: 358.3329329 | E43: 238576.9281
A44: 35 | B44: 1304.118341 | C44: 944.3670071 | D44: 359.7513341 | E44: 238217.1768
A45: 36 | B45: 1304.118341 | C45: 942.9429914 | D45: 361.1753498 | E45: 237856.0014
A46: 37 | B46: 1304.118341 | C46: 941.513339 | D46: 362.6050022 | E46: 237493.3964
A47: 38 | B47: 1304.118341 | C47: 940.0780276 | D47: 364.0403137 | E47: 237129.3561
A48: 39 | B48: 1304.118341 | C48: 938.6370346 | D48: 365.4813066 | E48: 236763.8748
A49: 40 | B49: 1304.118341 | C49: 937.1903378 | D49: 366.9280035 | E49: 236396.9468
A50: 41 | B50: 1304.118341 | C50: 935.7379145 | D50: 368.3804268 | E50: 236028.5664
A51: 42 | B51: 1304.118341 | C51: 934.2797419 | D51: 369.8385993 | E51: 235658.7278
A52: 43 | B52: 1304.118341 | C52: 932.8157975 | D52: 371.3025438 | E52: 235287.4252
A53: 44 | B53: 1304.118341 | C53: 931.3460582 | D53: 372.772283 | E53: 234914.653
A54: 45 | B54: 1304.118341 | C54: 929.8705013 | D54: 374.24784 | E54: 234540.4051
A55: 46 | B55: 1304.118341 | C55: 928.3891036 | D55: 375.7292377 | E55: 234164.6759
A56: 47 | B56: 1304.118341 | C56: 926.901842 | D56: 377.2164992 | E56: 233787.4594
A57: 48 | B57: 1304.118341 | C57: 925.4086934 | D57: 378.7096479 | E57: 233408.7497
A58: 49 | B58: 1304.118341 | C58: 923.9096344 | D58: 380.2087069 | E58: 233028.541
A59: 50 | B59: 1304.118341 | C59: 922.4046416 | D59: 381.7136997 | E59: 232646.8273
A60: 51 | B60: 1304.118341 | C60: 920.8936915 | D60: 383.2246498 | E60: 232263.6027
A61: 52 | B61: 1304.118341 | C61: 919.3767606 | D61: 384.7415807 | E61: 231878.8611
A62: 53 | B62: 1304.118341 | C62: 917.8538252 | D62: 386.2645161 | E62: 231492.5966
A63: 54 | B63: 1304.118341 | C63: 916.3248615 | D63: 387.7934798 | E63: 231104.8031
A64: 55 | B64: 1304.118341 | C64: 914.7898456 | D64: 389.3284957 | E64: 230715.4746
A65: 56 | B65: 1304.118341 | C65: 913.2487536 | D65: 390.8695876 | E65: 230324.605
A66: 57 | B66: 1304.118341 | C66: 911.7015615 | D66: 392.4167797 | E66: 229932.1882
A67: 58 | B67: 1304.118341 | C67: 910.1482451 | D67: 393.9700962 | E67: 229538.2181
A68: 59 | B68: 1304.118341 | C68: 908.5887801 | D68: 395.5295611 | E68: 229142.6886
A69: 60 | B69: 1304.118341 | C69: 907.0231423 | D69: 397.095199 | E69: 228745.5934
A70: 61 | B70: 1304.118341 | C70: 905.4513071 | D70: 398.6670341 | E70: 228346.9263
A71: 62 | B71: 1304.118341 | C71: 903.8732501 | D71: 400.2450911 | E71: 227946.6813
A72: 63 | B72: 1304.118341 | C72: 902.2889466 | D72: 401.8293946 | E72: 227544.8519
A73: 64 | B73: 1304.118341 | C73: 900.6983719 | D73: 403.4199693 | E73: 227141.4319
A74: 65 | B74: 1304.118341 | C74: 899.1015012 | D74: 405.01684 | E74: =E73-D74 -> 226736.4151
A75: 66 | B75: =G$6 -> 1304.118341 | C75: =E74*F$6 -> 897.4983096 | D75: =B75-C75 -> 406.6200317 | E75: 226329.795
A76: 67 | B76: 1304.118341 | C76: 895.888772 | D76: 408.2295693 | E76: 225921.5655
A77: 68 | B77: 1304.118341 | C77: 894.2728632 | D77: 409.845478 | E77: 225511.72
A78: 69 | B78: 1304.118341 | C78: 892.6505582 | D78: 411.467783 | E78: 225100.2522
A79: 70 | B79: 1304.118341 | C79: 891.0218316 | D79: 413.0965097 | E79: 224687.1557
A80: 71 | B80: 1304.118341 | C80: 889.3866579 | D80: 414.7316834 | E80: =E79-D80 -> 224272.424
A81: 72 | B81: 1304.118341 | C81: 887.7450117 | D81: 416.3733296 | E81: =E80-D81 -> 223856.0507
A82: 73 | B82: 1304.118341 | C82: 886.0968672 | D82: 418.021474 | E82: 223438.0292
A83: 74 | B83: 1304.118341 | C83: 884.4421989 | D83: 419.6761424 | E83: 223018.3531
A84: 75 | B84: 1304.118341 | C84: 882.7809808 | D84: 421.3373604 | E84: 222597.0157
A85: 76 | B85: 1304.118341 | C85: 881.1131871 | D85: 423.0051542 | E85: 222174.0105
A86: 77 | B86: 1304.118341 | C86: 879.4387917 | D86: 424.6795496 | E86: 221749.331
A87: 78 | B87: 1304.118341 | C87: 877.7577685 | D87: 426.3605728 | E87: 221322.9704
A88: 79 | B88: 1304.118341 | C88: 876.0700912 | D88: 428.04825 | E88: 220894.9222
A89: 80 | B89: 1304.118341 | C89: 874.3757336 | D89: 429.7426077 | E89: 220465.1796
A90: 81 | B90: 1304.118341 | C90: 872.6746691 | D90: 431.4436722 | E90: 220033.7359
A91: 82 | B91: 1304.118341 | C91: 870.9668712 | D91: 433.1514701 | E91: 219600.5844
A92: 83 | B92: 1304.118341 | C92: 869.2523133 | D92: 434.866028 | E92: 219165.7184
A93: 84 | B93: 1304.118341 | C93: 867.5309686 | D93: 436.5873726 | E93: 218729.131
A94: 85 | B94: 1304.118341 | C94: 865.8028103 | D94: 438.315531 | E94: 218290.8155
A95: 86 | B95: 1304.118341 | C95: 864.0678113 | D95: 440.05053 | E95: 217850.765
A96: 87 | B96: 1304.118341 | C96: 862.3259446 | D96: 441.7923967 | E96: 217408.9726
A97: 88 | B97: 1304.118341 | C97: 860.577183 | D97: 443.5411582 | E97: 216965.4314
A98: 89 | B98: 1304.118341 | C98: 858.8214993 | D98: 445.296842 | E98: 216520.1346
A99: 90 | B99: 1304.118341 | C99: 857.0588659 | D99: 447.0594753 | E99: 216073.0751
A100: 91 | B100: 1304.118341 | C100: 855.2892555 | D100: 448.8290857 | E100: 215624.246
A101: 92 | B101: 1304.118341 | C101: 853.5126404 | D101: 450.6057009 | E101: 215173.6403
A102: 93 | B102: 1304.118341 | C102: 851.7289928 | D102: 452.3893484 | E102: 214721.2509
A103: 94 | B103: 1304.118341 | C103: 849.938285 | D103: 454.1800563 | E103: 214267.0709
A104: 95 | B104: 1304.118341 | C104: 848.1404889 | D104: 455.9778523 | E104: 213811.093
A105: 96 | B105: 1304.118341 | C105: 846.3355766 | D105: 457.7827647 | E105: 213353.3103
A106: 97 | B106: 1304.118341 | C106: 844.5235198 | D106: 459.5948214 | E106: 212893.7155
A107: 98 | B107: 1304.118341 | C107: 842.7042903 | D107: 461.4140509 | E107: 212432.3014
A108: 99 | B108: 1304.118341 | C108: 840.8778597 | D108: 463.2404816 | E108: 211969.0609
A109: 100 | B109: 1304.118341 | C109: 839.0441995 | D109: 465.0741418 | E109: 211503.9868
A110: 101 | B110: 1304.118341 | C110: 837.203281 | D110: 466.9150603 | E110: 211037.0717
A111: 102 | B111: 1304.118341 | C111: 835.3550755 | D111: 468.7632657 | E111: 210568.3084
A112: 103 | B112: 1304.118341 | C112: 833.4995543 | D112: 470.618787 | E112: 210097.6897
A113: 104 | B113: 1304.118341 | C113: 831.6366882 | D113: 472.481653 | E113: 209625.208
A114: 105 | B114: 1304.118341 | C114: 829.7664484 | D114: 474.3518929 | E114: 209150.8561
A115: 106 | B115: 1304.118341 | C115: 827.8888055 | D115: 476.2295358 | E115: 208674.6266
A116: 107 | B116: 1304.118341 | C116: 826.0037302 | D116: 478.114611 | E116: 208196.512
A117: 108 | B117: 1304.118341 | C117: 824.1111932 | D117: 480.007148 | E117: 207716.5048
A118: 109 | B118: 1304.118341 | C118: 822.2111649 | D118: 481.9071763 | E118: 207234.5976
A119: 110 | B119: 1304.118341 | C119: 820.3036157 | D119: 483.8147256 | E119: 206750.7829
A120: 111 | B120: 1304.118341 | C120: 818.3885157 | D120: 485.7298255 | E120: 206265.0531
A121: 112 | B121: 1304.118341 | C121: 816.4658352 | D121: 487.6525061 | E121: 205777.4006
A122: 113 | B122: 1304.118341 | C122: 814.535544 | D122: 489.5827973 | E122: 205287.8178
A123: 114 | B123: 1304.118341 | C123: 812.5976121 | D123: 491.5207292 | E123: 204796.2971
A124: 115 | B124: 1304.118341 | C124: 810.6520092 | D124: 493.4663321 | E124: 204302.8307
A125: 116 | B125: 1304.118341 | C125: 808.698705 | D125: 495.4196363 | E125: 203807.4111
A126: 117 | B126: 1304.118341 | C126: 806.7376689 | D126: 497.3806723 | E126: 203310.0304
A127: 118 | B127: 1304.118341 | C127: 804.7688704 | D127: 499.3494708 | E127: 202810.681
A128: 119 | B128: 1304.118341 | C128: 802.7922788 | D128: 501.3260625 | E128: 202309.3549
A129: 120 | B129: 1304.118341 | C129: 800.8078631 | D129: 503.3104782 | E129: 201806.0444
A130: 121 | B130: 1304.118341 | C130: 798.8155925 | D130: 505.3027488 | E130: 201300.7417
A131: 122 | B131: 1304.118341 | C131: 796.8154357 | D131: 507.3029055 | E131: 200793.4388
A132: 123 | B132: 1304.118341 | C132: 794.8073617 | D132: 509.3109795 | E132: 200284.1278
A133: 124 | B133: 1304.118341 | C133: 792.7913391 | D133: 511.3270021 | E133: 199772.8008
A134: 125 | B134: 1304.118341 | C134: 790.7673364 | D134: 513.3510049 | E134: 199259.4498
A135: 126 | B135: 1304.118341 | C135: 788.735322 | D135: 515.3830193 | E135: 198744.0667
A136: 127 | B136: 1304.118341 | C136: 786.6952642 | D136: 517.423077 | E136: 198226.6437
A137: 128 | B137: 1304.118341 | C137: 784.6471312 | D137: 519.4712101 | E137: 197707.1725
A138: 129 | B138: 1304.118341 | C138: 782.590891 | D138: 521.5274503 | E138: 197185.645
A139: 130 | B139: =G$6 -> 1304.118341 | C139: =E138*F$6 -> 780.5265115 | D139: =B139-C139 -> 523.5918297 | E139: 196662.0532
A140: 131 | B140: 1304.118341 | C140: 778.4539605 | D140: 525.6643807 | E140: 196136.3888
A141: 132 | B141: 1304.118341 | C141: 776.3732057 | D141: 527.7451356 | E141: 195608.6437
A142: 133 | B142: 1304.118341 | C142: 774.2842145 | D142: 529.8341267 | E142: 195078.8095
A143: 134 | B143: 1304.118341 | C143: 772.1869544 | D143: 531.9313868 | E143: 194546.8782
A144: 135 | B144: 1304.118341 | C144: 770.0813927 | D144: 534.0369486 | E144: 194012.8412
A145: 136 | B145: 1304.118341 | C145: 767.9674964 | D145: 536.1508448 | E145: =E144-D145 -> 193476.6904
A146: 137 | B146: 1304.118341 | C146: 765.8452327 | D146: 538.2731086 | E146: 192938.4173
A147: 138 | B147: 1304.118341 | C147: 763.7145683 | D147: 540.403773 | E147: 192398.0135
A148: 139 | B148: 1304.118341 | C148: 761.57547 | D148: 542.5428712 | E148: 191855.4706
A149: 140 | B149: 1304.118341 | C149: 759.4279045 | D149: 544.6904368 | E149: 191310.7802
A150: 141 | B150: 1304.118341 | C150: 757.2718382 | D150: 546.8465031 | E150: 190763.9337
A151: 142 | B151: 1304.118341 | C151: 755.1072374 | D151: 549.0111038 | E151: 190214.9226
A152: 143 | B152: 1304.118341 | C152: 752.9340685 | D152: 551.1842728 | E152: 189663.7383
A153: 144 | B153: 1304.118341 | C153: 750.7522974 | D153: 553.3660439 | E153: 189110.3722
A154: 145 | B154: 1304.118341 | C154: 748.5618901 | D154: 555.5564511 | E154: 188554.8158
A155: 146 | B155: 1304.118341 | C155: 746.3628125 | D155: 557.7555287 | E155: 187997.0603
A156: 147 | B156: 1304.118341 | C156: 744.1550302 | D156: 559.963311 | E156: 187437.097
A157: 148 | B157: 1304.118341 | C157: 741.9385088 | D157: 562.1798325 | E157: 186874.9171
A158: 149 | B158: 1304.118341 | C158: 739.7132136 | D158: 564.4051276 | E158: 186310.512
A159: 150 | B159: 1304.118341 | C159: 737.47911 | D159: 566.6392313 | E159: 185743.8728
A160: 151 | B160: 1304.118341 | C160: 735.236163 | D160: 568.8821782 | E160: 185174.9906
A161: 152 | B161: 1304.118341 | C161: 732.9843377 | D161: 571.1340035 | E161: 184603.8566
A162: 153 | B162: 1304.118341 | C162: 730.723599 | D162: 573.3947423 | E162: 184030.4618
A163: 154 | B163: 1304.118341 | C163: 728.4539115 | D163: 575.6644298 | E163: 183454.7974
A164: 155 | B164: 1304.118341 | C164: 726.1752397 | D164: 577.9431015 | E164: 182876.8543
A165: 156 | B165: 1304.118341 | C165: 723.8875483 | D165: 580.230793 | E165: 182296.6235
A166: 157 | B166: 1304.118341 | C166: 721.5908014 | D166: 582.5275398 | E166: 181714.096
A167: 158 | B167: 1304.118341 | C167: 719.2849632 | D167: 584.833378 | E167: 181129.2626
A168: 159 | B168: 1304.118341 | C168: 716.9699978 | D168: 587.1483435 | E168: 180542.1143
A169: 160 | B169: 1304.118341 | C169: 714.6458689 | D169: 589.4724723 | E169: 179952.6418
A170: 161 | B170: 1304.118341 | C170: 712.3125404 | D170: 591.8058009 | E170: 179360.836
A171: 162 | B171: 1304.118341 | C171: 709.9699758 | D171: 594.1483655 | E171: 178766.6876
A172: 163 | B172: 1304.118341 | C172: 707.6181385 | D172: 596.5002028 | E172: 178170.1874
A173: 164 | B173: 1304.118341 | C173: 705.2569918 | D173: 598.8613494 | E173: 177571.3261
A174: 165 | B174: 1304.118341 | C174: 702.886499 | D174: 601.2318423 | E174: 176970.0942
A175: 166 | B175: 1304.118341 | C175: 700.506623 | D175: 603.6117183 | E175: 176366.4825
A176: 167 | B176: 1304.118341 | C176: 698.1173266 | D176: 606.0010147 | E176: 175760.4815
A177: 168 | B177: 1304.118341 | C177: 695.7185726 | D177: 608.3997687 | E177: 175152.0817
A178: 169 | B178: 1304.118341 | C178: 693.3103235 | D178: 610.8080178 | E178: 174541.2737
A179: 170 | B179: 1304.118341 | C179: 690.8925417 | D179: 613.2257995 | E179: 173928.0479
A180: 171 | B180: 1304.118341 | C180: 688.4651896 | D180: 615.6531516 | E180: 173312.3948
A181: 172 | B181: 1304.118341 | C181: 686.0282292 | D181: 618.090112 | E181: 172694.3046
A182: 173 | B182: 1304.118341 | C182: 683.5816225 | D182: 620.5367187 | E182: 172073.7679
A183: 174 | B183: 1304.118341 | C183: 681.1253313 | D183: 622.9930099 | E183: 171450.7749
A184: 175 | B184: 1304.118341 | C184: 678.6593174 | D184: 625.4590239 | E184: 170825.3159
A185: 176 | B185: 1304.118341 | C185: 676.183542 | D185: 627.9347992 | E185: 170197.3811
A186: 177 | B186: 1304.118341 | C186: 673.6979668 | D186: 630.4203745 | E186: 169566.9607
A187: 178 | B187: 1304.118341 | C187: 671.2025528 | D187: 632.9157884 | E187: 168934.0449
A188: 179 | B188: 1304.118341 | C188: 668.6972612 | D188: 635.4210801 | E188: 168298.6238
A189: 180 | B189: 1304.118341 | C189: 666.1820527 | D189: 637.9362885 | E189: 167660.6876
A190: 181 | B190: 1304.118341 | C190: 663.6568882 | D190: 640.461453 | E190: 167020.2261
A191: 182 | B191: 1304.118341 | C191: 661.1217283 | D191: 642.9966129 | E191: 166377.2295
A192: 183 | B192: 1304.118341 | C192: 658.5765334 | D192: 645.5418079 | E192: 165731.6877
A193: 184 | B193: 1304.118341 | C193: 656.0212637 | D193: 648.0970775 | E193: 165083.5906
A194: 185 | B194: 1304.118341 | C194: 653.4558795 | D194: 650.6624618 | E194: 164432.9281
A195: 186 | B195: 1304.118341 | C195: 650.8803406 | D195: 653.2380007 | E195: 163779.6901
A196: 187 | B196: 1304.118341 | C196: 648.2946068 | D196: 655.8237344 | E196: 163123.8664
A197: 188 | B197: 1304.118341 | C197: 645.6986379 | D197: 658.4197034 | E197: 162465.4467
A198: 189 | B198: 1304.118341 | C198: 643.0923932 | D198: 661.0259481 | E198: 161804.4208
A199: 190 | B199: 1304.118341 | C199: 640.4758322 | D199: 663.6425091 | E199: 161140.7782
A200: 191 | B200: 1304.118341 | C200: 637.8489139 | D200: 666.2694274 | E200: 160474.5088
A201: 192 | B201: 1304.118341 | C201: 635.2115974 | D201: 668.9067438 | E201: 159805.6021
A202: 193 | B202: 1304.118341 | C202: 632.5638415 | D202: 671.5544997 | E202: 159134.0476
... 167 more rows

Sheet Negative Data Bars
A1: Excel 2007: Conditional Formatting Vastly Improved.
A2: Excel 2010: Data Bars can handle negative and positive in a new way
A3: Conditional Formatting on Home Ribbon Tab
A5: Other videos on this topic:
A6: Excel 2010 Preview #5: Conditional Formatting Negative Data Bars
A7: Mr Excel & excelisfun Trick 72: Data Bar Cell Charts in Excel 2007/2010 & Excel 2003
A8: Highline Excel Class 21: Conditional Formatting 12 Examples
B10: Sales | C10: Cell Chart | E10: Gain Or Loss | F10: Cell Chart | I10: Above Ave
B11: 5328 | E11: -671 | I11: Sales
B12: 6267 | E12: 2378 | I12: 4835
B13: 1362 | E13: 5694 | I13: 383
B14: 2711 | E14: -687 | I14: 4193
B15: 2318 | E15: -3002 | I15: 1061
B16: 7290 | E16: -146 | I16: 5967
B17: 7099 | E17: 3262 | I17: 6556
B18: 6373 | E18: 1323 | I18: 7046
B19: 4603 | E19: 1215 | I19: 84
B20: 1605 | E20: 4169 | I20: 1516
B21: 6020 | E21: 1950 | I21: 4220
B22: 2521 | E22: -3231 | I22: 7436
B23: 5982 | E23: 5902 | I23: 3878
B24: 811 | E24: -3033 | I24: 7028
B25: 4096 | E25: 3109 | I25: 1931
B26: 1281 | E26: -197 | I26: 5092
B27: 3155 | E27: -995 | I27: 7361
B28: 4756 | E28: -4637 | I28: 2947
B29: 6897 | E29: -1480 | I29: 2017
B30: 1491 | E30: 6488 | I30: 1786
I31: 1904

Sheet Negative Data Bars (an)
A1: Excel 2007: Conditional Formatting Vastly Improved.
A2: Excel 2010: Data Bars can handle negative and positive in a new way
A3: Conditional Formatting on Home Ribbon Tab
A5: Other videos on this topic:
A6: Excel 2010 Preview #5: Conditional Formatting Negative Data Bars
A7: Mr Excel & excelisfun Trick 72: Data Bar Cell Charts in Excel 2007/2010 & Excel 2003
A8: Highline Excel Class 21: Conditional Formatting 12 Examples
B10: Sales | C10: Cell Chart | E10: Gain Or Loss | F10: Cell Chart | I10: Above Ave
B11: 5328 | C11: 5328 | E11: -671 | F11: -671 | I11: Sales
B12: 6267 | C12: 6267 | E12: 2378 | F12: 2378 | I12: 4835
B13: 1362 | C13: 1362 | E13: 5694 | F13: 5694 | I13: 383
B14: 2711 | C14: 2711 | E14: -687 | F14: -687 | I14: 4193
B15: 2318 | C15: 2318 | E15: -3002 | F15: -3002 | I15: 1061
B16: 7290 | C16: 7290 | E16: -146 | F16: -146 | I16: 5967
B17: 7099 | C17: 7099 | E17: 3262 | F17: 3262 | I17: 6556
B18: 6373 | C18: 6373 | E18: 1323 | F18: 1323 | I18: 7046
B19: 4603 | C19: 4603 | E19: 1215 | F19: 1215 | I19: 84
B20: 1605 | C20: 1605 | E20: 4169 | F20: 4169 | I20: 1516
B21: 6020 | C21: 6020 | E21: 1950 | F21: 1950 | I21: 4220
B22: 2521 | C22: 2521 | E22: -3231 | F22: -3231 | I22: 7436
B23: 5982 | C23: 5982 | E23: 5902 | F23: 5902 | I23: 3878
B24: 811 | C24: 811 | E24: -3033 | F24: -3033 | I24: 7028
B25: 4096 | C25: 4096 | E25: 3109 | F25: 3109 | I25: 1931
B26: 1281 | C26: 1281 | E26: -197 | F26: -197 | I26: 5092
B27: 3155 | C27: 3155 | E27: -995 | F27: -995 | I27: 7361
B28: 4756 | C28: 4756 | E28: -4637 | F28: -4637 | I28: 2947
B29: 6897 | C29: 6897 | E29: -1480 | F29: -1480 | I29: 2017
B30: 1491 | C30: 1491 | E30: 6488 | F30: 6488 | I30: 1786
I31: 1904

Sheet New PT Calculations
A1: PivotTable Options Ribbon Tab, Show Values As: "% Running Total"
A2: PivotTable Options Ribbon Tab, Show Values As: "% of Parent Total"
A3: PivotTable Design Ribbon Tab, Report Layout, Tabular Form
A4: PivotTable Design Ribbon Tab, Report Layout, Repeat All Items Labels
A6: Other videos on this topic:
A7: Office 2010 Class #36: Excel PivotTables Pivot Tables 15 examples (Data Analysis ...
A8: Excel Magic Trick 498: 6 PivotTable Calculation Tricks (Pivot Table)
A9: Dueling Excel - Percent of Parent: Podcast #1404
A10: Excel 2010 Statistics #41: Joint Probability Table with PivotTable
A12: Date | B12: Product | C12: Customer | D12: SalesRep | E12: Units | F12: Sales
A13: =RANDBETWEEN(40179,40543) -> 2010-07-09 | B13: Sunshine | C13: Albertsons | D13: Fred | E13: 5 | F13: 68.75
A14: 2010-03-21 | B14: Quad | C14: PCC | D14: Sioux | E14: 18 | F14: 247.5
A15: =RANDBETWEEN(40179,40543) -> 2010-06-18 | B15: Carlota | C15: Albertsons | D15: Sue | E15: 22 | F15: 302.5
A16: =RANDBETWEEN(40179,40543) -> 2010-04-17 | B16: SunBell | C16: QFC | D16: Jo | E16: 8 | F16: 110
A17: 2010-12-25 | B17: Sunset | C17: QFC | D17: Sioux | E17: 20 | F17: 275
A18: 2010-04-16 | B18: Tri | C18: WholeFoods | D18: Sioux | E18: 11 | F18: 151.25
A19: 2010-07-26 | B19: Sunset | C19: WholeFoods | D19: Jo | E19: 25 | F19: 343.75
A20: 2010-10-03 | B20: Bellen | C20: WholeFoods | D20: Pham | E20: 7 | F20: 96.25
A21: 2010-10-23 | B21: Bellen | C21: Albertsons | D21: Pham | E21: 15 | F21: 206.25
A22: 2010-04-25 | B22: Sunshine | C22: Albertsons | D22: Pham | E22: 17 | F22: 233.75
A23: 2010-08-18 | B23: Carlota | C23: PCC | D23: Chin | E23: 15 | F23: 206.25
A24: 2010-01-05 | B24: Carlota | C24: QFC | D24: Pham | E24: 3 | F24: 41.25
A25: 2010-09-22 | B25: SunBell | C25: TraderJoe's | D25: Joe | E25: 17 | F25: 233.75
A26: 2010-11-25 | B26: Tri | C26: QFC | D26: Pham | E26: 14 | F26: 192.5
A27: 2010-04-18 | B27: Sunshine | C27: Albertsons | D27: Sioux | E27: 14 | F27: 192.5
A28: 2010-10-31 | B28: Sunshine | C28: Coop | D28: Joe | E28: 14 | F28: 192.5
A29: 2010-03-11 | B29: Tri | C29: QFC | D29: Jo | E29: 17 | F29: 233.75
A30: 2010-05-13 | B30: SunBell | C30: Safeway | D30: Joe | E30: 21 | F30: 288.75
A31: 2010-01-07 | B31: SunBell | C31: Safeway | D31: Jo | E31: 14 | F31: 192.5
A32: 2010-08-25 | B32: Sunshine | C32: WholeFoods | D32: Pham | E32: 4 | F32: 55
A33: 2010-01-10 | B33: SunBell | C33: Safeway | D33: Pham | E33: 19 | F33: 261.25
A34: 2010-09-02 | B34: Tri | C34: WholeFoods | D34: Sioux | E34: 25 | F34: 343.75
A35: 2010-01-25 | B35: Sunshine | C35: PCC | D35: Pham | E35: 14 | F35: 192.5
A36: 2010-08-25 | B36: Tri | C36: WholeFoods | D36: Joe | E36: 17 | F36: 233.75
A37: 2010-11-26 | B37: Carlota | C37: Coop | D37: Fred | E37: 7 | F37: 96.25
A38: 2010-04-06 | B38: Carlota | C38: Safeway | D38: Sioux | E38: 13 | F38: 178.75
A39: 2010-09-21 | B39: Quad | C39: QFC | D39: Sue | E39: 7 | F39: 96.25
A40: 2010-07-19 | B40: Tri | C40: Coop | D40: Joe | E40: 21 | F40: 288.75
A41: 2010-11-07 | B41: Tri | C41: PCC | D41: Joe | E41: 19 | F41: 261.25
A42: 2010-11-17 | B42: Quad | C42: PCC | D42: Joe | E42: 16 | F42: 220
A43: 2010-10-09 | B43: Tri | C43: QFC | D43: Pham | E43: 23 | F43: 316.25
A44: 2010-03-25 | B44: Tri | C44: Albertsons | D44: Joe | E44: 2 | F44: 27.5
A45: 2010-09-16 | B45: Tri | C45: QFC | D45: Chin | E45: 2 | F45: 27.5
A46: 2010-07-15 | B46: SunBell | C46: PCC | D46: Joe | E46: 14 | F46: 192.5
A47: 2010-02-26 | B47: Carlota | C47: PCC | D47: Fred | E47: 15 | F47: 206.25
A48: 2010-02-10 | B48: Sunset | C48: WholeFoods | D48: Fred | E48: 1 | F48: 13.75
A49: 2010-12-25 | B49: Sunset | C49: WholeFoods | D49: Fred | E49: 17 | F49: 233.75
A50: 2010-03-03 | B50: Carlota | C50: Coop | D50: Pham | E50: 7 | F50: 96.25
A51: 2010-03-20 | B51: SunBell | C51: Coop | D51: Chin | E51: 4 | F51: 55
A52: 2010-02-22 | B52: Bellen | C52: QFC | D52: Sioux | E52: 24 | F52: 330
A53: 2010-08-24 | B53: Bellen | C53: QFC | D53: Fred | E53: 15 | F53: 206.25
A54: 2010-02-06 | B54: SunBell | C54: QFC | D54: Joe | E54: 19 | F54: 261.25
A55: 2010-06-02 | B55: SunBell | C55: Coop | D55: Fred | E55: 11 | F55: 151.25
A56: 2010-05-20 | B56: Quad | C56: WholeFoods | D56: Fred | E56: 8 | F56: 110
A57: 2010-01-04 | B57: Carlota | C57: Albertsons | D57: Fred | E57: 21 | F57: 288.75
A58: 2010-08-31 | B58: Bellen | C58: Safeway | D58: Pham | E58: 22 | F58: 302.5
A59: 2010-12-05 | B59: Sunshine | C59: PCC | D59: Joe | E59: 8 | F59: 110
A60: 2010-09-09 | B60: Carlota | C60: QFC | D60: Joe | E60: 10 | F60: 137.5
A61: 2010-06-04 | B61: Carlota | C61: Coop | D61: Sue | E61: 16 | F61: 220
A62: 2010-11-21 | B62: Tri | C62: Safeway | D62: Chin | E62: 15 | F62: 206.25
A63: 2010-12-17 | B63: Sunset | C63: PCC | D63: Jo | E63: 23 | F63: 316.25
A64: 2010-04-12 | B64: Bellen | C64: WholeFoods | D64: Jo | E64: 15 | F64: 206.25
A65: 2010-09-12 | B65: Tri | C65: TraderJoe's | D65: Sioux | E65: 14 | F65: 192.5
A66: 2010-01-11 | B66: Sunset | C66: QFC | D66: Joe | E66: 2 | F66: 27.5
A67: 2010-03-06 | B67: Tri | C67: WholeFoods | D67: Sue | E67: 2 | F67: 27.5
A68: 2010-08-22 | B68: Quad | C68: WholeFoods | D68: Chin | E68: 3 | F68: 41.25
A69: 2010-07-16 | B69: SunBell | C69: WholeFoods | D69: Chin | E69: 4 | F69: 55
A70: 2010-06-20 | B70: Carlota | C70: Safeway | D70: Sue | E70: 20 | F70: 275
A71: 2010-03-26 | B71: Sunshine | C71: TraderJoe's | D71: Jo | E71: 1 | F71: 13.75
A72: 2010-02-16 | B72: Tri | C72: QFC | D72: Fred | E72: 13 | F72: 178.75
A73: 2010-03-11 | B73: Quad | C73: WholeFoods | D73: Sioux | E73: 23 | F73: 316.25
A74: 2010-03-06 | B74: SunBell | C74: QFC | D74: Joe | E74: 16 | F74: 220
A75: 2010-12-10 | B75: Carlota | C75: Coop | D75: Chin | E75: 17 | F75: 233.75
A76: 2010-07-26 | B76: Sunshine | C76: Coop | D76: Fred | E76: 18 | F76: 247.5
A77: 2010-12-28 | B77: Carlota | C77: Albertsons | D77: Pham | E77: 25 | F77: 343.75
A78: 2010-02-12 | B78: Sunset | C78: PCC | D78: Chin | E78: 2 | F78: 27.5
A79: 2010-10-21 | B79: SunBell | C79: WholeFoods | D79: Sue | E79: 1 | F79: 13.75
A80: =RANDBETWEEN(40179,40543) -> 2010-03-05 | B80: SunBell | C80: Coop | D80: Fred | E80: 18 | F80: 247.5
A81: 2010-11-29 | B81: Carlota | C81: WholeFoods | D81: Sioux | E81: 23 | F81: 316.25
A82: 2010-06-09 | B82: Sunshine | C82: WholeFoods | D82: Pham | E82: 4 | F82: 55
A83: 2010-07-02 | B83: Sunshine | C83: Coop | D83: Jo | E83: 12 | F83: 165
A84: 2010-03-29 | B84: Sunshine | C84: QFC | D84: Sue | E84: 24 | F84: 330
A85: 2010-11-29 | B85: Carlota | C85: Safeway | D85: Pham | E85: 10 | F85: 137.5
A86: 2010-05-04 | B86: Carlota | C86: TraderJoe's | D86: Sioux | E86: 15 | F86: 206.25
A87: 2010-05-05 | B87: Sunshine | C87: Safeway | D87: Sue | E87: 17 | F87: 233.75
A88: 2010-03-03 | B88: Carlota | C88: Albertsons | D88: Sue | E88: 13 | F88: 178.75
A89: 2010-08-30 | B89: Bellen | C89: Safeway | D89: Sue | E89: 10 | F89: 137.5
A90: 2010-08-20 | B90: Sunset | C90: TraderJoe's | D90: Jo | E90: 20 | F90: 275
A91: 2010-02-10 | B91: SunBell | C91: Albertsons | D91: Fred | E91: 20 | F91: 275
A92: 2010-07-07 | B92: Quad | C92: Coop | D92: Joe | E92: 1 | F92: 13.75
A93: 2010-12-18 | B93: SunBell | C93: TraderJoe's | D93: Chin | E93: 4 | F93: 55
A94: 2010-12-26 | B94: SunBell | C94: WholeFoods | D94: Fred | E94: 18 | F94: 247.5
A95: 2010-03-22 | B95: Carlota | C95: PCC | D95: Fred | E95: 10 | F95: 137.5
A96: 2010-01-27 | B96: Sunshine | C96: TraderJoe's | D96: Sue | E96: 6 | F96: 82.5
A97: 2010-07-21 | B97: Quad | C97: TraderJoe's | D97: Fred | E97: 12 | F97: 165
A98: 2010-08-22 | B98: SunBell | C98: Coop | D98: Pham | E98: 19 | F98: 261.25
A99: 2010-06-25 | B99: Sunshine | C99: WholeFoods | D99: Sue | E99: 1 | F99: 13.75
A100: 2010-08-01 | B100: Sunshine | C100: PCC | D100: Jo | E100: 10 | F100: 137.5
A101: 2010-09-25 | B101: SunBell | C101: PCC | D101: Fred | E101: 5 | F101: 68.75
A102: 2010-06-06 | B102: Sunshine | C102: Coop | D102: Jo | E102: 10 | F102: 137.5
A103: 2010-10-28 | B103: Bellen | C103: PCC | D103: Sue | E103: 16 | F103: 220
A104: 2010-09-21 | B104: Bellen | C104: TraderJoe's | D104: Chin | E104: 3 | F104: 41.25
A105: 2010-12-21 | B105: SunBell | C105: TraderJoe's | D105: Pham | E105: 20 | F105: 275
A106: 2010-06-14 | B106: Sunset | C106: TraderJoe's | D106: Pham | E106: 18 | F106: 247.5
A107: 2010-07-31 | B107: SunBell | C107: Safeway | D107: Joe | E107: 9 | F107: 123.75
A108: 2010-11-14 | B108: Quad | C108: TraderJoe's | D108: Fred | E108: 7 | F108: 96.25
A109: 2010-09-08 | B109: Quad | C109: Safeway | D109: Joe | E109: 4 | F109: 55
A110: 2010-06-16 | B110: Sunshine | C110: Albertsons | D110: Pham | E110: 12 | F110: 165
A111: 2010-12-19 | B111: Bellen | C111: QFC | D111: Chin | E111: 25 | F111: 343.75
A112: 2010-03-03 | B112: Quad | C112: PCC | D112: Sioux | E112: 10 | F112: 137.5
A113: 2010-10-20 | B113: Bellen | C113: Albertsons | D113: Pham | E113: 2 | F113: 27.5
A114: 2010-03-30 | B114: Sunshine | C114: Safeway | D114: Jo | E114: 22 | F114: 302.5
A115: 2010-08-09 | B115: Bellen | C115: QFC | D115: Sioux | E115: 21 | F115: 288.75
A116: 2010-12-04 | B116: Sunset | C116: QFC | D116: Sioux | E116: 3 | F116: 41.25
A117: 2010-11-26 | B117: Sunshine | C117: Safeway | D117: Jo | E117: 20 | F117: 275
A118: 2010-01-13 | B118: Sunset | C118: Coop | D118: Jo | E118: 16 | F118: 220
A119: 2010-08-01 | B119: Quad | C119: QFC | D119: Joe | E119: 8 | F119: 110
A120: 2010-11-04 | B120: Sunshine | C120: TraderJoe's | D120: Pham | E120: 24 | F120: 330
A121: 2010-03-25 | B121: Bellen | C121: PCC | D121: Chin | E121: 12 | F121: 165
A122: 2010-10-02 | B122: Quad | C122: TraderJoe's | D122: Chin | E122: 17 | F122: 233.75
A123: 2010-05-01 | B123: Carlota | C123: WholeFoods | D123: Fred | E123: 1 | F123: 13.75
A124: 2010-03-05 | B124: Tri | C124: WholeFoods | D124: Sue | E124: 2 | F124: 27.5
A125: 2010-12-27 | B125: Tri | C125: WholeFoods | D125: Jo | E125: 21 | F125: 288.75
A126: 2010-11-15 | B126: Sunshine | C126: PCC | D126: Joe | E126: 15 | F126: 206.25
A127: 2010-06-30 | B127: Tri | C127: Safeway | D127: Fred | E127: 24 | F127: 330
A128: 2010-04-16 | B128: Tri | C128: Safeway | D128: Chin | E128: 24 | F128: 330
A129: 2010-02-19 | B129: Quad | C129: Albertsons | D129: Sioux | E129: 6 | F129: 82.5
A130: 2010-02-15 | B130: Sunset | C130: WholeFoods | D130: Sioux | E130: 12 | F130: 165
A131: 2010-06-03 | B131: Quad | C131: Safeway | D131: Pham | E131: 1 | F131: 13.75
A132: 2010-12-16 | B132: Quad | C132: Coop | D132: Chin | E132: 21 | F132: 288.75
A133: 2010-01-07 | B133: Carlota | C133: Albertsons | D133: Fred | E133: 23 | F133: 316.25
A134: 2010-01-24 | B134: Quad | C134: Albertsons | D134: Jo | E134: 17 | F134: 233.75
A135: 2010-10-22 | B135: SunBell | C135: QFC | D135: Pham | E135: 12 | F135: 165
A136: 2010-11-03 | B136: Tri | C136: TraderJoe's | D136: Jo | E136: 1 | F136: 13.75
A137: 2010-03-29 | B137: Tri | C137: Coop | D137: Pham | E137: 6 | F137: 82.5
A138: 2010-12-09 | B138: Carlota | C138: PCC | D138: Jo | E138: 18 | F138: 247.5
A139: 2010-09-27 | B139: SunBell | C139: WholeFoods | D139: Jo | E139: 8 | F139: 110
A140: 2010-11-20 | B140: Sunshine | C140: Safeway | D140: Pham | E140: 11 | F140: 151.25
A141: 2010-11-30 | B141: Carlota | C141: PCC | D141: Fred | E141: 6 | F141: 82.5
A142: 2010-05-17 | B142: Sunset | C142: TraderJoe's | D142: Sue | E142: 18 | F142: 247.5
A143: 2010-08-19 | B143: Tri | C143: Safeway | D143: Fred | E143: 8 | F143: 110
A144: =RANDBETWEEN(40179,40543) -> 2010-05-18 | B144: Sunset | C144: PCC | D144: Chin | E144: 11 | F144: 151.25
A145: 2010-12-12 | B145: Tri | C145: WholeFoods | D145: Chin | E145: 2 | F145: 27.5
A146: 2010-09-22 | B146: Carlota | C146: Albertsons | D146: Sioux | E146: 22 | F146: 302.5
A147: 2010-02-27 | B147: Quad | C147: TraderJoe's | D147: Sioux | E147: 21 | F147: 288.75
A148: 2010-03-28 | B148: Bellen | C148: TraderJoe's | D148: Chin | E148: 11 | F148: 151.25
A149: 2010-09-30 | B149: Sunshine | C149: Coop | D149: Jo | E149: 6 | F149: 82.5
A150: 2010-09-20 | B150: Sunshine | C150: Coop | D150: Jo | E150: 25 | F150: 343.75
A151: 2010-10-29 | B151: Bellen | C151: Coop | D151: Pham | E151: 2 | F151: 27.5
A152: 2010-02-09 | B152: Bellen | C152: Safeway | D152: Joe | E152: 15 | F152: 206.25
A153: 2010-10-30 | B153: Quad | C153: WholeFoods | D153: Sue | E153: 21 | F153: 288.75
A154: 2010-05-29 | B154: Tri | C154: QFC | D154: Sioux | E154: 5 | F154: 68.75
A155: 2010-05-13 | B155: Carlota | C155: WholeFoods | D155: Sue | E155: 13 | F155: 178.75
A156: 2010-03-10 | B156: Carlota | C156: Safeway | D156: Pham | E156: 13 | F156: 178.75
A157: 2010-05-08 | B157: Tri | C157: Safeway | D157: Joe | E157: 9 | F157: 123.75
A158: 2010-12-25 | B158: Sunshine | C158: Safeway | D158: Sue | E158: 18 | F158: 247.5
A159: 2010-08-08 | B159: Carlota | C159: Albertsons | D159: Chin | E159: 8 | F159: 110
A160: 2010-04-29 | B160: Tri | C160: QFC | D160: Sue | E160: 7 | F160: 96.25
A161: 2010-01-22 | B161: Sunset | C161: PCC | D161: Chin | E161: 6 | F161: 82.5
A162: 2010-08-27 | B162: SunBell | C162: Coop | D162: Sioux | E162: 7 | F162: 96.25
A163: 2010-09-28 | B163: Tri | C163: PCC | D163: Sioux | E163: 14 | F163: 192.5
A164: 2010-10-17 | B164: Quad | C164: PCC | D164: Joe | E164: 24 | F164: 330
A165: 2010-12-02 | B165: Quad | C165: QFC | D165: Joe | E165: 17 | F165: 233.75
A166: 2010-05-24 | B166: Carlota | C166: QFC | D166: Chin | E166: 5 | F166: 68.75
A167: 2010-06-16 | B167: Bellen | C167: TraderJoe's | D167: Sue | E167: 1 | F167: 13.75
A168: 2010-08-30 | B168: Carlota | C168: WholeFoods | D168: Sue | E168: 14 | F168: 192.5
A169: 2010-01-18 | B169: Sunshine | C169: PCC | D169: Jo | E169: 12 | F169: 165
A170: 2010-12-02 | B170: Sunset | C170: PCC | D170: Sioux | E170: 25 | F170: 343.75
A171: 2010-09-02 | B171: Carlota | C171: Albertsons | D171: Jo | E171: 3 | F171: 41.25
A172: 2010-05-26 | B172: Bellen | C172: PCC | D172: Jo | E172: 14 | F172: 192.5
A173: 2010-01-20 | B173: Tri | C173: PCC | D173: Jo | E173: 6 | F173: 82.5
A174: 2010-06-28 | B174: Carlota | C174: Albertsons | D174: Fred | E174: 17 | F174: 233.75
A175: 2010-08-28 | B175: SunBell | C175: Albertsons | D175: Sioux | E175: 23 | F175: 316.25
A176: 2010-08-08 | B176: Bellen | C176: PCC | D176: Fred | E176: 4 | F176: 55
A177: 2010-04-15 | B177: Sunset | C177: WholeFoods | D177: Sue | E177: 20 | F177: 275
A178: 2010-10-19 | B178: Carlota | C178: QFC | D178: Sioux | E178: 16 | F178: 220
A179: 2010-08-11 | B179: Sunset | C179: WholeFoods | D179: Jo | E179: 19 | F179: 261.25
A180: 2010-05-20 | B180: Sunshine | C180: Safeway | D180: Sue | E180: 16 | F180: 220
A181: 2010-12-27 | B181: Sunshine | C181: WholeFoods | D181: Joe | E181: 1 | F181: 13.75
A182: 2010-12-22 | B182: SunBell | C182: PCC | D182: Jo | E182: 11 | F182: 151.25
A183: 2010-06-29 | B183: Tri | C183: Coop | D183: Sioux | E183: 18 | F183: 247.5
A184: 2010-09-18 | B184: Tri | C184: Safeway | D184: Fred | E184: 10 | F184: 137.5
A185: 2010-01-17 | B185: Carlota | C185: Albertsons | D185: Fred | E185: 14 | F185: 192.5
A186: 2010-03-03 | B186: Carlota | C186: WholeFoods | D186: Pham | E186: 11 | F186: 151.25
A187: 2010-07-01 | B187: Carlota | C187: Albertsons | D187: Pham | E187: 20 | F187: 275
A188: 2010-05-17 | B188: Sunset | C188: Coop | D188: Fred | E188: 21 | F188: 288.75
A189: 2010-08-25 | B189: Carlota | C189: TraderJoe's | D189: Sue | E189: 17 | F189: 233.75
A190: 2010-08-23 | B190: Sunshine | C190: WholeFoods | D190: Sue | E190: 16 | F190: 220
A191: 2010-08-03 | B191: Bellen | C191: PCC | D191: Jo | E191: 6 | F191: 82.5
A192: 2010-08-29 | B192: Tri | C192: Albertsons | D192: Pham | E192: 3 | F192: 41.25
A193: 2010-07-25 | B193: Tri | C193: QFC | D193: Pham | E193: 7 | F193: 96.25
A194: 2010-03-13 | B194: Carlota | C194: Coop | D194: Joe | E194: 8 | F194: 110
A195: 2010-12-08 | B195: Sunset | C195: Safeway | D195: Chin | E195: 16 | F195: 220
A196: 2010-01-02 | B196: Bellen | C196: QFC | D196: Joe | E196: 19 | F196: 261.25
A197: 2010-06-04 | B197: Tri | C197: WholeFoods | D197: Joe | E197: 17 | F197: 233.75
A198: 2010-10-03 | B198: Sunset | C198: Safeway | D198: Sioux | E198: 11 | F198: 151.25
A199: 2010-12-26 | B199: Sunshine | C199: Albertsons | D199: Fred | E199: 24 | F199: 330
A200: 2010-04-17 | B200: Carlota | C200: Safeway | D200: Joe | E200: 20 | F200: 275
A201: 2010-05-16 | B201: Quad | C201: Albertsons | D201: Joe | E201: 19 | F201: 261.25
A202: 2010-10-09 | B202: Bellen | C202: WholeFoods | D202: Jo | E202: 3 | F202: 41.25
... 289 more rows

Sheet New PT Calculations (an)
A1: Date | B1: Product | C1: Customer | D1: SalesRep | E1: Units | F1: Sales | H1: Years | I1: Date | J1: Sum of Sales | K1: Running Total | L1: % Running Total | N1: old method | P1: Years | Q1: Date | R1: Sum of Sales | S1: Running Total | T1: % Running Total
A2: =RANDBETWEEN(40179,40543) -> 2010-05-29 | B2: Sunshine | C2: Albertsons | D2: Fred | E2: 5 | F2: 68.75 | H2: 2010 | I2: Jan | J2: 5747.5 | K2: 5747.5 | L2: 0.06724581725 | N2: =SUM($J$2:J2)/$J$14 -> 0.06724581725 | P2: 2010 | Q2: Jan | R2: 5747.5 | S2: 5747.5 | T2: 0.06724581725
A3: 2010-08-07 | B3: Quad | C3: PCC | D3: Sioux | E3: 18 | F3: 247.5 | I3: Feb | J3: 4372.5 | K3: 10120 | L3: 0.1184041184 | N3: =SUM($J$2:J3)/$J$14 -> 0.1184041184 | P3: 2010 | Q3: Feb | R3: 4372.5 | S3: 10120 | T3: 0.1184041184
A4: =RANDBETWEEN(40179,40543) -> 2010-06-22 | B4: Carlota | C4: Albertsons | D4: Sue | E4: 22 | F4: 302.5 | I4: Mar | J4: 8772.5 | K4: 18892.5 | L4: 0.221042471 | N4: =SUM($J$2:J4)/$J$14 -> 0.221042471 | P4: 2010 | Q4: Mar | R4: 8772.5 | S4: 18892.5 | T4: 0.221042471
A5: =RANDBETWEEN(40179,40543) -> 2010-08-21 | B5: SunBell | C5: QFC | D5: Jo | E5: 8 | F5: 110 | I5: Apr | J5: 6270 | K5: 25162.5 | L5: 0.2944015444 | N5: =SUM($J$2:J5)/$J$14 -> 0.2944015444 | P5: 2010 | Q5: Apr | R5: 6270 | S5: 25162.5 | T5: 0.2944015444
A6: 2010-04-12 | B6: Sunset | C6: QFC | D6: Sioux | E6: 20 | F6: 275 | I6: May | J6: 8855 | K6: 34017.5 | L6: 0.398005148 | N6: =SUM($J$2:J6)/$J$14 -> 0.398005148 | P6: 2010 | Q6: May | R6: 8855 | S6: 34017.5 | T6: 0.398005148
A7: 2010-05-03 | B7: Tri | C7: WholeFoods | D7: Sioux | E7: 11 | F7: 151.25 | I7: Jun | J7: 6270 | K7: 40287.5 | L7: 0.4713642214 | N7: =SUM($J$2:J7)/$J$14 -> 0.4713642214 | P7: 2010 | Q7: Jun | R7: 6270 | S7: 40287.5 | T7: 0.4713642214
A8: 2010-05-05 | B8: Sunset | C8: WholeFoods | D8: Jo | E8: 25 | F8: 343.75 | I8: Jul | J8: 7906.25 | K8: 48193.75 | L8: 0.5638674389 | N8: =SUM($J$2:J8)/$J$14 -> 0.5638674389 | P8: 2010 | Q8: Jul | R8: 7906.25 | S8: 48193.75 | T8: 0.5638674389
A9: 2010-03-18 | B9: Bellen | C9: WholeFoods | D9: Pham | E9: 7 | F9: 96.25 | I9: Aug | J9: 6380 | K9: 54573.75 | L9: 0.6385135135 | N9: =SUM($J$2:J9)/$J$14 -> 0.6385135135 | P9: 2010 | Q9: Aug | R9: 6380 | S9: 54573.75 | T9: 0.6385135135
A10: 2010-12-01 | B10: Bellen | C10: Albertsons | D10: Pham | E10: 15 | F10: 206.25 | I10: Sep | J10: 7727.5 | K10: 62301.25 | L10: 0.7289253539 | N10: =SUM($J$2:J10)/$J$14 -> 0.7289253539 | P10: 2010 | Q10: Sep | R10: 7727.5 | S10: 62301.25 | T10: 0.7289253539
A11: 2010-08-12 | B11: Sunshine | C11: Albertsons | D11: Pham | E11: 17 | F11: 233.75 | I11: Oct | J11: 7218.75 | K11: 69520 | L11: 0.8133848134 | N11: =SUM($J$2:J11)/$J$14 -> 0.8133848134 | P11: 2010 | Q11: Oct | R11: 7218.75 | S11: 69520 | T11: 0.8133848134
A12: 2010-12-09 | B12: Carlota | C12: PCC | D12: Chin | E12: 15 | F12: 206.25 | I12: Nov | J12: 7700 | K12: 77220 | L12: 0.9034749035 | N12: =SUM($J$2:J12)/$J$14 -> 0.9034749035 | P12: 2010 | Q12: Nov | R12: 7700 | S12: 77220 | T12: 0.9034749035
A13: 2010-02-08 | B13: Carlota | C13: QFC | D13: Pham | E13: 3 | F13: 41.25 | I13: Dec | J13: 8250 | K13: 85470 | L13: 1 | N13: =SUM($J$2:J13)/$J$14 -> 1 | P13: 2010 | Q13: Dec | R13: 8250 | S13: 85470 | T13: 1
A14: 2010-04-18 | B14: SunBell | C14: TraderJoe's | D14: Joe | E14: 17 | F14: 233.75 | H14: Grand Total | J14: 85470 | P14: Grand Total | R14: 85470
A15: 2010-02-15 | B15: Tri | C15: QFC | D15: Pham | E15: 14 | F15: 192.5
A16: 2010-01-25 | B16: Sunshine | C16: Albertsons | D16: Sioux | E16: 14 | F16: 192.5
A17: 2010-11-09 | B17: Sunshine | C17: Coop | D17: Joe | E17: 14 | F17: 192.5 | H17: SalesRep | I17: Product | J17: Sum of Sales | K17: % of Parent | P17: check
A18: 2010-02-23 | B18: Tri | C18: QFC | D18: Jo | E18: 17 | F18: 233.75 | H18: Chin | I18: Bellen | J18: 2076.25 | K18: 0.2016021362 | M18: <<== Bellen % of Chin Total | P18: =GETPIVOTDATA("Sum of Sales",$H$17,"Product","Bellen","SalesRep","Chin")/GETPIVOTDATA("Sum of Sales",$H$17,"SalesRep","Chin") -> 0.2016021362
A19: 2010-11-16 | B19: SunBell | C19: Safeway | D19: Joe | E19: 21 | F19: 288.75 | I19: Carlota | J19: 1361.25 | K19: 0.132176235
A20: 2010-02-10 | B20: SunBell | C20: Safeway | D20: Jo | E20: 14 | F20: 192.5 | I20: Quad | J20: 1636.25 | K20: 0.1588785047
A21: 2010-11-10 | B21: Sunshine | C21: WholeFoods | D21: Pham | E21: 4 | F21: 55 | I21: SunBell | J21: 907.5 | K21: 0.08811748999
A22: 2010-01-17 | B22: SunBell | C22: Safeway | D22: Pham | E22: 19 | F22: 261.25 | I22: Sunset | J22: 1746.25 | K22: 0.1695594126
A23: 2010-09-14 | B23: Tri | C23: WholeFoods | D23: Sioux | E23: 25 | F23: 343.75 | I23: Sunshine | J23: 632.5 | K23: 0.06141522029
A24: 2010-11-12 | B24: Sunshine | C24: PCC | D24: Pham | E24: 14 | F24: 192.5 | I24: Tri | J24: 1938.75 | K24: 0.1882510013
A25: 2010-11-08 | B25: Tri | C25: WholeFoods | D25: Joe | E25: 17 | F25: 233.75 | H25: Chin Total | J25: 10298.75 | K25: 0.1204954955 | M25: << Chin % of Overall Total | P25: =GETPIVOTDATA("Sum of Sales",$H$17,"SalesRep","Chin")/GETPIVOTDATA("Sum of Sales",$H$17) -> 0.1204954955
A26: 2010-07-29 | B26: Carlota | C26: Coop | D26: Fred | E26: 7 | F26: 96.25 | H26: Fred | I26: Bellen | J26: 742.5 | K26: 0.04918032787
A27: 2010-08-19 | B27: Carlota | C27: Safeway | D27: Sioux | E27: 13 | F27: 178.75 | I27: Carlota | J27: 3836.25 | K27: 0.2540983607
A28: 2010-11-19 | B28: Quad | C28: QFC | D28: Sue | E28: 7 | F28: 96.25 | I28: Quad | J28: 1732.5 | K28: 0.1147540984
A29: 2010-11-09 | B29: Tri | C29: Coop | D29: Joe | E29: 21 | F29: 288.75 | I29: SunBell | J29: 2213.75 | K29: 0.1466302368
A30: 2010-08-08 | B30: Tri | C30: PCC | D30: Joe | E30: 19 | F30: 261.25 | I30: Sunset | J30: 2145 | K30: 0.1420765027
A31: 2010-06-08 | B31: Quad | C31: PCC | D31: Joe | E31: 16 | F31: 220 | I31: Sunshine | J31: 1402.5 | K31: 0.09289617486
A32: 2010-07-23 | B32: Tri | C32: QFC | D32: Pham | E32: 23 | F32: 316.25 | I32: Tri | J32: 3025 | K32: 0.2003642987
A33: 2010-06-26 | B33: Tri | C33: Albertsons | D33: Joe | E33: 2 | F33: 27.5 | H33: Fred Total | J33: 15097.5 | K33: 0.1766409266
A34: 2010-07-30 | B34: Tri | C34: QFC | D34: Chin | E34: 2 | F34: 27.5 | H34: Jo | I34: Bellen | J34: 797.5 | K34: 0.06807511737
A35: 2010-08-21 | B35: SunBell | C35: PCC | D35: Joe | E35: 14 | F35: 192.5 | I35: Carlota | J35: 990 | K35: 0.08450704225
A36: 2010-11-07 | B36: Carlota | C36: PCC | D36: Fred | E36: 15 | F36: 206.25 | I36: Quad | J36: 1265 | K36: 0.1079812207
A37: 2010-05-02 | B37: Sunset | C37: WholeFoods | D37: Fred | E37: 1 | F37: 13.75 | I37: SunBell | J37: 1595 | K37: 0.1361502347
A38: 2010-06-19 | B38: Sunset | C38: WholeFoods | D38: Fred | E38: 17 | F38: 233.75 | I38: Sunset | J38: 2433.75 | K38: 0.2077464789
A39: 2010-12-13 | B39: Carlota | C39: Coop | D39: Pham | E39: 7 | F39: 96.25 | I39: Sunshine | J39: 3327.5 | K39: 0.2840375587
A40: 2010-03-12 | B40: SunBell | C40: Coop | D40: Chin | E40: 4 | F40: 55 | I40: Tri | J40: 1306.25 | K40: 0.1115023474
A41: 2010-08-06 | B41: Bellen | C41: QFC | D41: Sioux | E41: 24 | F41: 330 | H41: Jo Total | J41: 11715 | K41: 0.1370656371
A42: 2010-10-29 | B42: Bellen | C42: QFC | D42: Fred | E42: 15 | F42: 206.25 | H42: Joe | I42: Bellen | J42: 1306.25 | K42: 0.1145958987
A43: 2010-09-21 | B43: SunBell | C43: QFC | D43: Joe | E43: 19 | F43: 261.25 | I43: Carlota | J43: 1430 | K43: 0.1254523522
A44: 2010-12-09 | B44: SunBell | C44: Coop | D44: Fred | E44: 11 | F44: 151.25 | I44: Quad | J44: 2323.75 | K44: 0.2038600724
A45: 2010-03-20 | B45: Quad | C45: WholeFoods | D45: Fred | E45: 8 | F45: 110 | I45: SunBell | J45: 1581.25 | K45: 0.138721351
A46: 2010-12-17 | B46: Carlota | C46: Albertsons | D46: Fred | E46: 21 | F46: 288.75 | I46: Sunset | J46: 880 | K46: 0.07720144753
A47: 2010-09-12 | B47: Bellen | C47: Safeway | D47: Pham | E47: 22 | F47: 302.5 | I47: Sunshine | J47: 907.5 | K47: 0.07961399276
A48: 2010-02-25 | B48: Sunshine | C48: PCC | D48: Joe | E48: 8 | F48: 110 | I48: Tri | J48: 2970 | K48: 0.2605548854
A49: 2010-10-23 | B49: Carlota | C49: QFC | D49: Joe | E49: 10 | F49: 137.5 | H49: Joe Total | J49: 11398.75 | K49: 0.1333655084
A50: 2010-05-06 | B50: Carlota | C50: Coop | D50: Sue | E50: 16 | F50: 220 | H50: Pham | I50: Bellen | J50: 2048.75 | K50: 0.1689342404
A51: 2010-10-20 | B51: Tri | C51: Safeway | D51: Chin | E51: 15 | F51: 206.25 | I51: Carlota | J51: 2076.25 | K51: 0.1712018141
A52: 2010-09-02 | B52: Sunset | C52: PCC | D52: Jo | E52: 23 | F52: 316.25 | I52: Quad | J52: 1292.5 | K52: 0.1065759637
A53: 2010-01-25 | B53: Bellen | C53: WholeFoods | D53: Jo | E53: 15 | F53: 206.25 | I53: SunBell | J53: 1677.5 | K53: 0.1383219955
A54: 2010-05-22 | B54: Tri | C54: TraderJoe's | D54: Sioux | E54: 14 | F54: 192.5 | I54: Sunset | J54: 1526.25 | K54: 0.1258503401
A55: 2010-09-28 | B55: Sunset | C55: QFC | D55: Joe | E55: 2 | F55: 27.5 | I55: Sunshine | J55: 2007.5 | K55: 0.1655328798
A56: 2010-01-24 | B56: Tri | C56: WholeFoods | D56: Sue | E56: 2 | F56: 27.5 | I56: Tri | J56: 1498.75 | K56: 0.1235827664
A57: 2010-07-02 | B57: Quad | C57: WholeFoods | D57: Chin | E57: 3 | F57: 41.25 | H57: Pham Total | J57: 12127.5 | K57: 0.1418918919
A58: 2010-12-16 | B58: SunBell | C58: WholeFoods | D58: Chin | E58: 4 | F58: 55 | H58: Sioux | I58: Bellen | J58: 618.75 | K58: 0.05562422744
A59: 2010-01-21 | B59: Carlota | C59: Safeway | D59: Sue | E59: 20 | F59: 275 | I59: Carlota | J59: 2282.5 | K59: 0.2051915946
A60: 2010-07-09 | B60: Sunshine | C60: TraderJoe's | D60: Jo | E60: 1 | F60: 13.75 | I60: Quad | J60: 2186.25 | K60: 0.196538937
A61: 2010-01-03 | B61: Tri | C61: QFC | D61: Fred | E61: 13 | F61: 178.75 | I61: SunBell | J61: 1196.25 | K61: 0.1075401731
A62: 2010-06-25 | B62: Quad | C62: WholeFoods | D62: Sioux | E62: 23 | F62: 316.25 | I62: Sunset | J62: 2117.5 | K62: 0.1903584672
A63: 2010-05-26 | B63: SunBell | C63: QFC | D63: Joe | E63: 16 | F63: 220 | I63: Sunshine | J63: 1251.25 | K63: 0.1124845488
A64: 2010-10-25 | B64: Carlota | C64: Coop | D64: Chin | E64: 17 | F64: 233.75 | I64: Tri | J64: 1471.25 | K64: 0.1322620519
A65: 2010-06-03 | B65: Sunshine | C65: Coop | D65: Fred | E65: 18 | F65: 247.5 | H65: Sioux Total | J65: 11123.75 | K65: 0.1301480051
A66: 2010-12-12 | B66: Carlota | C66: Albertsons | D66: Pham | E66: 25 | F66: 343.75 | H66: Sue | I66: Bellen | J66: 2378.75 | K66: 0.1735205617
A67: 2010-06-21 | B67: Sunset | C67: PCC | D67: Chin | E67: 2 | F67: 27.5 | I67: Carlota | J67: 2626.25 | K67: 0.1915747242
A68: 2010-09-04 | B68: SunBell | C68: WholeFoods | D68: Sue | E68: 1 | F68: 13.75 | I68: Quad | J68: 2255 | K68: 0.1644934804
A69: =RANDBETWEEN(40179,40543) -> 2010-06-20 | B69: SunBell | C69: Coop | D69: Fred | E69: 18 | F69: 247.5 | I69: SunBell | J69: 481.25 | K69: 0.03510531595
A70: 2010-11-05 | B70: Carlota | C70: WholeFoods | D70: Sioux | E70: 23 | F70: 316.25 | I70: Sunset | J70: 1677.5 | K70: 0.1223671013
A71: 2010-10-14 | B71: Sunshine | C71: WholeFoods | D71: Pham | E71: 4 | F71: 55 | I71: Sunshine | J71: 2557.5 | K71: 0.186559679
A72: 2010-01-13 | B72: Sunshine | C72: Coop | D72: Jo | E72: 12 | F72: 165 | I72: Tri | J72: 1732.5 | K72: 0.1263791374
A73: 2010-05-05 | B73: Sunshine | C73: QFC | D73: Sue | E73: 24 | F73: 330 | H73: Sue Total | J73: 13708.75 | K73: 0.1603925354
A74: 2010-11-22 | B74: Carlota | C74: Safeway | D74: Pham | E74: 10 | F74: 137.5 | H74: Grand Total | J74: 85470 | K74: 1
A75: 2010-02-23 | B75: Carlota | C75: TraderJoe's | D75: Sioux | E75: 15 | F75: 206.25
A76: 2010-09-27 | B76: Sunshine | C76: Safeway | D76: Sue | E76: 17 | F76: 233.75
A77: 2010-08-19 | B77: Carlota | C77: Albertsons | D77: Sue | E77: 13 | F77: 178.75
A78: 2010-07-20 | B78: Bellen | C78: Safeway | D78: Sue | E78: 10 | F78: 137.5
A79: 2010-04-11 | B79: Sunset | C79: TraderJoe's | D79: Jo | E79: 20 | F79: 275
A80: 2010-09-22 | B80: SunBell | C80: Albertsons | D80: Fred | E80: 20 | F80: 275
A81: 2010-02-05 | B81: Quad | C81: Coop | D81: Joe | E81: 1 | F81: 13.75
A82: 2010-01-10 | B82: SunBell | C82: TraderJoe's | D82: Chin | E82: 4 | F82: 55
A83: 2010-12-13 | B83: SunBell | C83: WholeFoods | D83: Fred | E83: 18 | F83: 247.5
A84: 2010-11-25 | B84: Carlota | C84: PCC | D84: Fred | E84: 10 | F84: 137.5
A85: 2010-11-16 | B85: Sunshine | C85: TraderJoe's | D85: Sue | E85: 6 | F85: 82.5
A86: 2010-01-12 | B86: Quad | C86: TraderJoe's | D86: Fred | E86: 12 | F86: 165
A87: 2010-06-17 | B87: SunBell | C87: Coop | D87: Pham | E87: 19 | F87: 261.25
A88: 2010-07-19 | B88: Sunshine | C88: WholeFoods | D88: Sue | E88: 1 | F88: 13.75
A89: 2010-04-18 | B89: Sunshine | C89: PCC | D89: Jo | E89: 10 | F89: 137.5
A90: 2010-07-14 | B90: SunBell | C90: PCC | D90: Fred | E90: 5 | F90: 68.75
A91: 2010-01-23 | B91: Sunshine | C91: Coop | D91: Jo | E91: 10 | F91: 137.5
A92: 2010-10-10 | B92: Bellen | C92: PCC | D92: Sue | E92: 16 | F92: 220
A93: 2010-02-11 | B93: Bellen | C93: TraderJoe's | D93: Chin | E93: 3 | F93: 41.25
A94: 2010-03-26 | B94: SunBell | C94: TraderJoe's | D94: Pham | E94: 20 | F94: 275
A95: 2010-05-25 | B95: Sunset | C95: TraderJoe's | D95: Pham | E95: 18 | F95: 247.5
A96: 2010-09-06 | B96: SunBell | C96: Safeway | D96: Joe | E96: 9 | F96: 123.75
A97: 2010-10-25 | B97: Quad | C97: TraderJoe's | D97: Fred | E97: 7 | F97: 96.25
A98: 2010-02-05 | B98: Quad | C98: Safeway | D98: Joe | E98: 4 | F98: 55
A99: 2010-03-29 | B99: Sunshine | C99: Albertsons | D99: Pham | E99: 12 | F99: 165
A100: 2010-11-19 | B100: Bellen | C100: QFC | D100: Chin | E100: 25 | F100: 343.75
A101: 2010-08-31 | B101: Quad | C101: PCC | D101: Sioux | E101: 10 | F101: 137.5
A102: 2010-03-17 | B102: Bellen | C102: Albertsons | D102: Pham | E102: 2 | F102: 27.5
A103: 2010-07-20 | B103: Sunshine | C103: Safeway | D103: Jo | E103: 22 | F103: 302.5
A104: 2010-06-22 | B104: Bellen | C104: QFC | D104: Sioux | E104: 21 | F104: 288.75
A105: 2010-03-02 | B105: Sunset | C105: QFC | D105: Sioux | E105: 3 | F105: 41.25
A106: 2010-05-22 | B106: Sunshine | C106: Safeway | D106: Jo | E106: 20 | F106: 275
A107: 2010-08-25 | B107: Sunset | C107: Coop | D107: Jo | E107: 16 | F107: 220
A108: 2010-11-26 | B108: Quad | C108: QFC | D108: Joe | E108: 8 | F108: 110
A109: 2010-02-09 | B109: Sunshine | C109: TraderJoe's | D109: Pham | E109: 24 | F109: 330
A110: 2010-05-22 | B110: Bellen | C110: PCC | D110: Chin | E110: 12 | F110: 165
A111: 2010-03-25 | B111: Quad | C111: TraderJoe's | D111: Chin | E111: 17 | F111: 233.75
A112: 2010-01-07 | B112: Carlota | C112: WholeFoods | D112: Fred | E112: 1 | F112: 13.75
A113: 2010-08-26 | B113: Tri | C113: WholeFoods | D113: Sue | E113: 2 | F113: 27.5
A114: 2010-01-19 | B114: Tri | C114: WholeFoods | D114: Jo | E114: 21 | F114: 288.75
A115: 2010-02-28 | B115: Sunshine | C115: PCC | D115: Joe | E115: 15 | F115: 206.25
A116: 2010-09-03 | B116: Tri | C116: Safeway | D116: Fred | E116: 24 | F116: 330
A117: 2010-07-11 | B117: Tri | C117: Safeway | D117: Chin | E117: 24 | F117: 330
A118: 2010-06-16 | B118: Quad | C118: Albertsons | D118: Sioux | E118: 6 | F118: 82.5
A119: 2010-06-28 | B119: Sunset | C119: WholeFoods | D119: Sioux | E119: 12 | F119: 165
A120: 2010-11-11 | B120: Quad | C120: Safeway | D120: Pham | E120: 1 | F120: 13.75
A121: 2010-05-07 | B121: Quad | C121: Coop | D121: Chin | E121: 21 | F121: 288.75
A122: 2010-02-11 | B122: Carlota | C122: Albertsons | D122: Fred | E122: 23 | F122: 316.25
A123: 2010-01-29 | B123: Quad | C123: Albertsons | D123: Jo | E123: 17 | F123: 233.75
A124: 2010-12-04 | B124: SunBell | C124: QFC | D124: Pham | E124: 12 | F124: 165
A125: 2010-06-09 | B125: Tri | C125: TraderJoe's | D125: Jo | E125: 1 | F125: 13.75
A126: 2010-06-03 | B126: Tri | C126: Coop | D126: Pham | E126: 6 | F126: 82.5
A127: 2010-11-14 | B127: Carlota | C127: PCC | D127: Jo | E127: 18 | F127: 247.5
A128: 2010-12-05 | B128: SunBell | C128: WholeFoods | D128: Jo | E128: 8 | F128: 110
A129: 2010-05-27 | B129: Sunshine | C129: Safeway | D129: Pham | E129: 11 | F129: 151.25
A130: 2010-10-10 | B130: Carlota | C130: PCC | D130: Fred | E130: 6 | F130: 82.5
A131: 2010-12-02 | B131: Sunset | C131: TraderJoe's | D131: Sue | E131: 18 | F131: 247.5
A132: 2010-04-26 | B132: Tri | C132: Safeway | D132: Fred | E132: 8 | F132: 110
A133: =RANDBETWEEN(40179,40543) -> 2010-03-06 | B133: Sunset | C133: PCC | D133: Chin | E133: 11 | F133: 151.25
A134: 2010-03-17 | B134: Tri | C134: WholeFoods | D134: Chin | E134: 2 | F134: 27.5
A135: 2010-10-08 | B135: Carlota | C135: Albertsons | D135: Sioux | E135: 22 | F135: 302.5
A136: 2010-07-28 | B136: Quad | C136: TraderJoe's | D136: Sioux | E136: 21 | F136: 288.75
A137: 2010-10-06 | B137: Bellen | C137: TraderJoe's | D137: Chin | E137: 11 | F137: 151.25
A138: 2010-12-01 | B138: Sunshine | C138: Coop | D138: Jo | E138: 6 | F138: 82.5
A139: 2010-05-07 | B139: Sunshine | C139: Coop | D139: Jo | E139: 25 | F139: 343.75
A140: 2010-03-27 | B140: Bellen | C140: Coop | D140: Pham | E140: 2 | F140: 27.5
A141: 2010-05-20 | B141: Bellen | C141: Safeway | D141: Joe | E141: 15 | F141: 206.25
A142: 2010-08-25 | B142: Quad | C142: WholeFoods | D142: Sue | E142: 21 | F142: 288.75
A143: 2010-01-11 | B143: Tri | C143: QFC | D143: Sioux | E143: 5 | F143: 68.75
A144: 2010-09-22 | B144: Carlota | C144: WholeFoods | D144: Sue | E144: 13 | F144: 178.75
A145: 2010-10-23 | B145: Carlota | C145: Safeway | D145: Pham | E145: 13 | F145: 178.75
A146: 2010-07-29 | B146: Tri | C146: Safeway | D146: Joe | E146: 9 | F146: 123.75
A147: 2010-03-02 | B147: Sunshine | C147: Safeway | D147: Sue | E147: 18 | F147: 247.5
A148: 2010-06-05 | B148: Carlota | C148: Albertsons | D148: Chin | E148: 8 | F148: 110
A149: 2010-10-03 | B149: Tri | C149: QFC | D149: Sue | E149: 7 | F149: 96.25
A150: 2010-01-14 | B150: Sunset | C150: PCC | D150: Chin | E150: 6 | F150: 82.5
A151: 2010-01-04 | B151: SunBell | C151: Coop | D151: Sioux | E151: 7 | F151: 96.25
A152: 2010-12-26 | B152: Tri | C152: PCC | D152: Sioux | E152: 14 | F152: 192.5
A153: 2010-02-05 | B153: Quad | C153: PCC | D153: Joe | E153: 24 | F153: 330
A154: 2010-03-21 | B154: Quad | C154: QFC | D154: Joe | E154: 17 | F154: 233.75
A155: 2010-04-09 | B155: Carlota | C155: QFC | D155: Chin | E155: 5 | F155: 68.75
A156: 2010-12-10 | B156: Bellen | C156: TraderJoe's | D156: Sue | E156: 1 | F156: 13.75
A157: 2010-07-10 | B157: Carlota | C157: WholeFoods | D157: Sue | E157: 14 | F157: 192.5
A158: 2010-03-21 | B158: Sunshine | C158: PCC | D158: Jo | E158: 12 | F158: 165
A159: 2010-06-05 | B159: Sunset | C159: PCC | D159: Sioux | E159: 25 | F159: 343.75
A160: 2010-07-05 | B160: Carlota | C160: Albertsons | D160: Jo | E160: 3 | F160: 41.25
A161: 2010-01-22 | B161: Bellen | C161: PCC | D161: Jo | E161: 14 | F161: 192.5
A162: 2010-06-24 | B162: Tri | C162: PCC | D162: Jo | E162: 6 | F162: 82.5
A163: 2010-09-13 | B163: Carlota | C163: Albertsons | D163: Fred | E163: 17 | F163: 233.75
A164: 2010-06-03 | B164: SunBell | C164: Albertsons | D164: Sioux | E164: 23 | F164: 316.25
A165: 2010-06-14 | B165: Bellen | C165: PCC | D165: Fred | E165: 4 | F165: 55
A166: 2010-10-05 | B166: Sunset | C166: WholeFoods | D166: Sue | E166: 20 | F166: 275
A167: 2010-10-12 | B167: Carlota | C167: QFC | D167: Sioux | E167: 16 | F167: 220
A168: 2010-08-13 | B168: Sunset | C168: WholeFoods | D168: Jo | E168: 19 | F168: 261.25
A169: 2010-03-19 | B169: Sunshine | C169: Safeway | D169: Sue | E169: 16 | F169: 220
A170: 2010-02-24 | B170: Sunshine | C170: WholeFoods | D170: Joe | E170: 1 | F170: 13.75
A171: 2010-11-30 | B171: SunBell | C171: PCC | D171: Jo | E171: 11 | F171: 151.25
A172: 2010-08-28 | B172: Tri | C172: Coop | D172: Sioux | E172: 18 | F172: 247.5
A173: 2010-02-08 | B173: Tri | C173: Safeway | D173: Fred | E173: 10 | F173: 137.5
A174: 2010-12-27 | B174: Carlota | C174: Albertsons | D174: Fred | E174: 14 | F174: 192.5
A175: 2010-04-28 | B175: Carlota | C175: WholeFoods | D175: Pham | E175: 11 | F175: 151.25
A176: 2010-09-30 | B176: Carlota | C176: Albertsons | D176: Pham | E176: 20 | F176: 275
A177: 2010-05-07 | B177: Sunset | C177: Coop | D177: Fred | E177: 21 | F177: 288.75
A178: 2010-09-17 | B178: Carlota | C178: TraderJoe's | D178: Sue | E178: 17 | F178: 233.75
A179: 2010-09-10 | B179: Sunshine | C179: WholeFoods | D179: Sue | E179: 16 | F179: 220
A180: 2010-08-25 | B180: Bellen | C180: PCC | D180: Jo | E180: 6 | F180: 82.5
A181: 2010-05-29 | B181: Tri | C181: Albertsons | D181: Pham | E181: 3 | F181: 41.25
A182: 2010-02-21 | B182: Tri | C182: QFC | D182: Pham | E182: 7 | F182: 96.25
A183: 2010-04-20 | B183: Carlota | C183: Coop | D183: Joe | E183: 8 | F183: 110
A184: 2010-11-11 | B184: Sunset | C184: Safeway | D184: Chin | E184: 16 | F184: 220
A185: 2010-08-30 | B185: Bellen | C185: QFC | D185: Joe | E185: 19 | F185: 261.25
A186: 2010-11-19 | B186: Tri | C186: WholeFoods | D186: Joe | E186: 17 | F186: 233.75
A187: 2010-08-13 | B187: Sunset | C187: Safeway | D187: Sioux | E187: 11 | F187: 151.25
A188: 2010-11-01 | B188: Sunshine | C188: Albertsons | D188: Fred | E188: 24 | F188: 330
A189: 2010-01-18 | B189: Carlota | C189: Safeway | D189: Joe | E189: 20 | F189: 275
A190: 2010-05-24 | B190: Quad | C190: Albertsons | D190: Joe | E190: 19 | F190: 261.25
A191: 2010-12-29 | B191: Bellen | C191: WholeFoods | D191: Jo | E191: 3 | F191: 41.25
A192: 2010-06-30 | B192: Sunshine | C192: WholeFoods | D192: Jo | E192: 16 | F192: 220
A193: 2010-03-28 | B193: Sunshine | C193: Safeway | D193: Sioux | E193: 23 | F193: 316.25
A194: 2010-07-20 | B194: Sunshine | C194: Albertsons | D194: Pham | E194: 16 | F194: 220
A195: 2010-05-25 | B195: Carlota | C195: PCC | D195: Sue | E195: 23 | F195: 316.25
A196: 2010-08-06 | B196: Bellen | C196: TraderJoe's | D196: Sue | E196: 19 | F196: 261.25
A197: =RANDBETWEEN(40179,40543) -> 2010-09-30 | B197: Carlota | C197: WholeFoods | D197: Pham | E197: 2 | F197: 27.5
A198: 2010-10-28 | B198: SunBell | C198: PCC | D198: Sioux | E198: 18 | F198: 247.5
A199: 2010-08-06 | B199: Carlota | C199: Coop | D199: Joe | E199: 2 | F199: 27.5
A200: 2010-12-11 | B200: Sunshine | C200: QFC | D200: Jo | E200: 23 | F200: 316.25
... 280 more rows

Sheet NETWORKDAYS
A1: NETWORKDAYS Old 'Compatibility' Function
A2: NETWORKDAYS.INTL New 2010 Function
A4: Other videos on this topic:
A5: Excel Magic Trick 437: NETWORKDAYS Function for Counting Workdays
A6: Excel Magic Trick 438: Counting Workdays Without NETWORKDAYS Function (Weekend is not Sat. & Sun.)
A7: Excel Magic Trick 439: NETWORKDAYS.INTL function Excel 2010
A8: Excel Magic Trick 535: Count Weekdays Including Half Days NETWORKDAYS & NETWORKDAYS.INTL
A10: Holidays | C10: NETWORKDAY assumes Sat and Sun. | G10: weekend argument Weekend days | M10: =CHOOSE(M11,"Sun","Mon","Tue","Wed","Thu","Fri","Sat") -> Mon | N10: =CHOOSE(N11,"Sun","Mon","Tue","Wed","Thu","Fri","Sat") -> Tue
A11: 2009-11-06 | C11: Start | D11: End | E11: Net working Days | G11: 1 or omitted Saturday, Sunday | M11: 2 | N11: =M11+1 -> 3
A12: 2009-11-12 | C12: 2009-10-29 | D12: 2009-11-16 | E12: =NETWORKDAYS(C12,D12,$A$11:$A$29) -> 10 | G12: 2 Sunday, Monday
A13: 2009-11-13 | C13: 2009-10-29 | D13: 2010-01-30 | E13: 63 | G13: 3 Monday, Tuesday | M13: old method
A14: 2010-01-01 | C14: 2009-10-31 | D14: 2010-01-02 | E14: 41 | G14: 4 Tuesday, Wednesday | M14: =SUMPRODUCT((WEEKDAY(ROW(INDIRECT(C24&":"&D24)))<$M$11)+(WEEKDAY(ROW(INDIRECT(C24&":"&D24)))>$N$11),--(COUNTIF($A$11:$A$29,ROW(INDIRECT(C24&":"&D24)))=0)) -> 11
A15: 2010-01-10 | C15: 2009-11-01 | D15: 2010-01-13 | E15: 49 | G15: 5 Wednesday, Thursday | M15: 63
C16: 2009-11-02 | D16: 2009-12-04 | E16: 22 | G16: 6 Thursday, Friday | M16: 42
C17: 2009-11-02 | D17: 2010-02-07 | E17: 66 | G17: 7 Friday, Saturday | M17: 47
C18: 2009-11-04 | D18: 2010-02-15 | E18: 70 | G18: 11 Sunday only | M18: 20
G19: 12 Monday only | M19: 65
E20: Third argument | G20: 13 Tuesday only | M20: 70
E21: 3 | G21: 14 Wednesday only
C22: NETWORKDAYS.INTL | G22: 15 Thursday only
C23: Start | D23: End | E23: Net working Days | G23: 16 Friday only
C24: 2009-10-29 | D24: 2009-11-16 | G24: 17 Saturday only
C25: 2009-10-29 | D25: 2010-01-30
C26: 2009-10-31 | D26: 2010-01-02
C27: 2009-11-01 | D27: 2010-01-13
C28: 2009-11-02 | D28: 2009-12-04
C29: 2009-11-02 | D29: 2010-02-07
C30: 2009-11-04 | D30: 2010-02-15

Sheet NETWORKDAYS (an)
A1: NETWORKDAYS Old 'Compatibility' Function
A2: NETWORKDAYS.INTL New 2010 Function
A4: Other videos on this topic:
A5: Excel Magic Trick 437: NETWORKDAYS Function for Counting Workdays
A6: Excel Magic Trick 438: Counting Workdays Without NETWORKDAYS Function (Weekend is not Sat. & Sun.)
A7: Excel Magic Trick 439: NETWORKDAYS.INTL function Excel 2010
A8: Excel Magic Trick 535: Count Weekdays Including Half Days NETWORKDAYS & NETWORKDAYS.INTL
A10: Holidays | C10: NETWORKDAY assumes Sat and Sun. | G10: weekend argument Weekend days | M10: =CHOOSE(M11,"Sun","Mon","Tue","Wed","Thu","Fri","Sat") -> Mon | N10: =CHOOSE(N11,"Sun","Mon","Tue","Wed","Thu","Fri","Sat") -> Tue
A11: 2009-11-06 | C11: Start | D11: End | E11: Net working Days | G11: 1 or omitted Saturday, Sunday | M11: 2 | N11: =M11+1 -> 3
A12: 2009-11-12 | C12: 2009-10-29 | D12: 2009-11-16 | E12: =NETWORKDAYS(C12,D12,$A$11:$A$29) -> 10 | G12: 2 Sunday, Monday
A13: 2009-11-13 | C13: 2009-10-29 | D13: 2010-01-30 | E13: =NETWORKDAYS(C13,D13,$A$11:$A$29) -> 63 | G13: 3 Monday, Tuesday | M13: old method
A14: 2010-01-01 | C14: 2009-10-31 | D14: 2010-01-02 | E14: 41 | G14: 4 Tuesday, Wednesday | M14: =SUMPRODUCT((WEEKDAY(ROW(INDIRECT(C24&":"&D24)))<$M$11)+(WEEKDAY(ROW(INDIRECT(C24&":"&D24)))>$N$11),--(COUNTIF($A$11:$A$29,ROW(INDIRECT(C24&":"&D24)))=0)) -> 11
A15: 2010-01-10 | C15: 2009-11-01 | D15: 2010-01-13 | E15: 49 | G15: 5 Wednesday, Thursday | M15: 63
C16: 2009-11-02 | D16: 2009-12-04 | E16: 22 | G16: 6 Thursday, Friday | M16: 42
C17: 2009-11-02 | D17: 2010-02-07 | E17: 66 | G17: 7 Friday, Saturday | M17: 47
C18: 2009-11-04 | D18: 2010-02-15 | E18: 70 | G18: 11 Sunday only | M18: 20
G19: 12 Monday only | M19: 65
E20: Third argument | G20: 13 Tuesday only | M20: 70
E21: 3 | G21: 14 Wednesday only
C22: NETWORKDAYS.INTL | G22: 15 Thursday only
C23: Start | D23: End | E23: Net working Days | G23: 16 Friday only
C24: 2009-10-29 | D24: 2009-11-16 | E24: =NETWORKDAYS.INTL(C24,D24,$E$21,$A$11:$A$29) -> 11 | G24: 17 Saturday only
C25: 2009-10-29 | D25: 2010-01-30 | E25: =NETWORKDAYS.INTL(C25,D25,$E$21,$A$11:$A$29) -> 63
C26: 2009-10-31 | D26: 2010-01-02 | E26: 42
C27: 2009-11-01 | D27: 2010-01-13 | E27: 47
C28: 2009-11-02 | D28: 2009-12-04 | E28: 20
C29: 2009-11-02 | D29: 2010-02-07 | E29: 65
C30: 2009-11-04 | D30: 2010-02-15 | E30: 70

Sheet WORKDAY
A1: WORKDAY Old 'Compatibility' Function
A2: WORKDAY.INTL New 2010 Function
A4: Other videos on this topic:
A5: Excel Magic Trick 563: WORKDAY.INTL & WORKDAY Excel 2010 Functions
A6: Excel Magic Trick 565: Excel 2010 Daily Gantt Chart
A7: Excel Magic Trick 783: Date Functions & Formulas (17 Examples)
A9: WORKDAY assumes Sat. & Sun. are weekend
A10: Start Date | B10: 2010-04-02 | D10: Holidays
A11: # of Workdays in future | B11: 16 | D11: 2010-04-05
A12: Work Date in Future | B12: =WORKDAY(B10,B11,D11:D16) -> 2010-04-27
A18: WORKDAY.INTL has third argument that allows weekends that are different from Sat. & Sun.
A19: Fri & Sat are weekend | D19: Holidays
A20: Start Date | B20: 2010-04-02 | D20: 2010-04-05
A21: # of Workdays in future | B21: 16
A22: Work Date in Future
A23: Friday is included
A33: 2010-04-02 | B33: =WEEKDAY(A33,17)>5 -> TRUE
A34: 2010-04-03 | B34: TRUE
A35: 2010-04-04 | B35: FALSE
A36: 2010-04-05 | B36: FALSE
A37: 2010-04-06 | B37: FALSE
A38: 2010-04-07 | B38: FALSE
A39: 2010-04-08 | B39: FALSE
A40: 2010-04-09 | B40: TRUE
A41: 2010-04-10 | B41: TRUE
A42: 2010-04-11 | B42: FALSE
A43: 2010-04-12 | B43: FALSE
A44: 2010-04-13 | B44: FALSE
A45: 2010-04-14 | B45: FALSE
A46: 2010-04-15 | B46: FALSE
A47: 2010-04-16 | B47: TRUE
A48: 2010-04-17 | B48: TRUE
A49: 2010-04-18 | B49: FALSE
A50: 2010-04-19 | B50: FALSE
A51: 2010-04-20 | B51: FALSE
A52: 2010-04-21 | B52: FALSE
A53: 2010-04-22 | B53: FALSE
A54: 2010-04-23 | B54: TRUE
A55: 2010-04-24 | B55: TRUE
A56: 2010-04-25 | B56: FALSE
A57: 2010-04-26 | B57: FALSE
A58: 2010-04-27 | B58: FALSE
A59: 2010-04-28 | B59: FALSE
A60: 2010-04-29 | B60: FALSE
A61: 2010-04-30 | B61: TRUE
A62: 2010-05-01 | B62: TRUE

Sheet WORKDAY (an)
A1: WORKDAY Old 'Compatibility' Function
A2: WORKDAY.INTL New 2010 Function
A4: Other videos on this topic:
A5: Excel Magic Trick 563: WORKDAY.INTL & WORKDAY Excel 2010 Functions
A6: Excel Magic Trick 565: Excel 2010 Daily Gantt Chart
A7: Excel Magic Trick 783: Date Functions & Formulas (17 Examples)
A9: WORKDAY assumes Sat. & Sun. are weekend
A10: Start Date | B10: 2010-04-02 | D10: Holidays
A11: # of Workdays in future | B11: 16 | D11: 2010-04-05
A12: Work Date in Future | B12: =WORKDAY(B10,B11,D11:D16) -> 2010-04-27
A18: WORKDAY.INTL has third argument that allows weekends that are different from Sat. & Sun.
A19: Fri & Sat are weekend | D19: Holidays
A20: Start Date | B20: 2010-04-02 | D20: 2010-04-05
A21: # of Workdays in future | B21: 16
A22: Work Date in Future | B22: =WORKDAY.INTL(B20,B21,7,D20:D25) -> 2010-04-26
A23: Friday is included | B23: =WORKDAY.INTL(B20,B21-1,7,D20:D25) -> 2010-04-25

Sheet (565) (hidden)
A2: Product Start Date | B2: Days in Project | C2: End Date | D2: 2010-04-01 | E2: 2010-04-02 | F2: 2010-04-03 | G2: 2010-04-04 | H2: 2010-04-05 | I2: 2010-04-06 | J2: 2010-04-07 | K2: 2010-04-08 | L2: 2010-04-09 | M2: 2010-04-10 | N2: 2010-04-11 | O2: 2010-04-12
A3: 2010-04-01 | B3: 2
A4: 2010-04-01 | B4: 4
A5: 2010-04-04 | B5: 4
A6: 2010-04-04 | B6: 2
A7: 2010-04-01 | B7: 3
A8: 2010-04-06 | B8: 3
A10: Holidays | B10: Weekends
A11: 2010-04-05 | B11: Friday
B12: Saturday | D12: =AND(D$2>=$A3,D$2<=$C3)

Sheet (565an) (hidden)
A2: Product Start Date | B2: Days in Project | C2: End Date | D2: 2010-04-01 | E2: 2010-04-02 | F2: 2010-04-03 | G2: 2010-04-04 | H2: 2010-04-05 | I2: 2010-04-06 | J2: 2010-04-07 | K2: 2010-04-08 | L2: 2010-04-09 | M2: 2010-04-10 | N2: 2010-04-11 | O2: 2010-04-12
A3: 2010-04-01 | B3: 2 | C3: =WORKDAY.INTL(A3,B3-1,7,$A$11:$A$16) -> 2010-04-04
A4: 2010-04-01 | B4: 4 | C4: =WORKDAY.INTL(A4,B4-1,7,$A$11:$A$16) -> 2010-04-07
A5: 2010-04-04 | B5: 4 | C5: 2010-04-08
A6: 2010-04-04 | B6: 2 | C6: 2010-04-06
A7: 2010-04-01 | B7: 3 | C7: 2010-04-06
A8: 2010-04-06 | B8: 3 | C8: 2010-04-08
A10: Holidays | B10: Weekends
A11: 2010-04-05 | B11: Friday
B12: Saturday | D12: =AND(D$2>=$A3,D$2<=$C3)
D14: Video:
D15: Excel Magic Trick 565: Excel 2010 Daily Gantt Chart

Sheet STDEV.S
A1: About 50 new Statistic Functions:
A2: STDEV Old 'Compatibility' Function
A3: STDEV.S New 2010 Function
A5: Other videos on this topic:
A6: Excel 2010 Statistics #30: Standard Deviation: How fairly does the mean represent its data points?
A8: Mean
A9: Standard Deviation | H9: How fairly the mean represents its data points? How clustered are the data points about the mean? Dispersion. Variability. Risk.
A10: Standard Deviation
A11: Year | B11: Stock Return A | C11: Stock Return B | V11: Stock Return A | W11: Y A | X11: Stock Return B | Y11: Y B
A12: 1995 | B12: 0.05 | C12: 0.02 | V12: 0.05 | W12: 1 | X12: 0.02 | Y12: 2
A13: 1996 | B13: 0.1 | C13: 0.04 | V13: 0.1 | W13: 1 | X13: 0.04 | Y13: 2
A14: 1997 | B14: 0.12 | C14: 0.035 | V14: 0.12 | W14: 1 | X14: 0.035 | Y14: 2
A15: 1998 | B15: 0.17 | C15: 0.055 | V15: 0.17 | W15: 1 | X15: 0.055 | Y15: 2
A16: 1999 | B16: 0.19 | C16: 0.04 | V16: 0.19 | W16: 1 | X16: 0.04 | Y16: 2
A17: 2000 | B17: 0.01 | C17: 0.042 | V17: 0.01 | W17: 1 | X17: 0.042 | Y17: 2
A18: 2001 | B18: -0.15 | C18: 0.043 | V18: -0.15 | W18: 1 | X18: 0.043 | Y18: 2
A19: 2002 | B19: -0.03 | C19: 0.047 | V19: -0.03 | W19: 1 | X19: 0.047 | Y19: 2
A20: 2003 | B20: 0.03 | C20: 0.05 | V20: 0.03 | W20: 1 | X20: 0.05 | Y20: 2
A21: 2004 | B21: 0.055 | C21: 0.051 | V21: 0.055 | W21: 1 | X21: 0.051 | Y21: 2
A22: 2005 | B22: 0.1 | C22: 0.03 | V22: 0.1 | W22: 1 | X22: 0.03 | Y22: 2
A23: 2006 | B23: 0.065 | C23: 0.029 | V23: 0.065 | W23: 1 | X23: 0.029 | Y23: 2
A24: 2007 | B24: -0.02 | C24: 0.046 | V24: -0.02 | W24: 1 | X24: 0.046 | Y24: 2
A25: 2008 | B25: -0.22 | C25: 0.049 | V25: -0.22 | W25: 1 | X25: 0.049 | Y25: 2
A26: 2009 | B26: 0.15 | C26: 0.041 | V26: 0.15 | W26: 1 | X26: 0.041 | Y26: 2

Sheet STDEV.S (an)
A1: About 50 new Statistic Functions:
A2: STDEV Old 'Compatibility' Function
A3: STDEV.S New 2010 Function
A5: Other videos on this topic:
A6: Excel 2010 Statistics #30: Standard Deviation: How fairly does the mean represent its data points?
A8: Mean | B8: =AVERAGE(B12:B26) -> 0.04133333333 | C8: 0.0412
A9: Standard Deviation | B9: =STDEV(B12:B26) -> 0.1131444504 | C9: 0.009450623562 | H9: How fairly the mean represents its data points? How clustered are the data points about the mean? Dispersion. Variability. Risk.
A10: Standard Deviation | B10: =_xlfn.STDEV.S(B12:B26) -> 0.1131444504 | C10: 0.009450623562
A11: Year | B11: Stock Return A | C11: Stock Return B | V11: Stock Return A | W11: Y A | X11: Stock Return B | Y11: Y B
A12: 1995 | B12: 0.05 | C12: 0.02 | V12: 0.05 | W12: 1 | X12: 0.02 | Y12: 2
A13: 1996 | B13: 0.1 | C13: 0.04 | V13: 0.1 | W13: 1 | X13: 0.04 | Y13: 2
A14: 1997 | B14: 0.12 | C14: 0.035 | V14: 0.12 | W14: 1 | X14: 0.035 | Y14: 2
A15: 1998 | B15: 0.17 | C15: 0.055 | V15: 0.17 | W15: 1 | X15: 0.055 | Y15: 2
A16: 1999 | B16: 0.19 | C16: 0.04 | V16: 0.19 | W16: 1 | X16: 0.04 | Y16: 2
A17: 2000 | B17: 0.01 | C17: 0.042 | V17: 0.01 | W17: 1 | X17: 0.042 | Y17: 2
A18: 2001 | B18: -0.15 | C18: 0.043 | V18: -0.15 | W18: 1 | X18: 0.043 | Y18: 2
A19: 2002 | B19: -0.03 | C19: 0.047 | V19: -0.03 | W19: 1 | X19: 0.047 | Y19: 2
A20: 2003 | B20: 0.03 | C20: 0.05 | V20: 0.03 | W20: 1 | X20: 0.05 | Y20: 2
A21: 2004 | B21: 0.055 | C21: 0.051 | V21: 0.055 | W21: 1 | X21: 0.051 | Y21: 2
A22: 2005 | B22: 0.1 | C22: 0.03 | V22: 0.1 | W22: 1 | X22: 0.03 | Y22: 2
A23: 2006 | B23: 0.065 | C23: 0.029 | V23: 0.065 | W23: 1 | X23: 0.029 | Y23: 2
A24: 2007 | B24: -0.02 | C24: 0.046 | V24: -0.02 | W24: 1 | X24: 0.046 | Y24: 2
A25: 2008 | B25: -0.22 | C25: 0.049 | V25: -0.22 | W25: 1 | X25: 0.049 | Y25: 2
A26: 2009 | B26: 0.15 | C26: 0.041 | V26: 0.15 | W26: 1 | X26: 0.041 | Y26: 2

Sheet NORM.S.DIST
A1: About 50 new Statistic Functions:
A2: NORMSDIST Old 'Compatibility' Function
A3: NORM.S.DIST New 2010 Function
A5: Other videos on this topic:
A6: Excel 2010 Statistics #30: Standard Deviation: How fairly does the mean represent its data points?
A7: Excel 2010 Statistics 57: NORM.DIST, NORM.S.DIST, NORM.INV, NORM.S.INV Functions Bell Curve
A8: Playlists with over 100 Stats Videos:
A9: http://www.youtube.com/user/ExcelIsFun#grid/user/FAD0C5745D4A1F60 | F9: or | G9: http://www.youtube.com/user/ExcelIsFun#grid/user/A1F22CE787E693BF
A11: X | B11: Test Score Mean | C11: Standard Deviation | D11: z | E11: ="P(X<="&A12&")" -> P(X<=20)
A12: 20 | B12: 25 | C12: 4.75 | D12: =(A12-B12)/C12 -> -1.052631579 | F12: =NORMSDIST(D2)
F13: =NORM.S.DIST(D2,1)
A15: =IF(E13="","","The Probability that we could get a score of "&FIXED(A12,0)&" or less is "&TEXT(E13,"0.00%")) -> 

Sheet NORM.S.DIST (an)
A1: About 50 new Statistic Functions:
A2: NORMSDIST Old 'Compatibility' Function
A3: NORM.S.DIST New 2010 Function
A5: Other videos on this topic:
A6: Excel 2010 Statistics #30: Standard Deviation: How fairly does the mean represent its data points?
A7: Excel 2010 Statistics 57: NORM.DIST, NORM.S.DIST, NORM.INV, NORM.S.INV Functions Bell Curve
A8: Playlists with over 100 Stats Videos:
A9: http://www.youtube.com/user/ExcelIsFun#grid/user/FAD0C5745D4A1F60 | F9: or | G9: http://www.youtube.com/user/ExcelIsFun#grid/user/A1F22CE787E693BF
A11: X | B11: Test Score Mean | C11: Standard Deviation | D11: z | E11: ="P(X<="&A12&")" -> P(X<=20)
A12: 20 | B12: 25 | C12: 4.75 | D12: =(A12-B12)/C12 -> -1.052631579 | E12: =NORMSDIST(D12) -> 0.1462549391 | F12: =NORMSDIST(D2)
E13: =_xlfn.NORM.S.DIST(D12,1) -> 0.1462549391 | F13: =NORM.S.DIST(D2,1)
A15: =IF(E13="","","The Probability that we could get a score of "&FIXED(A12,0)&" or less is "&TEXT(E13,"0.00%")) -> The Probability that we could get a score of 20 or less is 14.63%

Sheet RANK
A1: RANK Old 'Compatibility' Function
A2: RANK.AVE New 2010 Function
A3: RANK.EQ New 2010 Function
A5: Other videos on this topic:
A6: Excel 2010 Preview #1: New Rank Function RANK.AVE
A7: Excel Magic Trick 337: RANK function 10 Examples
B9: RANK | C9: RANK.AVG | D9: RANK.EQ
A10: CPA Scores | B10: Rank old | C10: Rank new 1 | D10: Rank new 2 | F10: old
A11: 7 | F11: =RANK(A11,$A$11:$A$24,0)+(COUNT($A$11:$A$24)+1-RANK(A11,$A$11:$A$24,0)-RANK(A11,$A$11:$A$24,1))/2 -> 14
A12: 17 | F12: =RANK(A12,$A$11:$A$24,0)+(COUNT($A$11:$A$24)+1-RANK(A12,$A$11:$A$24,0)-RANK(A12,$A$11:$A$24,1))/2 -> 13
A13: 26 | F13: 12
A14: 27 | F14: 11
A15: 30 | F15: 10
A16: 41 | F16: 9
A17: 42 | F17: 7.5
A18: 42 | F18: 7.5
A19: 43 | F19: 6
A20: 45 | F20: 5
A21: 54 | F21: 3.5
A22: 54 | F22: 3.5
A23: 59 | F23: 2
A24: 97 | F24: 1

Sheet RANK (an)
A1: RANK Old 'Compatibility' Function
A2: RANK.AVE New 2010 Function
A3: RANK.EQ New 2010 Function
A5: Other videos on this topic:
A6: Excel 2010 Preview #1: New Rank Function RANK.AVE
A7: Excel Magic Trick 337: RANK function 10 Examples
B9: RANK | C9: RANK.AVG | D9: RANK.EQ
A10: CPA Scores | B10: Rank old | C10: Rank new 1 | D10: Rank new 2 | F10: old
A11: 7 | B11: =RANK(A11,$A$11:$A$24,0) -> 14 | C11: =_xlfn.RANK.AVG(A11,$A$11:$A$24,0) -> 14 | D11: =_xlfn.RANK.EQ(A11,$A$11:$A$24,0) -> 14 | F11: =RANK(A11,$A$11:$A$24,0)+(COUNT($A$11:$A$24)+1-RANK(A11,$A$11:$A$24,0)-RANK(A11,$A$11:$A$24,1))/2 -> 14
A12: 17 | B12: =RANK(A12,$A$11:$A$24,0) -> 13 | C12: =_xlfn.RANK.AVG(A12,$A$11:$A$24,0) -> 13 | D12: =_xlfn.RANK.EQ(A12,$A$11:$A$24,0) -> 13 | F12: =RANK(A12,$A$11:$A$24,0)+(COUNT($A$11:$A$24)+1-RANK(A12,$A$11:$A$24,0)-RANK(A12,$A$11:$A$24,1))/2 -> 13
A13: 26 | B13: 12 | C13: 12 | D13: 12 | F13: 12
A14: 27 | B14: 11 | C14: 11 | D14: 11 | F14: 11
A15: 30 | B15: 10 | C15: 10 | D15: 10 | F15: 10
A16: 41 | B16: 9 | C16: 9 | D16: 9 | F16: 9
A17: 42 | B17: 7 | C17: 7.5 | D17: 7 | F17: 7.5
A18: 42 | B18: 7 | C18: 7.5 | D18: 7 | F18: 7.5
A19: 43 | B19: 6 | C19: 6 | D19: 6 | F19: 6
A20: 45 | B20: 5 | C20: 5 | D20: 5 | F20: 5
A21: 54 | B21: 3 | C21: 3.5 | D21: 3 | F21: 3.5
A22: 54 | B22: 3 | C22: 3.5 | D22: 3 | F22: 3.5
A23: 59 | B23: 2 | C23: 2 | D23: 2 | F23: 2
A24: 97 | B24: 1 | C24: 1 | D24: 1 | F24: 1

Sheet AGGREGATE
A1: AGGREGATE New 2010 Function
A3: Excel 2010 AGGREGATE Function
A4: This amazing new function can do hundreds of things:
A5: 1. AGGREGATE function Contains 19 different functions
A6: 2. AGGREGATE function Ignores Hidden Rows for Calculations
A7: 3. AGGREGATE function Ignores Error Values for Calculations
A8: 4. AGGREGATE function Ignores Nested SUBTOTALs for Calculations
A9: 5. AGGREGATE function Ignores Filtered Values When Making Calculations
A10: 6. AGGREGATE Function Array Formula #1 Single Cell Array Formula
A11: 7. AGGREGATE Function Array Formula #2 Return 5 Largest Values
A12: 8. AGGREGATE Function Array Formula #3 Calculate 90 Percentile CPA Scores
A13: 9. AGGREGATE function Can Not Handle 3-D Cell References
A14: 10. AGGREGATE Function Array Formula #4 Extract Records 1 criterion
A15: 11. AGGREGATE function Array Formula #5 Extract Records 2 criteria
A17: 12 Other videos on this topic:
A18: http://www.youtube.com/user/ExcelIsFun#grid/user/95781BFAAB4162C0

Sheet SUMIFS More
A1: Date | B1: Product | C1: Customer | D1: SalesRep | E1: Units | F1: Sales | H1: Criteria: | R1: SalesRep | S1: Product
A2: 2008-01-02 | B2: Sunshine | C2: Albertsons | D2: Fred | E2: 5 | F2: 68.75 | H2: SalesRep | I2: Product | K2: Right-click QAT or Ribbon to Customize | R2: Fred | S2: Sunshine
A3: 2008-07-30 | B3: Quad | C3: PCC | D3: Sioux | E3: 18 | F3: 247.5 | H3: Sue | I3: Quad | R3: Sioux | S3: Quad
A4: 2008-11-30 | B4: Carlota | C4: Albertsons | D4: Sue | E4: 22 | F4: 302.5 | K4: New Functions in 2007 for more than 1 criteria | R4: Sue | S4: Carlota
A5: 2009-04-21 | B5: SunBell | C5: QFC | D5: Jo | E5: 8 | F5: 110 | H5: Count | K5: COUNTIFS | R5: Jo | S5: SunBell
A6: 2009-12-31 | B6: Sunset | C6: QFC | D6: Sioux | E6: 20 | F6: 275 | H6: Add | K6: SUMIFS | R6: Pham | S6: Sunset
A7: 2008-01-26 | B7: Tri | C7: WholeFoods | D7: Sioux | E7: 11 | F7: 151.25 | H7: Ave | I7: =AVERAGEIFS($F$2:$F$480,$D$2:$D$480,H3,$B$2:$B$480,I3) -> 205 | K7: AVERAGEIFS | R7: Chin | S7: Tri
A8: 2009-03-27 | B8: Sunset | C8: WholeFoods | D8: Jo | E8: 25 | F8: 343.75 | R8: Joe | S8: Bellen
A9: 2008-01-28 | B9: Bellen | C9: WholeFoods | D9: Pham | E9: 7 | F9: 96.25
A10: 2009-04-07 | B10: Bellen | C10: Albertsons | D10: Pham | E10: 15 | F10: 206.25
A11: 2009-01-19 | B11: Sunshine | C11: Albertsons | D11: Pham | E11: 17 | F11: 233.75
A12: 2008-02-22 | B12: Carlota | C12: PCC | D12: Chin | E12: 15 | F12: 206.25
A13: 2008-10-05 | B13: Carlota | C13: QFC | D13: Pham | E13: 3 | F13: 41.25
A14: 2009-01-12 | B14: SunBell | C14: TraderJoe's | D14: Joe | E14: 17 | F14: 233.75
A15: 2009-04-17 | B15: Tri | C15: QFC | D15: Pham | E15: 14 | F15: 192.5
A16: 2008-09-26 | B16: Sunshine | C16: Albertsons | D16: Sioux | E16: 14 | F16: 192.5
A17: 2008-01-13 | B17: Sunshine | C17: Coop | D17: Joe | E17: 14 | F17: 192.5
A18: 2008-10-02 | B18: Tri | C18: QFC | D18: Jo | E18: 17 | F18: 233.75
A19: 2008-10-09 | B19: SunBell | C19: Safeway | D19: Joe | E19: 21 | F19: 288.75
A20: 2009-10-28 | B20: SunBell | C20: Safeway | D20: Jo | E20: 14 | F20: 192.5
A21: 2009-11-06 | B21: Sunshine | C21: WholeFoods | D21: Pham | E21: 4 | F21: 55
A22: 2008-01-24 | B22: SunBell | C22: Safeway | D22: Pham | E22: 19 | F22: 261.25
A23: 2008-10-30 | B23: Tri | C23: WholeFoods | D23: Sioux | E23: 25 | F23: 343.75
A24: 2008-10-27 | B24: Sunshine | C24: PCC | D24: Pham | E24: 14 | F24: 192.5
A25: 2008-08-12 | B25: Tri | C25: WholeFoods | D25: Joe | E25: 17 | F25: 233.75
A26: 2008-11-30 | B26: Carlota | C26: Coop | D26: Fred | E26: 7 | F26: 96.25
A27: 2008-01-01 | B27: Carlota | C27: Safeway | D27: Sioux | E27: 13 | F27: 178.75
A28: 2009-12-03 | B28: Quad | C28: QFC | D28: Sue | E28: 7 | F28: 96.25
A29: 2008-05-28 | B29: Tri | C29: Coop | D29: Joe | E29: 21 | F29: 288.75
A30: 2009-08-06 | B30: Tri | C30: PCC | D30: Joe | E30: 19 | F30: 261.25
A31: 2008-07-13 | B31: Quad | C31: PCC | D31: Joe | E31: 16 | F31: 220
A32: 2009-04-21 | B32: Tri | C32: QFC | D32: Pham | E32: 23 | F32: 316.25
A33: 2009-04-26 | B33: Tri | C33: Albertsons | D33: Joe | E33: 2 | F33: 27.5
A34: 2008-08-26 | B34: Tri | C34: QFC | D34: Chin | E34: 2 | F34: 27.5
A35: 2008-12-12 | B35: SunBell | C35: PCC | D35: Joe | E35: 14 | F35: 192.5
A36: 2009-02-05 | B36: Carlota | C36: PCC | D36: Fred | E36: 15 | F36: 206.25
A37: 2008-10-02 | B37: Sunset | C37: WholeFoods | D37: Fred | E37: 1 | F37: 13.75
A38: 2009-04-29 | B38: Sunset | C38: WholeFoods | D38: Fred | E38: 17 | F38: 233.75
A39: 2009-08-13 | B39: Carlota | C39: Coop | D39: Pham | E39: 7 | F39: 96.25
A40: 2008-08-15 | B40: SunBell | C40: Coop | D40: Chin | E40: 4 | F40: 55
A41: 2009-04-30 | B41: Bellen | C41: QFC | D41: Sioux | E41: 24 | F41: 330
A42: 2009-05-24 | B42: Bellen | C42: QFC | D42: Fred | E42: 15 | F42: 206.25
A43: 2009-06-08 | B43: SunBell | C43: QFC | D43: Joe | E43: 19 | F43: 261.25
A44: 2009-12-15 | B44: SunBell | C44: Coop | D44: Fred | E44: 11 | F44: 151.25
A45: 2009-12-21 | B45: Quad | C45: WholeFoods | D45: Fred | E45: 8 | F45: 110
A46: 2009-10-10 | B46: Carlota | C46: Albertsons | D46: Fred | E46: 21 | F46: 288.75
A47: 2008-07-06 | B47: Bellen | C47: Safeway | D47: Pham | E47: 22 | F47: 302.5
A48: 2008-06-21 | B48: Sunshine | C48: PCC | D48: Joe | E48: 8 | F48: 110
A49: 2009-03-02 | B49: Carlota | C49: QFC | D49: Joe | E49: 10 | F49: 137.5
A50: 2009-03-16 | B50: Carlota | C50: Coop | D50: Sue | E50: 16 | F50: 220
A51: 2008-12-09 | B51: Tri | C51: Safeway | D51: Chin | E51: 15 | F51: 206.25
A52: 2009-12-04 | B52: Sunset | C52: PCC | D52: Jo | E52: 23 | F52: 316.25
A53: 2008-07-18 | B53: Bellen | C53: WholeFoods | D53: Jo | E53: 15 | F53: 206.25
A54: 2009-11-24 | B54: Tri | C54: TraderJoe's | D54: Sioux | E54: 14 | F54: 192.5
A55: 2008-04-25 | B55: Sunset | C55: QFC | D55: Joe | E55: 2 | F55: 27.5
A56: 2009-08-17 | B56: Tri | C56: WholeFoods | D56: Sue | E56: 2 | F56: 27.5
A57: 2008-11-03 | B57: Quad | C57: WholeFoods | D57: Chin | E57: 3 | F57: 41.25
A58: 2009-09-06 | B58: SunBell | C58: WholeFoods | D58: Chin | E58: 4 | F58: 55
A59: 2008-12-30 | B59: Carlota | C59: Safeway | D59: Sue | E59: 20 | F59: 275
A60: 2008-02-14 | B60: Sunshine | C60: TraderJoe's | D60: Jo | E60: 1 | F60: 13.75
A61: 2008-11-01 | B61: Tri | C61: QFC | D61: Fred | E61: 13 | F61: 178.75
A62: 2009-01-01 | B62: Quad | C62: WholeFoods | D62: Sioux | E62: 23 | F62: 316.25
A63: 2008-03-07 | B63: SunBell | C63: QFC | D63: Joe | E63: 16 | F63: 220
A64: 2008-06-29 | B64: Carlota | C64: Coop | D64: Chin | E64: 17 | F64: 233.75
A65: 2008-10-12 | B65: Sunshine | C65: Coop | D65: Fred | E65: 18 | F65: 247.5
A66: 2008-06-10 | B66: Carlota | C66: Albertsons | D66: Pham | E66: 25 | F66: 343.75
A67: 2009-07-25 | B67: Sunset | C67: PCC | D67: Chin | E67: 2 | F67: 27.5
A68: 2008-11-29 | B68: SunBell | C68: WholeFoods | D68: Sue | E68: 1 | F68: 13.75
A69: 2008-04-07 | B69: SunBell | C69: Coop | D69: Fred | E69: 18 | F69: 247.5
A70: 2008-01-14 | B70: Carlota | C70: WholeFoods | D70: Sioux | E70: 23 | F70: 316.25
A71: 2009-08-30 | B71: Sunshine | C71: WholeFoods | D71: Pham | E71: 4 | F71: 55
A72: 2008-08-17 | B72: Sunshine | C72: Coop | D72: Jo | E72: 12 | F72: 165
A73: 2008-12-19 | B73: Sunshine | C73: QFC | D73: Sue | E73: 24 | F73: 330
A74: 2008-02-19 | B74: Carlota | C74: Safeway | D74: Pham | E74: 10 | F74: 137.5
A75: 2008-03-03 | B75: Carlota | C75: TraderJoe's | D75: Sioux | E75: 15 | F75: 206.25
A76: 2009-04-07 | B76: Sunshine | C76: Safeway | D76: Sue | E76: 17 | F76: 233.75
A77: 2009-10-04 | B77: Carlota | C77: Albertsons | D77: Sue | E77: 13 | F77: 178.75
A78: 2008-09-01 | B78: Bellen | C78: Safeway | D78: Sue | E78: 10 | F78: 137.5
A79: 2009-07-12 | B79: Sunset | C79: TraderJoe's | D79: Jo | E79: 20 | F79: 275
A80: 2008-10-04 | B80: SunBell | C80: Albertsons | D80: Fred | E80: 20 | F80: 275
A81: 2009-11-20 | B81: Quad | C81: Coop | D81: Joe | E81: 1 | F81: 13.75
A82: 2008-10-27 | B82: SunBell | C82: TraderJoe's | D82: Chin | E82: 4 | F82: 55
A83: 2008-02-11 | B83: SunBell | C83: WholeFoods | D83: Fred | E83: 18 | F83: 247.5
A84: 2009-08-26 | B84: Carlota | C84: PCC | D84: Fred | E84: 10 | F84: 137.5
A85: 2008-03-08 | B85: Sunshine | C85: TraderJoe's | D85: Sue | E85: 6 | F85: 82.5
A86: 2008-12-05 | B86: Quad | C86: TraderJoe's | D86: Fred | E86: 12 | F86: 165
A87: 2008-01-02 | B87: SunBell | C87: Coop | D87: Pham | E87: 19 | F87: 261.25
A88: 2009-10-09 | B88: Sunshine | C88: WholeFoods | D88: Sue | E88: 1 | F88: 13.75
A89: 2009-03-02 | B89: Sunshine | C89: PCC | D89: Jo | E89: 10 | F89: 137.5
A90: 2008-11-11 | B90: SunBell | C90: PCC | D90: Fred | E90: 5 | F90: 68.75
A91: 2008-03-18 | B91: Sunshine | C91: Coop | D91: Jo | E91: 10 | F91: 137.5
A92: 2008-01-05 | B92: Bellen | C92: PCC | D92: Sue | E92: 16 | F92: 220
A93: 2009-01-03 | B93: Bellen | C93: TraderJoe's | D93: Chin | E93: 3 | F93: 41.25
A94: 2009-04-26 | B94: SunBell | C94: TraderJoe's | D94: Pham | E94: 20 | F94: 275
A95: 2008-11-10 | B95: Sunset | C95: TraderJoe's | D95: Pham | E95: 18 | F95: 247.5
A96: 2008-09-27 | B96: SunBell | C96: Safeway | D96: Joe | E96: 9 | F96: 123.75
A97: 2009-01-19 | B97: Quad | C97: TraderJoe's | D97: Fred | E97: 7 | F97: 96.25
A98: 2008-09-06 | B98: Quad | C98: Safeway | D98: Joe | E98: 4 | F98: 55
A99: 2008-02-22 | B99: Sunshine | C99: Albertsons | D99: Pham | E99: 12 | F99: 165
A100: 2008-03-31 | B100: Bellen | C100: QFC | D100: Chin | E100: 25 | F100: 343.75
A101: 2009-08-02 | B101: Quad | C101: PCC | D101: Sioux | E101: 10 | F101: 137.5
A102: 2008-12-03 | B102: Bellen | C102: Albertsons | D102: Pham | E102: 2 | F102: 27.5
A103: 2008-05-20 | B103: Sunshine | C103: Safeway | D103: Jo | E103: 22 | F103: 302.5
A104: 2009-03-26 | B104: Bellen | C104: QFC | D104: Sioux | E104: 21 | F104: 288.75
A105: 2008-12-31 | B105: Sunset | C105: QFC | D105: Sioux | E105: 3 | F105: 41.25
A106: 2009-11-05 | B106: Sunshine | C106: Safeway | D106: Jo | E106: 20 | F106: 275
A107: 2008-12-06 | B107: Sunset | C107: Coop | D107: Jo | E107: 16 | F107: 220
A108: 2008-04-03 | B108: Quad | C108: QFC | D108: Joe | E108: 8 | F108: 110
A109: 2009-09-19 | B109: Sunshine | C109: TraderJoe's | D109: Pham | E109: 24 | F109: 330
A110: 2008-01-07 | B110: Bellen | C110: PCC | D110: Chin | E110: 12 | F110: 165
A111: 2008-11-10 | B111: Quad | C111: TraderJoe's | D111: Chin | E111: 17 | F111: 233.75
A112: 2008-04-30 | B112: Carlota | C112: WholeFoods | D112: Fred | E112: 1 | F112: 13.75
A113: 2009-04-28 | B113: Tri | C113: WholeFoods | D113: Sue | E113: 2 | F113: 27.5
A114: 2009-12-16 | B114: Tri | C114: WholeFoods | D114: Jo | E114: 21 | F114: 288.75
A115: 2009-03-20 | B115: Sunshine | C115: PCC | D115: Joe | E115: 15 | F115: 206.25
A116: 2009-03-01 | B116: Tri | C116: Safeway | D116: Fred | E116: 24 | F116: 330
A117: 2009-01-13 | B117: Tri | C117: Safeway | D117: Chin | E117: 24 | F117: 330
A118: 2008-09-12 | B118: Quad | C118: Albertsons | D118: Sioux | E118: 6 | F118: 82.5
A119: 2008-07-12 | B119: Sunset | C119: WholeFoods | D119: Sioux | E119: 12 | F119: 165
A120: 2008-01-03 | B120: Quad | C120: Safeway | D120: Pham | E120: 1 | F120: 13.75
A121: 2008-11-11 | B121: Quad | C121: Coop | D121: Chin | E121: 21 | F121: 288.75
A122: 2009-07-24 | B122: Carlota | C122: Albertsons | D122: Fred | E122: 23 | F122: 316.25
A123: 2008-10-01 | B123: Quad | C123: Albertsons | D123: Jo | E123: 17 | F123: 233.75
A124: 2008-12-21 | B124: SunBell | C124: QFC | D124: Pham | E124: 12 | F124: 165
A125: 2008-01-14 | B125: Tri | C125: TraderJoe's | D125: Jo | E125: 1 | F125: 13.75
A126: 2008-01-15 | B126: Tri | C126: Coop | D126: Pham | E126: 6 | F126: 82.5
A127: 2009-08-29 | B127: Carlota | C127: PCC | D127: Jo | E127: 18 | F127: 247.5
A128: 2008-08-27 | B128: SunBell | C128: WholeFoods | D128: Jo | E128: 8 | F128: 110
A129: 2008-07-22 | B129: Sunshine | C129: Safeway | D129: Pham | E129: 11 | F129: 151.25
A130: 2009-01-29 | B130: Carlota | C130: PCC | D130: Fred | E130: 6 | F130: 82.5
A131: 2009-03-08 | B131: Sunset | C131: TraderJoe's | D131: Sue | E131: 18 | F131: 247.5
A132: 2009-12-12 | B132: Tri | C132: Safeway | D132: Fred | E132: 8 | F132: 110
A133: 2009-09-22 | B133: Sunset | C133: PCC | D133: Chin | E133: 11 | F133: 151.25
A134: 2009-12-11 | B134: Tri | C134: WholeFoods | D134: Chin | E134: 2 | F134: 27.5
A135: 2008-03-22 | B135: Carlota | C135: Albertsons | D135: Sioux | E135: 22 | F135: 302.5
A136: 2009-08-24 | B136: Quad | C136: TraderJoe's | D136: Sioux | E136: 21 | F136: 288.75
A137: 2009-08-28 | B137: Bellen | C137: TraderJoe's | D137: Chin | E137: 11 | F137: 151.25
A138: 2008-08-15 | B138: Sunshine | C138: Coop | D138: Jo | E138: 6 | F138: 82.5
A139: 2009-06-26 | B139: Sunshine | C139: Coop | D139: Jo | E139: 25 | F139: 343.75
A140: 2008-03-17 | B140: Bellen | C140: Coop | D140: Pham | E140: 2 | F140: 27.5
A141: 2008-03-14 | B141: Bellen | C141: Safeway | D141: Joe | E141: 15 | F141: 206.25
A142: 2009-08-11 | B142: Quad | C142: WholeFoods | D142: Sue | E142: 21 | F142: 288.75
A143: 2008-05-08 | B143: Tri | C143: QFC | D143: Sioux | E143: 5 | F143: 68.75
A144: 2008-07-30 | B144: Carlota | C144: WholeFoods | D144: Sue | E144: 13 | F144: 178.75
A145: 2008-10-24 | B145: Carlota | C145: Safeway | D145: Pham | E145: 13 | F145: 178.75
A146: 2008-12-14 | B146: Tri | C146: Safeway | D146: Joe | E146: 9 | F146: 123.75
A147: 2008-05-15 | B147: Sunshine | C147: Safeway | D147: Sue | E147: 18 | F147: 247.5
A148: 2009-05-15 | B148: Carlota | C148: Albertsons | D148: Chin | E148: 8 | F148: 110
A149: 2009-04-23 | B149: Tri | C149: QFC | D149: Sue | E149: 7 | F149: 96.25
A150: 2009-03-21 | B150: Sunset | C150: PCC | D150: Chin | E150: 6 | F150: 82.5
A151: 2009-07-22 | B151: SunBell | C151: Coop | D151: Sioux | E151: 7 | F151: 96.25
A152: 2009-05-13 | B152: Tri | C152: PCC | D152: Sioux | E152: 14 | F152: 192.5
A153: 2008-12-17 | B153: Quad | C153: PCC | D153: Joe | E153: 24 | F153: 330
A154: 2008-03-12 | B154: Quad | C154: QFC | D154: Joe | E154: 17 | F154: 233.75
A155: 2008-06-10 | B155: Carlota | C155: QFC | D155: Chin | E155: 5 | F155: 68.75
A156: 2008-04-09 | B156: Bellen | C156: TraderJoe's | D156: Sue | E156: 1 | F156: 13.75
A157: 2008-04-08 | B157: Carlota | C157: WholeFoods | D157: Sue | E157: 14 | F157: 192.5
A158: 2008-02-11 | B158: Sunshine | C158: PCC | D158: Jo | E158: 12 | F158: 165
A159: 2009-06-08 | B159: Sunset | C159: PCC | D159: Sioux | E159: 25 | F159: 343.75
A160: 2008-12-03 | B160: Carlota | C160: Albertsons | D160: Jo | E160: 3 | F160: 41.25
A161: 2009-04-26 | B161: Bellen | C161: PCC | D161: Jo | E161: 14 | F161: 192.5
A162: 2008-04-13 | B162: Tri | C162: PCC | D162: Jo | E162: 6 | F162: 82.5
A163: 2009-12-23 | B163: Carlota | C163: Albertsons | D163: Fred | E163: 17 | F163: 233.75
A164: 2008-02-06 | B164: SunBell | C164: Albertsons | D164: Sioux | E164: 23 | F164: 316.25
A165: 2008-03-15 | B165: Bellen | C165: PCC | D165: Fred | E165: 4 | F165: 55
A166: 2009-06-03 | B166: Sunset | C166: WholeFoods | D166: Sue | E166: 20 | F166: 275
A167: 2009-04-04 | B167: Carlota | C167: QFC | D167: Sioux | E167: 16 | F167: 220
A168: 2009-06-14 | B168: Sunset | C168: WholeFoods | D168: Jo | E168: 19 | F168: 261.25
A169: 2009-04-21 | B169: Sunshine | C169: Safeway | D169: Sue | E169: 16 | F169: 220
A170: 2009-06-16 | B170: Sunshine | C170: WholeFoods | D170: Joe | E170: 1 | F170: 13.75
A171: 2009-02-16 | B171: SunBell | C171: PCC | D171: Jo | E171: 11 | F171: 151.25
A172: 2008-05-04 | B172: Tri | C172: Coop | D172: Sioux | E172: 18 | F172: 247.5
A173: 2009-09-26 | B173: Tri | C173: Safeway | D173: Fred | E173: 10 | F173: 137.5
A174: 2008-12-04 | B174: Carlota | C174: Albertsons | D174: Fred | E174: 14 | F174: 192.5
A175: 2009-07-15 | B175: Carlota | C175: WholeFoods | D175: Pham | E175: 11 | F175: 151.25
A176: 2009-11-28 | B176: Carlota | C176: Albertsons | D176: Pham | E176: 20 | F176: 275
A177: 2008-07-25 | B177: Sunset | C177: Coop | D177: Fred | E177: 21 | F177: 288.75
A178: 2008-03-31 | B178: Carlota | C178: TraderJoe's | D178: Sue | E178: 17 | F178: 233.75
A179: 2009-10-25 | B179: Sunshine | C179: WholeFoods | D179: Sue | E179: 16 | F179: 220
A180: 2009-08-11 | B180: Bellen | C180: PCC | D180: Jo | E180: 6 | F180: 82.5
A181: 2009-09-29 | B181: Tri | C181: Albertsons | D181: Pham | E181: 3 | F181: 41.25
A182: 2009-02-18 | B182: Tri | C182: QFC | D182: Pham | E182: 7 | F182: 96.25
A183: 2009-06-21 | B183: Carlota | C183: Coop | D183: Joe | E183: 8 | F183: 110
A184: 2008-02-05 | B184: Sunset | C184: Safeway | D184: Chin | E184: 16 | F184: 220
A185: 2009-03-03 | B185: Bellen | C185: QFC | D185: Joe | E185: 19 | F185: 261.25
A186: 2009-07-14 | B186: Tri | C186: WholeFoods | D186: Joe | E186: 17 | F186: 233.75
A187: 2008-04-21 | B187: Sunset | C187: Safeway | D187: Sioux | E187: 11 | F187: 151.25
A188: 2009-02-23 | B188: Sunshine | C188: Albertsons | D188: Fred | E188: 24 | F188: 330
A189: 2008-01-10 | B189: Carlota | C189: Safeway | D189: Joe | E189: 20 | F189: 275
A190: 2009-05-07 | B190: Quad | C190: Albertsons | D190: Joe | E190: 19 | F190: 261.25
A191: 2008-04-24 | B191: Bellen | C191: WholeFoods | D191: Jo | E191: 3 | F191: 41.25
A192: 2009-01-06 | B192: Sunshine | C192: WholeFoods | D192: Jo | E192: 16 | F192: 220
A193: 2009-07-14 | B193: Sunshine | C193: Safeway | D193: Sioux | E193: 23 | F193: 316.25
A194: 2009-03-14 | B194: Sunshine | C194: Albertsons | D194: Pham | E194: 16 | F194: 220
A195: 2008-02-24 | B195: Carlota | C195: PCC | D195: Sue | E195: 23 | F195: 316.25
A196: 2009-05-16 | B196: Bellen | C196: TraderJoe's | D196: Sue | E196: 19 | F196: 261.25
A197: 2009-07-08 | B197: Carlota | C197: WholeFoods | D197: Pham | E197: 2 | F197: 27.5
A198: 2009-12-29 | B198: SunBell | C198: PCC | D198: Sioux | E198: 18 | F198: 247.5
A199: 2009-09-14 | B199: Carlota | C199: Coop | D199: Joe | E199: 2 | F199: 27.5
A200: 2009-06-22 | B200: Sunshine | C200: QFC | D200: Jo | E200: 23 | F200: 316.25
... 280 more rows

Sheet SUMIFS More (an)
A1: Date | B1: Product | C1: Customer | D1: SalesRep | E1: Units | F1: Sales | H1: Criteria: | R1: SalesRep | S1: Product
A2: 2008-01-02 | B2: Sunshine | C2: Albertsons | D2: Fred | E2: 5 | F2: 68.75 | H2: SalesRep | I2: Product | K2: Right-click QAT or Ribbon to Customize | R2: Fred | S2: Sunshine
A3: 2008-07-30 | B3: Quad | C3: PCC | D3: Sioux | E3: 18 | F3: 247.5 | H3: Sue | I3: Quad | R3: Sioux | S3: Quad
A4: 2008-11-30 | B4: Carlota | C4: Albertsons | D4: Sue | E4: 22 | F4: 302.5 | K4: New Functions in 2007 for more than 1 criteria | R4: Sue | S4: Carlota
A5: 2009-04-21 | B5: SunBell | C5: QFC | D5: Jo | E5: 8 | F5: 110 | H5: Count | I5: =COUNTIFS($D$2:$D$480,H3,$B$2:$B$480,I3) -> 11 | K5: COUNTIFS | R5: Jo | S5: SunBell
A6: 2009-12-31 | B6: Sunset | C6: QFC | D6: Sioux | E6: 20 | F6: 275 | H6: Add | I6: =SUMIFS($F$2:$F$480,$D$2:$D$480,H3,$B$2:$B$480,I3) -> 2255 | K6: SUMIFS | R6: Pham | S6: Sunset
A7: 2008-01-26 | B7: Tri | C7: WholeFoods | D7: Sioux | E7: 11 | F7: 151.25 | H7: Ave | I7: =AVERAGEIFS($F$2:$F$480,$D$2:$D$480,H3,$B$2:$B$480,I3) -> 205 | K7: AVERAGEIFS | R7: Chin | S7: Tri
A8: 2009-03-27 | B8: Sunset | C8: WholeFoods | D8: Jo | E8: 25 | F8: 343.75 | R8: Joe | S8: Bellen
A9: 2008-01-28 | B9: Bellen | C9: WholeFoods | D9: Pham | E9: 7 | F9: 96.25
A10: 2009-04-07 | B10: Bellen | C10: Albertsons | D10: Pham | E10: 15 | F10: 206.25
A11: 2009-01-19 | B11: Sunshine | C11: Albertsons | D11: Pham | E11: 17 | F11: 233.75
A12: 2008-02-22 | B12: Carlota | C12: PCC | D12: Chin | E12: 15 | F12: 206.25
A13: 2008-10-05 | B13: Carlota | C13: QFC | D13: Pham | E13: 3 | F13: 41.25
A14: 2009-01-12 | B14: SunBell | C14: TraderJoe's | D14: Joe | E14: 17 | F14: 233.75
A15: 2009-04-17 | B15: Tri | C15: QFC | D15: Pham | E15: 14 | F15: 192.5
A16: 2008-09-26 | B16: Sunshine | C16: Albertsons | D16: Sioux | E16: 14 | F16: 192.5
A17: 2008-01-13 | B17: Sunshine | C17: Coop | D17: Joe | E17: 14 | F17: 192.5
A18: 2008-10-02 | B18: Tri | C18: QFC | D18: Jo | E18: 17 | F18: 233.75
A19: 2008-10-09 | B19: SunBell | C19: Safeway | D19: Joe | E19: 21 | F19: 288.75
A20: 2009-10-28 | B20: SunBell | C20: Safeway | D20: Jo | E20: 14 | F20: 192.5
A21: 2009-11-06 | B21: Sunshine | C21: WholeFoods | D21: Pham | E21: 4 | F21: 55
A22: 2008-01-24 | B22: SunBell | C22: Safeway | D22: Pham | E22: 19 | F22: 261.25
A23: 2008-10-30 | B23: Tri | C23: WholeFoods | D23: Sioux | E23: 25 | F23: 343.75
A24: 2008-10-27 | B24: Sunshine | C24: PCC | D24: Pham | E24: 14 | F24: 192.5
A25: 2008-08-12 | B25: Tri | C25: WholeFoods | D25: Joe | E25: 17 | F25: 233.75
A26: 2008-11-30 | B26: Carlota | C26: Coop | D26: Fred | E26: 7 | F26: 96.25
A27: 2008-01-01 | B27: Carlota | C27: Safeway | D27: Sioux | E27: 13 | F27: 178.75
A28: 2009-12-03 | B28: Quad | C28: QFC | D28: Sue | E28: 7 | F28: 96.25
A29: 2008-05-28 | B29: Tri | C29: Coop | D29: Joe | E29: 21 | F29: 288.75
A30: 2009-08-06 | B30: Tri | C30: PCC | D30: Joe | E30: 19 | F30: 261.25
A31: 2008-07-13 | B31: Quad | C31: PCC | D31: Joe | E31: 16 | F31: 220
A32: 2009-04-21 | B32: Tri | C32: QFC | D32: Pham | E32: 23 | F32: 316.25
A33: 2009-04-26 | B33: Tri | C33: Albertsons | D33: Joe | E33: 2 | F33: 27.5
A34: 2008-08-26 | B34: Tri | C34: QFC | D34: Chin | E34: 2 | F34: 27.5
A35: 2008-12-12 | B35: SunBell | C35: PCC | D35: Joe | E35: 14 | F35: 192.5
A36: 2009-02-05 | B36: Carlota | C36: PCC | D36: Fred | E36: 15 | F36: 206.25
A37: 2008-10-02 | B37: Sunset | C37: WholeFoods | D37: Fred | E37: 1 | F37: 13.75
A38: 2009-04-29 | B38: Sunset | C38: WholeFoods | D38: Fred | E38: 17 | F38: 233.75
A39: 2009-08-13 | B39: Carlota | C39: Coop | D39: Pham | E39: 7 | F39: 96.25
A40: 2008-08-15 | B40: SunBell | C40: Coop | D40: Chin | E40: 4 | F40: 55
A41: 2009-04-30 | B41: Bellen | C41: QFC | D41: Sioux | E41: 24 | F41: 330
A42: 2009-05-24 | B42: Bellen | C42: QFC | D42: Fred | E42: 15 | F42: 206.25
A43: 2009-06-08 | B43: SunBell | C43: QFC | D43: Joe | E43: 19 | F43: 261.25
A44: 2009-12-15 | B44: SunBell | C44: Coop | D44: Fred | E44: 11 | F44: 151.25
A45: 2009-12-21 | B45: Quad | C45: WholeFoods | D45: Fred | E45: 8 | F45: 110
A46: 2009-10-10 | B46: Carlota | C46: Albertsons | D46: Fred | E46: 21 | F46: 288.75
A47: 2008-07-06 | B47: Bellen | C47: Safeway | D47: Pham | E47: 22 | F47: 302.5
A48: 2008-06-21 | B48: Sunshine | C48: PCC | D48: Joe | E48: 8 | F48: 110
A49: 2009-03-02 | B49: Carlota | C49: QFC | D49: Joe | E49: 10 | F49: 137.5
A50: 2009-03-16 | B50: Carlota | C50: Coop | D50: Sue | E50: 16 | F50: 220
A51: 2008-12-09 | B51: Tri | C51: Safeway | D51: Chin | E51: 15 | F51: 206.25
A52: 2009-12-04 | B52: Sunset | C52: PCC | D52: Jo | E52: 23 | F52: 316.25
A53: 2008-07-18 | B53: Bellen | C53: WholeFoods | D53: Jo | E53: 15 | F53: 206.25
A54: 2009-11-24 | B54: Tri | C54: TraderJoe's | D54: Sioux | E54: 14 | F54: 192.5
A55: 2008-04-25 | B55: Sunset | C55: QFC | D55: Joe | E55: 2 | F55: 27.5
A56: 2009-08-17 | B56: Tri | C56: WholeFoods | D56: Sue | E56: 2 | F56: 27.5
A57: 2008-11-03 | B57: Quad | C57: WholeFoods | D57: Chin | E57: 3 | F57: 41.25
A58: 2009-09-06 | B58: SunBell | C58: WholeFoods | D58: Chin | E58: 4 | F58: 55
A59: 2008-12-30 | B59: Carlota | C59: Safeway | D59: Sue | E59: 20 | F59: 275
A60: 2008-02-14 | B60: Sunshine | C60: TraderJoe's | D60: Jo | E60: 1 | F60: 13.75
A61: 2008-11-01 | B61: Tri | C61: QFC | D61: Fred | E61: 13 | F61: 178.75
A62: 2009-01-01 | B62: Quad | C62: WholeFoods | D62: Sioux | E62: 23 | F62: 316.25
A63: 2008-03-07 | B63: SunBell | C63: QFC | D63: Joe | E63: 16 | F63: 220
A64: 2008-06-29 | B64: Carlota | C64: Coop | D64: Chin | E64: 17 | F64: 233.75
A65: 2008-10-12 | B65: Sunshine | C65: Coop | D65: Fred | E65: 18 | F65: 247.5
A66: 2008-06-10 | B66: Carlota | C66: Albertsons | D66: Pham | E66: 25 | F66: 343.75
A67: 2009-07-25 | B67: Sunset | C67: PCC | D67: Chin | E67: 2 | F67: 27.5
A68: 2008-11-29 | B68: SunBell | C68: WholeFoods | D68: Sue | E68: 1 | F68: 13.75
A69: 2008-04-07 | B69: SunBell | C69: Coop | D69: Fred | E69: 18 | F69: 247.5
A70: 2008-01-14 | B70: Carlota | C70: WholeFoods | D70: Sioux | E70: 23 | F70: 316.25
A71: 2009-08-30 | B71: Sunshine | C71: WholeFoods | D71: Pham | E71: 4 | F71: 55
A72: 2008-08-17 | B72: Sunshine | C72: Coop | D72: Jo | E72: 12 | F72: 165
A73: 2008-12-19 | B73: Sunshine | C73: QFC | D73: Sue | E73: 24 | F73: 330
A74: 2008-02-19 | B74: Carlota | C74: Safeway | D74: Pham | E74: 10 | F74: 137.5
A75: 2008-03-03 | B75: Carlota | C75: TraderJoe's | D75: Sioux | E75: 15 | F75: 206.25
A76: 2009-04-07 | B76: Sunshine | C76: Safeway | D76: Sue | E76: 17 | F76: 233.75
A77: 2009-10-04 | B77: Carlota | C77: Albertsons | D77: Sue | E77: 13 | F77: 178.75
A78: 2008-09-01 | B78: Bellen | C78: Safeway | D78: Sue | E78: 10 | F78: 137.5
A79: 2009-07-12 | B79: Sunset | C79: TraderJoe's | D79: Jo | E79: 20 | F79: 275
A80: 2008-10-04 | B80: SunBell | C80: Albertsons | D80: Fred | E80: 20 | F80: 275
A81: 2009-11-20 | B81: Quad | C81: Coop | D81: Joe | E81: 1 | F81: 13.75
A82: 2008-10-27 | B82: SunBell | C82: TraderJoe's | D82: Chin | E82: 4 | F82: 55
A83: 2008-02-11 | B83: SunBell | C83: WholeFoods | D83: Fred | E83: 18 | F83: 247.5
A84: 2009-08-26 | B84: Carlota | C84: PCC | D84: Fred | E84: 10 | F84: 137.5
A85: 2008-03-08 | B85: Sunshine | C85: TraderJoe's | D85: Sue | E85: 6 | F85: 82.5
A86: 2008-12-05 | B86: Quad | C86: TraderJoe's | D86: Fred | E86: 12 | F86: 165
A87: 2008-01-02 | B87: SunBell | C87: Coop | D87: Pham | E87: 19 | F87: 261.25
A88: 2009-10-09 | B88: Sunshine | C88: WholeFoods | D88: Sue | E88: 1 | F88: 13.75
A89: 2009-03-02 | B89: Sunshine | C89: PCC | D89: Jo | E89: 10 | F89: 137.5
A90: 2008-11-11 | B90: SunBell | C90: PCC | D90: Fred | E90: 5 | F90: 68.75
A91: 2008-03-18 | B91: Sunshine | C91: Coop | D91: Jo | E91: 10 | F91: 137.5
A92: 2008-01-05 | B92: Bellen | C92: PCC | D92: Sue | E92: 16 | F92: 220
A93: 2009-01-03 | B93: Bellen | C93: TraderJoe's | D93: Chin | E93: 3 | F93: 41.25
A94: 2009-04-26 | B94: SunBell | C94: TraderJoe's | D94: Pham | E94: 20 | F94: 275
A95: 2008-11-10 | B95: Sunset | C95: TraderJoe's | D95: Pham | E95: 18 | F95: 247.5
A96: 2008-09-27 | B96: SunBell | C96: Safeway | D96: Joe | E96: 9 | F96: 123.75
A97: 2009-01-19 | B97: Quad | C97: TraderJoe's | D97: Fred | E97: 7 | F97: 96.25
A98: 2008-09-06 | B98: Quad | C98: Safeway | D98: Joe | E98: 4 | F98: 55
A99: 2008-02-22 | B99: Sunshine | C99: Albertsons | D99: Pham | E99: 12 | F99: 165
A100: 2008-03-31 | B100: Bellen | C100: QFC | D100: Chin | E100: 25 | F100: 343.75
A101: 2009-08-02 | B101: Quad | C101: PCC | D101: Sioux | E101: 10 | F101: 137.5
A102: 2008-12-03 | B102: Bellen | C102: Albertsons | D102: Pham | E102: 2 | F102: 27.5
A103: 2008-05-20 | B103: Sunshine | C103: Safeway | D103: Jo | E103: 22 | F103: 302.5
A104: 2009-03-26 | B104: Bellen | C104: QFC | D104: Sioux | E104: 21 | F104: 288.75
A105: 2008-12-31 | B105: Sunset | C105: QFC | D105: Sioux | E105: 3 | F105: 41.25
A106: 2009-11-05 | B106: Sunshine | C106: Safeway | D106: Jo | E106: 20 | F106: 275
A107: 2008-12-06 | B107: Sunset | C107: Coop | D107: Jo | E107: 16 | F107: 220
A108: 2008-04-03 | B108: Quad | C108: QFC | D108: Joe | E108: 8 | F108: 110
A109: 2009-09-19 | B109: Sunshine | C109: TraderJoe's | D109: Pham | E109: 24 | F109: 330
A110: 2008-01-07 | B110: Bellen | C110: PCC | D110: Chin | E110: 12 | F110: 165
A111: 2008-11-10 | B111: Quad | C111: TraderJoe's | D111: Chin | E111: 17 | F111: 233.75
A112: 2008-04-30 | B112: Carlota | C112: WholeFoods | D112: Fred | E112: 1 | F112: 13.75
A113: 2009-04-28 | B113: Tri | C113: WholeFoods | D113: Sue | E113: 2 | F113: 27.5
A114: 2009-12-16 | B114: Tri | C114: WholeFoods | D114: Jo | E114: 21 | F114: 288.75
A115: 2009-03-20 | B115: Sunshine | C115: PCC | D115: Joe | E115: 15 | F115: 206.25
A116: 2009-03-01 | B116: Tri | C116: Safeway | D116: Fred | E116: 24 | F116: 330
A117: 2009-01-13 | B117: Tri | C117: Safeway | D117: Chin | E117: 24 | F117: 330
A118: 2008-09-12 | B118: Quad | C118: Albertsons | D118: Sioux | E118: 6 | F118: 82.5
A119: 2008-07-12 | B119: Sunset | C119: WholeFoods | D119: Sioux | E119: 12 | F119: 165
A120: 2008-01-03 | B120: Quad | C120: Safeway | D120: Pham | E120: 1 | F120: 13.75
A121: 2008-11-11 | B121: Quad | C121: Coop | D121: Chin | E121: 21 | F121: 288.75
A122: 2009-07-24 | B122: Carlota | C122: Albertsons | D122: Fred | E122: 23 | F122: 316.25
A123: 2008-10-01 | B123: Quad | C123: Albertsons | D123: Jo | E123: 17 | F123: 233.75
A124: 2008-12-21 | B124: SunBell | C124: QFC | D124: Pham | E124: 12 | F124: 165
A125: 2008-01-14 | B125: Tri | C125: TraderJoe's | D125: Jo | E125: 1 | F125: 13.75
A126: 2008-01-15 | B126: Tri | C126: Coop | D126: Pham | E126: 6 | F126: 82.5
A127: 2009-08-29 | B127: Carlota | C127: PCC | D127: Jo | E127: 18 | F127: 247.5
A128: 2008-08-27 | B128: SunBell | C128: WholeFoods | D128: Jo | E128: 8 | F128: 110
A129: 2008-07-22 | B129: Sunshine | C129: Safeway | D129: Pham | E129: 11 | F129: 151.25
A130: 2009-01-29 | B130: Carlota | C130: PCC | D130: Fred | E130: 6 | F130: 82.5
A131: 2009-03-08 | B131: Sunset | C131: TraderJoe's | D131: Sue | E131: 18 | F131: 247.5
A132: 2009-12-12 | B132: Tri | C132: Safeway | D132: Fred | E132: 8 | F132: 110
A133: 2009-09-22 | B133: Sunset | C133: PCC | D133: Chin | E133: 11 | F133: 151.25
A134: 2009-12-11 | B134: Tri | C134: WholeFoods | D134: Chin | E134: 2 | F134: 27.5
A135: 2008-03-22 | B135: Carlota | C135: Albertsons | D135: Sioux | E135: 22 | F135: 302.5
A136: 2009-08-24 | B136: Quad | C136: TraderJoe's | D136: Sioux | E136: 21 | F136: 288.75
A137: 2009-08-28 | B137: Bellen | C137: TraderJoe's | D137: Chin | E137: 11 | F137: 151.25
A138: 2008-08-15 | B138: Sunshine | C138: Coop | D138: Jo | E138: 6 | F138: 82.5
A139: 2009-06-26 | B139: Sunshine | C139: Coop | D139: Jo | E139: 25 | F139: 343.75
A140: 2008-03-17 | B140: Bellen | C140: Coop | D140: Pham | E140: 2 | F140: 27.5
A141: 2008-03-14 | B141: Bellen | C141: Safeway | D141: Joe | E141: 15 | F141: 206.25
A142: 2009-08-11 | B142: Quad | C142: WholeFoods | D142: Sue | E142: 21 | F142: 288.75
A143: 2008-05-08 | B143: Tri | C143: QFC | D143: Sioux | E143: 5 | F143: 68.75
A144: 2008-07-30 | B144: Carlota | C144: WholeFoods | D144: Sue | E144: 13 | F144: 178.75
A145: 2008-10-24 | B145: Carlota | C145: Safeway | D145: Pham | E145: 13 | F145: 178.75
A146: 2008-12-14 | B146: Tri | C146: Safeway | D146: Joe | E146: 9 | F146: 123.75
A147: 2008-05-15 | B147: Sunshine | C147: Safeway | D147: Sue | E147: 18 | F147: 247.5
A148: 2009-05-15 | B148: Carlota | C148: Albertsons | D148: Chin | E148: 8 | F148: 110
A149: 2009-04-23 | B149: Tri | C149: QFC | D149: Sue | E149: 7 | F149: 96.25
A150: 2009-03-21 | B150: Sunset | C150: PCC | D150: Chin | E150: 6 | F150: 82.5
A151: 2009-07-22 | B151: SunBell | C151: Coop | D151: Sioux | E151: 7 | F151: 96.25
A152: 2009-05-13 | B152: Tri | C152: PCC | D152: Sioux | E152: 14 | F152: 192.5
A153: 2008-12-17 | B153: Quad | C153: PCC | D153: Joe | E153: 24 | F153: 330
A154: 2008-03-12 | B154: Quad | C154: QFC | D154: Joe | E154: 17 | F154: 233.75
A155: 2008-06-10 | B155: Carlota | C155: QFC | D155: Chin | E155: 5 | F155: 68.75
A156: 2008-04-09 | B156: Bellen | C156: TraderJoe's | D156: Sue | E156: 1 | F156: 13.75
A157: 2008-04-08 | B157: Carlota | C157: WholeFoods | D157: Sue | E157: 14 | F157: 192.5
A158: 2008-02-11 | B158: Sunshine | C158: PCC | D158: Jo | E158: 12 | F158: 165
A159: 2009-06-08 | B159: Sunset | C159: PCC | D159: Sioux | E159: 25 | F159: 343.75
A160: 2008-12-03 | B160: Carlota | C160: Albertsons | D160: Jo | E160: 3 | F160: 41.25
A161: 2009-04-26 | B161: Bellen | C161: PCC | D161: Jo | E161: 14 | F161: 192.5
A162: 2008-04-13 | B162: Tri | C162: PCC | D162: Jo | E162: 6 | F162: 82.5
A163: 2009-12-23 | B163: Carlota | C163: Albertsons | D163: Fred | E163: 17 | F163: 233.75
A164: 2008-02-06 | B164: SunBell | C164: Albertsons | D164: Sioux | E164: 23 | F164: 316.25
A165: 2008-03-15 | B165: Bellen | C165: PCC | D165: Fred | E165: 4 | F165: 55
A166: 2009-06-03 | B166: Sunset | C166: WholeFoods | D166: Sue | E166: 20 | F166: 275
A167: 2009-04-04 | B167: Carlota | C167: QFC | D167: Sioux | E167: 16 | F167: 220
A168: 2009-06-14 | B168: Sunset | C168: WholeFoods | D168: Jo | E168: 19 | F168: 261.25
A169: 2009-04-21 | B169: Sunshine | C169: Safeway | D169: Sue | E169: 16 | F169: 220
A170: 2009-06-16 | B170: Sunshine | C170: WholeFoods | D170: Joe | E170: 1 | F170: 13.75
A171: 2009-02-16 | B171: SunBell | C171: PCC | D171: Jo | E171: 11 | F171: 151.25
A172: 2008-05-04 | B172: Tri | C172: Coop | D172: Sioux | E172: 18 | F172: 247.5
A173: 2009-09-26 | B173: Tri | C173: Safeway | D173: Fred | E173: 10 | F173: 137.5
A174: 2008-12-04 | B174: Carlota | C174: Albertsons | D174: Fred | E174: 14 | F174: 192.5
A175: 2009-07-15 | B175: Carlota | C175: WholeFoods | D175: Pham | E175: 11 | F175: 151.25
A176: 2009-11-28 | B176: Carlota | C176: Albertsons | D176: Pham | E176: 20 | F176: 275
A177: 2008-07-25 | B177: Sunset | C177: Coop | D177: Fred | E177: 21 | F177: 288.75
A178: 2008-03-31 | B178: Carlota | C178: TraderJoe's | D178: Sue | E178: 17 | F178: 233.75
A179: 2009-10-25 | B179: Sunshine | C179: WholeFoods | D179: Sue | E179: 16 | F179: 220
A180: 2009-08-11 | B180: Bellen | C180: PCC | D180: Jo | E180: 6 | F180: 82.5
A181: 2009-09-29 | B181: Tri | C181: Albertsons | D181: Pham | E181: 3 | F181: 41.25
A182: 2009-02-18 | B182: Tri | C182: QFC | D182: Pham | E182: 7 | F182: 96.25
A183: 2009-06-21 | B183: Carlota | C183: Coop | D183: Joe | E183: 8 | F183: 110
A184: 2008-02-05 | B184: Sunset | C184: Safeway | D184: Chin | E184: 16 | F184: 220
A185: 2009-03-03 | B185: Bellen | C185: QFC | D185: Joe | E185: 19 | F185: 261.25
A186: 2009-07-14 | B186: Tri | C186: WholeFoods | D186: Joe | E186: 17 | F186: 233.75
A187: 2008-04-21 | B187: Sunset | C187: Safeway | D187: Sioux | E187: 11 | F187: 151.25
A188: 2009-02-23 | B188: Sunshine | C188: Albertsons | D188: Fred | E188: 24 | F188: 330
A189: 2008-01-10 | B189: Carlota | C189: Safeway | D189: Joe | E189: 20 | F189: 275
A190: 2009-05-07 | B190: Quad | C190: Albertsons | D190: Joe | E190: 19 | F190: 261.25
A191: 2008-04-24 | B191: Bellen | C191: WholeFoods | D191: Jo | E191: 3 | F191: 41.25
A192: 2009-01-06 | B192: Sunshine | C192: WholeFoods | D192: Jo | E192: 16 | F192: 220
A193: 2009-07-14 | B193: Sunshine | C193: Safeway | D193: Sioux | E193: 23 | F193: 316.25
A194: 2009-03-14 | B194: Sunshine | C194: Albertsons | D194: Pham | E194: 16 | F194: 220
A195: 2008-02-24 | B195: Carlota | C195: PCC | D195: Sue | E195: 23 | F195: 316.25
A196: 2009-05-16 | B196: Bellen | C196: TraderJoe's | D196: Sue | E196: 19 | F196: 261.25
A197: 2009-07-08 | B197: Carlota | C197: WholeFoods | D197: Pham | E197: 2 | F197: 27.5
A198: 2009-12-29 | B198: SunBell | C198: PCC | D198: Sioux | E198: 18 | F198: 247.5
A199: 2009-09-14 | B199: Carlota | C199: Coop | D199: Joe | E199: 2 | F199: 27.5
A200: 2009-06-22 | B200: Sunshine | C200: QFC | D200: Jo | E200: 23 | F200: 316.25
... 280 more rows
